Publisher Label,Publisher URI,"Directorate code","Directorate","Service code","Service","Revenue or capital code","Revenue capital","Cost centre","Cost centre description","Bvsub Category","Bvsub description","Bvsum code","Bvsum description","Account code","Account description","Transaction No","Period","Transaction Date","Amount","Classification code","Classification description","Supplier ID","Supplier description","Company registration number","Company registration number Uri","VAT registration number"
"London Borough of Redbridge","http://opendatacommunities.org/doc/london-borough-council/redbridge","3BLEACENTFND","LEA Centrally Held School Funds","3CASSURACCES","Assuring Access to Schools","REV","Revenue","R3858","PFI School Start Up","02-PREMISES","Premises","02I","Grounds maintenance costs","4750","Grounds Maintenance","60185444","201306",17/09/2012 00:00:00,-193844,"21557","Construction Management","REDACTED DATA","NU SCHOOLS FOR REDBRIDGE LTD","",,"858914279"
"London Borough of Redbridge","http://opendatacommunities.org/doc/london-borough-council/redbridge","6BADULTSOCIA","Adult Social Care","6CSUPPSERMGT","Support Service & Management Costs","REV","Revenue","R4433","Care First Team","04-SUPPLIES","Supplies And Services","04F","Communications and computing","5853","Computer Software","60185758","201306",21/09/2012 00:00:00,-48350,"20703","Computer Systems and Software","REDACTED DATA","OLM SYSTEMS LTD","2615716","http://opencorporates.com/companies/gb/2615716","577661495"
"London Borough of Redbridge","http://opendatacommunities.org/doc/london-borough-council/redbridge","9BNONBVO","Outside the BVACOP Objective Structure","9CNONBVO","Outside the BVACOP Objective Structure","REV","Revenue","R5032","Staircase Lighting HRA","02-PREMISES","Premises","02B","Energy costs","4000","Electricity","70045274","201306",23/08/2012 00:00:00,-13966.3,"30586","Electricity Companies","REDACTED DATA","EDF ENERGY 1 LTD (PO BOX 3956 PLYMOUTH)","",,"523041202"
"London Borough of Redbridge","http://opendatacommunities.org/doc/london-borough-council/redbridge","2BCULTUR&REL","Cultural & Related Services","2CREC&SPORT","Recreation & Sport","REV","Revenue","R6999","Leisure Client","05-THIRD","Third Party Payments","05H","Private contractors","6915","Contractor Payments","60185755","201306",27/09/2012 00:00:00,-11938,"17020","Charities and Voluntary Organisations","REDACTED DATA","VISION REDBRIDGE CULTURE AND LEISURE","6032714","http://opencorporates.com/companies/gb/6032714","906429031"
"London Borough of Redbridge","http://opendatacommunities.org/doc/london-borough-council/redbridge","3BINDSCHFUND","Individual School Funds","3CDELPRIMARY","Delegated Individual Primary School Budgets","REV","Revenue","S1011","CHRISTCHURCH : Cleaning & Caretaking","02-PREMISES","Premises","02H","Cleaning and domestic supplies","4620","Cleaning Contract Payments","60185448","201306",11/06/2012 00:00:00,-6012.44,"15269","Cleaning Services - Commercial","REDACTED DATA","OCEAN CONTRACT CLEANING LTD","1105443","http://opencorporates.com/companies/gb/1105443","197418033"
"London Borough of Redbridge","http://opendatacommunities.org/doc/london-borough-council/redbridge","6BADULTSOCIA","Adult Social Care","6CADPHYSDIS","Adults Under 65 with Phys Disab or Sensory Impair","REV","Revenue","R4214","PD Direct Payments","06-TRANSFER","Transfer Payments","06B","Social Services Clients","7053","Direct Payments","3250185","201306",24/09/2012 00:00:00,-5841.43,"56800","Payroll Services","REDACTED DATA","HUMAN MANAGEMENT ASSISTANCE-CLIENT ACCOUNT","4752026","http://opencorporates.com/companies/gb/4752026","815230071"
"London Borough of Redbridge","http://opendatacommunities.org/doc/london-borough-council/redbridge","6BADULTSOCIA","Adult Social Care","6COLDINCMENT","Older People (65 or over) incl. Older Mentally Ill","REV","Revenue","R4385","OP Nursing","05-THIRD","Third Party Payments","05H","Private contractors","6909","Nursing Homes","90350321","201306",14/08/2012 00:00:00,-9483.47,"53350","Nursing Homes","REDACTED DATA","LIFE STYLE CARE (2011) PLC","7709694","http://opencorporates.com/companies/gb/7709694",""
"London Borough of Redbridge","http://opendatacommunities.org/doc/london-borough-council/redbridge","6BADULTSOCIA","Adult Social Care","6COLDINCMENT","Older People (65 or over) incl. Older Mentally Ill","REV","Revenue","R4385","OP Nursing","05-THIRD","Third Party Payments","05H","Private contractors","6909","Nursing Homes","90350321","201306",14/08/2012 00:00:00,-6212.67,"53350","Nursing Homes","REDACTED DATA","LIFE STYLE CARE (2011) PLC","7709694","http://opencorporates.com/companies/gb/7709694",""
"London Borough of Redbridge","http://opendatacommunities.org/doc/london-borough-council/redbridge","6BADULTSOCIA","Adult Social Care","6COLDINCMENT","Older People (65 or over) incl. Older Mentally Ill","REV","Revenue","R4385","OP Nursing","05-THIRD","Third Party Payments","05H","Private contractors","6909","Nursing Homes","90350321","201306",14/08/2012 00:00:00,-564.79,"53350","Nursing Homes","REDACTED DATA","LIFE STYLE CARE (2011) PLC","7709694","http://opencorporates.com/companies/gb/7709694",""
"London Borough of Redbridge","http://opendatacommunities.org/doc/london-borough-council/redbridge","6BADULTSOCIA","Adult Social Care","6COLDINCMENT","Older People (65 or over) incl. Older Mentally Ill","REV","Revenue","R4385","OP Nursing","09-INCOME","Income","09C","Customer & Client Receipts","8557","Nursing Home Charges","90350321","201306",14/08/2012 00:00:00,378.8,"53350","Nursing Homes","REDACTED DATA","LIFE STYLE CARE (2011) PLC","7709694","http://opencorporates.com/companies/gb/7709694",""
"London Borough of Redbridge","http://opendatacommunities.org/doc/london-borough-council/redbridge","6BADULTSOCIA","Adult Social Care","6COLDINCMENT","Older People (65 or over) incl. Older Mentally Ill","REV","Revenue","R4385","OP Nursing","09-INCOME","Income","09C","Customer & Client Receipts","8557","Nursing Home Charges","90350321","201306",14/08/2012 00:00:00,4166.8,"53350","Nursing Homes","REDACTED DATA","LIFE STYLE CARE (2011) PLC","7709694","http://opencorporates.com/companies/gb/7709694",""
"London Borough of Redbridge","http://opendatacommunities.org/doc/london-borough-council/redbridge","6BADULTSOCIA","Adult Social Care","6COLDINCMENT","Older People (65 or over) incl. Older Mentally Ill","REV","Revenue","R4385","OP Nursing","09-INCOME","Income","09C","Customer & Client Receipts","8557","Nursing Home Charges","90350321","201306",14/08/2012 00:00:00,6297.55,"53350","Nursing Homes","REDACTED DATA","LIFE STYLE CARE (2011) PLC","7709694","http://opencorporates.com/companies/gb/7709694",""
"London Borough of Redbridge","http://opendatacommunities.org/doc/london-borough-council/redbridge","6BADULTSOCIA","Adult Social Care","6CADLEARNDIS","Adults Under 65 with Learning Disabilities","REV","Revenue","R4188","LD - Residential Care","05-THIRD","Third Party Payments","05F","Voluntary associations","6802","Residential Homes","90356079","201306",12/09/2012 00:00:00,-6466.25,"17020","Charities and Voluntary Organisations","REDACTED DATA","MCCH SOCIETY LTD","IP25577R","http://opencorporates.com/companies/gb/IP25577R",""
"London Borough of Redbridge","http://opendatacommunities.org/doc/london-borough-council/redbridge","6BADULTSOCIA","Adult Social Care","6CADLEARNDIS","Adults Under 65 with Learning Disabilities","REV","Revenue","R4188","LD - Residential Care","09-INCOME","Income","09C","Customer & Client Receipts","8555","Accommodation Charges","90356079","201306",12/09/2012 00:00:00,-85.14,"17020","Charities and Voluntary Organisations","REDACTED DATA","MCCH SOCIETY LTD","IP25577R","http://opencorporates.com/companies/gb/IP25577R",""
"London Borough of Redbridge","http://opendatacommunities.org/doc/london-borough-council/redbridge","6BADULTSOCIA","Adult Social Care","6CADLEARNDIS","Adults Under 65 with Learning Disabilities","REV","Revenue","R4188","LD - Residential Care","09-INCOME","Income","09C","Customer & Client Receipts","8555","Accommodation Charges","90356079","201306",12/09/2012 00:00:00,596,"17020","Charities and Voluntary Organisations","REDACTED DATA","MCCH SOCIETY LTD","IP25577R","http://opencorporates.com/companies/gb/IP25577R",""
"London Borough of Redbridge","http://opendatacommunities.org/doc/london-borough-council/redbridge","6BADULTSOCIA","Adult Social Care","6CADLEARNDIS","Adults Under 65 with Learning Disabilities","REV","Revenue","R4188","LD - Residential Care","05-THIRD","Third Party Payments","05F","Voluntary associations","6802","Residential Homes","90356079","201306",12/09/2012 00:00:00,739,"17020","Charities and Voluntary Organisations","REDACTED DATA","MCCH SOCIETY LTD","IP25577R","http://opencorporates.com/companies/gb/IP25577R",""
"London Borough of Redbridge","http://opendatacommunities.org/doc/london-borough-council/redbridge","3BLEACENTFND","LEA Centrally Held School Funds","3CNONSCH","Non Schools","REV","Revenue","R2004","SEN and CD Res Placements DSG","05-THIRD","Third Party Payments","05H","Private contractors","6906","Independent Schools","60185135","201306",17/07/2012 00:00:00,-4790.35,"68200","Schools - Special","REDACTED DATA","HOPEWELL SCHOOL","",,""
"London Borough of Redbridge","http://opendatacommunities.org/doc/london-borough-council/redbridge","1BOTHEROPI&E","Other Operating Income & Expenditure","1CTRADSURDEF","Trading Account Surpluses & Deficits","REV","Revenue","R9611","114-126 High Rd Wdfd","02-PREMISES","Premises","02B","Energy costs","4000","Electricity","80000044","201306",30/08/2012 00:00:00,-3801.86,"30586","Electricity Companies","REDACTED DATA","SCOTTISH & SOUTHERN ENERGY (SOUTHERN ELECTRIC & SWALEC)","2716495","http://opencorporates.com/companies/gb/2716495","553769603"
"London Borough of Redbridge","http://opendatacommunities.org/doc/london-borough-council/redbridge","6BADULTSOCIA","Adult Social Care","6COLDINCMENT","Older People (65 or over) incl. Older Mentally Ill","REV","Revenue","R4378","OP Residential","05-THIRD","Third Party Payments","05F","Voluntary associations","6802","Residential Homes","90356164","201306",12/09/2012 00:00:00,-6031.14,"53350","Nursing Homes","REDACTED DATA","QUEENS COURT NURSING HOME","",,""
"London Borough of Redbridge","http://opendatacommunities.org/doc/london-borough-council/redbridge","6BADULTSOCIA","Adult Social Care","6COLDINCMENT","Older People (65 or over) incl. Older Mentally Ill","REV","Revenue","R4378","OP Residential","05-THIRD","Third Party Payments","05F","Voluntary associations","6802","Residential Homes","90356164","201306",12/09/2012 00:00:00,317.43,"53350","Nursing Homes","REDACTED DATA","QUEENS COURT NURSING HOME","",,""
"London Borough of Redbridge","http://opendatacommunities.org/doc/london-borough-council/redbridge","6BADULTSOCIA","Adult Social Care","6COLDINCMENT","Older People (65 or over) incl. Older Mentally Ill","REV","Revenue","R4378","OP Residential","09-INCOME","Income","09C","Customer & Client Receipts","8555","Accommodation Charges","90356164","201306",12/09/2012 00:00:00,1294.17,"53350","Nursing Homes","REDACTED DATA","QUEENS COURT NURSING HOME","",,""
"London Borough of Redbridge","http://opendatacommunities.org/doc/london-borough-council/redbridge","6BADULTSOCIA","Adult Social Care","6CCHILLOOKED","Children Looked After","REV","Revenue","R2119","CLAFH - Supportive Accommodation","05-THIRD","Third Party Payments","05H","Private contractors","6910","Care Packages","60185445","201306",19/09/2012 00:00:00,-3878.33,"64710","Residential Care Homes","REDACTED DATA","HEARTWOOD RESIDENTIAL SERVICES LTD","7122916","http://opencorporates.com/companies/gb/7122916",""
"London Borough of Redbridge","http://opendatacommunities.org/doc/london-borough-council/redbridge","6BADULTSOCIA","Adult Social Care","6CADLEARNDIS","Adults Under 65 with Learning Disabilities","REV","Revenue","R4215","LD Direct Payments","06-TRANSFER","Transfer Payments","06B","Social Services Clients","7053","Direct Payments","3249965","201306",24/09/2012 00:00:00,-3678.86,"56800","Payroll Services","REDACTED DATA","HUMAN MANAGEMENT ASSISTANCE-CLIENT ACCOUNT","4752026","http://opencorporates.com/companies/gb/4752026","815230071"
"London Borough of Redbridge","http://opendatacommunities.org/doc/london-borough-council/redbridge","6BADULTSOCIA","Adult Social Care","6CADMENHLTH","Adults Under 65 with Mental Health Needs","REV","Revenue","R4190","MH - Residential Care","05-THIRD","Third Party Payments","05F","Voluntary associations","6802","Residential Homes","90356372","201306",12/09/2012 00:00:00,-3675.96,"64710","Residential Care Homes","REDACTED DATA","TEALK SERVICES LTD (THE BEECHES- ILFORD)","4203171","http://opencorporates.com/companies/gb/4203171",""
"London Borough of Redbridge","http://opendatacommunities.org/doc/london-borough-council/redbridge","6BADULTSOCIA","Adult Social Care","6CADPHYSDIS","Adults Under 65 with Phys Disab or Sensory Impair","REV","Revenue","R4021","Carers PD Direct Payments","06-TRANSFER","Transfer Payments","06B","Social Services Clients","7053","Direct Payments","3250189","201306",24/09/2012 00:00:00,-2440.8,"56800","Payroll Services","REDACTED DATA","HUMAN MANAGEMENT ASSISTANCE-CLIENT ACCOUNT","4752026","http://opencorporates.com/companies/gb/4752026","815230071"
"London Borough of Redbridge","http://opendatacommunities.org/doc/london-borough-council/redbridge","6BADULTSOCIA","Adult Social Care","6CADPHYSDIS","Adults Under 65 with Phys Disab or Sensory Impair","REV","Revenue","R4021","Carers PD Direct Payments","06-TRANSFER","Transfer Payments","06B","Social Services Clients","7053","Direct Payments","3250189","201306",24/09/2012 00:00:00,-1173.26,"56800","Payroll Services","REDACTED DATA","HUMAN MANAGEMENT ASSISTANCE-CLIENT ACCOUNT","4752026","http://opencorporates.com/companies/gb/4752026","815230071"
"London Borough of Redbridge","http://opendatacommunities.org/doc/london-borough-council/redbridge","6BADULTSOCIA","Adult Social Care","6CADPHYSDIS","Adults Under 65 with Phys Disab or Sensory Impair","REV","Revenue","R4021","Carers PD Direct Payments","06-TRANSFER","Transfer Payments","06B","Social Services Clients","7053","Direct Payments","3250189","201306",24/09/2012 00:00:00,-9.94,"56800","Payroll Services","REDACTED DATA","HUMAN MANAGEMENT ASSISTANCE-CLIENT ACCOUNT","4752026","http://opencorporates.com/companies/gb/4752026","815230071"
"London Borough of Redbridge","http://opendatacommunities.org/doc/london-borough-council/redbridge","6BADULTSOCIA","Adult Social Care","6COLDINCMENT","Older People (65 or over) incl. Older Mentally Ill","REV","Revenue","R4211","Older People Direct Payments","06-TRANSFER","Transfer Payments","06B","Social Services Clients","7053","Direct Payments","3249877","201306",24/09/2012 00:00:00,-3434,"90005","Home Care Services DP","REDACTED DATA","REDACTED DATA","",,""
"London Borough of Redbridge","http://opendatacommunities.org/doc/london-borough-council/redbridge","6BADULTSOCIA","Adult Social Care","6COLDINCMENT","Older People (65 or over) incl. Older Mentally Ill","REV","Revenue","R4435","Sanctuary Care Residential Contracts","05-THIRD","Third Party Payments","05F","Voluntary associations","6802","Residential Homes","70045087","201306",01/07/2012 00:00:00,-3420.51,"53350","Nursing Homes","REDACTED DATA","SANCTUARY CARE (ENTERPRISE HOUSE)","4231521","http://opencorporates.com/companies/gb/4231521","732012487"
"London Borough of Redbridge","http://opendatacommunities.org/doc/london-borough-council/redbridge","6BADULTSOCIA","Adult Social Care","6COLDINCMENT","Older People (65 or over) incl. Older Mentally Ill","REV","Revenue","R4378","OP Residential","05-THIRD","Third Party Payments","05F","Voluntary associations","6802","Residential Homes","90356816","201306",27/09/2012 00:00:00,-3340.03,"53350","Nursing Homes","REDACTED DATA","JEWISH CARE (MERIT  HOUSE)","2447900","http://opencorporates.com/companies/gb/2447900","587033133"
"London Borough of Redbridge","http://opendatacommunities.org/doc/london-borough-council/redbridge","6BADULTSOCIA","Adult Social Care","6COLDINCMENT","Older People (65 or over) incl. Older Mentally Ill","REV","Revenue","R4378","OP Residential","09-INCOME","Income","09C","Customer & Client Receipts","8555","Accommodation Charges","90356816","201306",27/09/2012 00:00:00,698.17,"53350","Nursing Homes","REDACTED DATA","JEWISH CARE (MERIT  HOUSE)","2447900","http://opencorporates.com/companies/gb/2447900","587033133"
"London Borough of Redbridge","http://opendatacommunities.org/doc/london-borough-council/redbridge","6BADULTSOCIA","Adult Social Care","6COLDINCMENT","Older People (65 or over) incl. Older Mentally Ill","REV","Revenue","R4385","OP Nursing","05-THIRD","Third Party Payments","05H","Private contractors","6909","Nursing Homes","90355977","201306",18/09/2012 00:00:00,-2923.48,"53350","Nursing Homes","REDACTED DATA","BUPA CARE HOMES(GABLE COURT)","",,"239731641"
"London Borough of Redbridge","http://opendatacommunities.org/doc/london-borough-council/redbridge","6BADULTSOCIA","Adult Social Care","6COLDINCMENT","Older People (65 or over) incl. Older Mentally Ill","REV","Revenue","R4385","OP Nursing","05-THIRD","Third Party Payments","05H","Private contractors","6909","Nursing Homes","90355977","201306",18/09/2012 00:00:00,285.22,"53350","Nursing Homes","REDACTED DATA","BUPA CARE HOMES(GABLE COURT)","",,"239731641"
"London Borough of Redbridge","http://opendatacommunities.org/doc/london-borough-council/redbridge","6BADULTSOCIA","Adult Social Care","6CADMENHLTH","Adults Under 65 with Mental Health Needs","REV","Revenue","R4190","MH - Residential Care","05-THIRD","Third Party Payments","05F","Voluntary associations","6802","Residential Homes","90355959","201306",12/09/2012 00:00:00,-2814.54,"64710","Residential Care Homes","REDACTED DATA","EMPRESS CARE LTD T/A EMPRESS LODGE","",,""
"London Borough of Redbridge","http://opendatacommunities.org/doc/london-borough-council/redbridge","6BADULTSOCIA","Adult Social Care","6CADMENHLTH","Adults Under 65 with Mental Health Needs","REV","Revenue","R4190","MH - Residential Care","09-INCOME","Income","09C","Customer & Client Receipts","8555","Accommodation Charges","90355959","201306",12/09/2012 00:00:00,289.16,"64710","Residential Care Homes","REDACTED DATA","EMPRESS CARE LTD T/A EMPRESS LODGE","",,""
"London Borough of Redbridge","http://opendatacommunities.org/doc/london-borough-council/redbridge","6BADULTSOCIA","Adult Social Care","6COLDINCMENT","Older People (65 or over) incl. Older Mentally Ill","REV","Revenue","R4378","OP Residential","05-THIRD","Third Party Payments","05F","Voluntary associations","6802","Residential Homes","90355990","201306",18/09/2012 00:00:00,-2602.72,"53350","Nursing Homes","REDACTED DATA","BUPA CARE HOMES(GABLE COURT)","",,"239731641"
"London Borough of Redbridge","http://opendatacommunities.org/doc/london-borough-council/redbridge","6BADULTSOCIA","Adult Social Care","6COLDINCMENT","Older People (65 or over) incl. Older Mentally Ill","REV","Revenue","R4378","OP Residential","09-INCOME","Income","09C","Customer & Client Receipts","8555","Accommodation Charges","90355990","201306",18/09/2012 00:00:00,422.61,"53350","Nursing Homes","REDACTED DATA","BUPA CARE HOMES(GABLE COURT)","",,"239731641"
"London Borough of Redbridge","http://opendatacommunities.org/doc/london-borough-council/redbridge","9BNONBVO","Outside the BVACOP Objective Structure","9CNONBVO","Outside the BVACOP Objective Structure","REV","Revenue","R5031","Central Heating HRA","02-PREMISES","Premises","02E","Water services","4005","Heating and Hot Water","70045273","201306",14/08/2012 00:00:00,-2012.97,"30586","Electricity Companies","REDACTED DATA","EDF ENERGY 1 LTD (PO BOX 3956 PLYMOUTH)","",,"523041202"
"London Borough of Redbridge","http://opendatacommunities.org/doc/london-borough-council/redbridge","6BADULTSOCIA","Adult Social Care","6COLDINCMENT","Older People (65 or over) incl. Older Mentally Ill","REV","Revenue","R4385","OP Nursing","09-INCOME","Income","09C","Customer & Client Receipts","8557","Nursing Home Charges","90356053","201306",12/09/2012 00:00:00,-4467.08,"53350","Nursing Homes","REDACTED DATA","JEWISH CARE (MERIT  HOUSE)","2447900","http://opencorporates.com/companies/gb/2447900","587033133"
"London Borough of Redbridge","http://opendatacommunities.org/doc/london-borough-council/redbridge","6BADULTSOCIA","Adult Social Care","6COLDINCMENT","Older People (65 or over) incl. Older Mentally Ill","REV","Revenue","R4385","OP Nursing","05-THIRD","Third Party Payments","05H","Private contractors","6909","Nursing Homes","90356053","201306",12/09/2012 00:00:00,-2310.56,"53350","Nursing Homes","REDACTED DATA","JEWISH CARE (MERIT  HOUSE)","2447900","http://opencorporates.com/companies/gb/2447900","587033133"
"London Borough of Redbridge","http://opendatacommunities.org/doc/london-borough-council/redbridge","6BADULTSOCIA","Adult Social Care","6COLDINCMENT","Older People (65 or over) incl. Older Mentally Ill","REV","Revenue","R4385","OP Nursing","09-INCOME","Income","09C","Customer & Client Receipts","8557","Nursing Home Charges","90356053","201306",12/09/2012 00:00:00,531.17,"53350","Nursing Homes","REDACTED DATA","JEWISH CARE (MERIT  HOUSE)","2447900","http://opencorporates.com/companies/gb/2447900","587033133"
"London Borough of Redbridge","http://opendatacommunities.org/doc/london-borough-council/redbridge","6BADULTSOCIA","Adult Social Care","6COLDINCMENT","Older People (65 or over) incl. Older Mentally Ill","REV","Revenue","R4385","OP Nursing","05-THIRD","Third Party Payments","05H","Private contractors","6909","Nursing Homes","90356053","201306",12/09/2012 00:00:00,4467.08,"53350","Nursing Homes","REDACTED DATA","JEWISH CARE (MERIT  HOUSE)","2447900","http://opencorporates.com/companies/gb/2447900","587033133"
"London Borough of Redbridge","http://opendatacommunities.org/doc/london-borough-council/redbridge","6BADULTSOCIA","Adult Social Care","6CADMENHLTH","Adults Under 65 with Mental Health Needs","REV","Revenue","R4190","MH - Residential Care","05-THIRD","Third Party Payments","05F","Voluntary associations","6802","Residential Homes","90356190","201306",12/09/2012 00:00:00,-2330.59,"17020","Charities and Voluntary Organisations","REDACTED DATA","REDBRIDGE COMMUNITY HOUSING LIMITED (RCHL)","",,""
"London Borough of Redbridge","http://opendatacommunities.org/doc/london-borough-council/redbridge","6BADULTSOCIA","Adult Social Care","6CADMENHLTH","Adults Under 65 with Mental Health Needs","REV","Revenue","R4190","MH - Residential Care","09-INCOME","Income","09C","Customer & Client Receipts","8555","Accommodation Charges","90356190","201306",12/09/2012 00:00:00,575.38,"17020","Charities and Voluntary Organisations","REDACTED DATA","REDBRIDGE COMMUNITY HOUSING LIMITED (RCHL)","",,""
"London Borough of Redbridge","http://opendatacommunities.org/doc/london-borough-council/redbridge","1BOTHEROPI&E","Other Operating Income & Expenditure","1CTRADSURDEF","Trading Account Surpluses & Deficits","REV","Revenue","R9277","Telephony Modernisation Project - VOIP","04-SUPPLIES","Supplies And Services","04F","Communications and computing","5851","Computer Equipment - Purchases","60185329","201306",23/08/2012 00:00:00,-1404,"76510","Telecommunication Services","REDACTED DATA","BRITISH TELECOM (DURHAM)","",,"245719348"
"London Borough of Redbridge","http://opendatacommunities.org/doc/london-borough-council/redbridge","6BADULTSOCIA","Adult Social Care","6COTHADSERV","Other Adult Services","REV","Revenue","R4389","PCT Older Person Home Care","05-THIRD","Third Party Payments","05A","Independent units within the council","6502","Agency Homecare (Payments To Independent Units)","90355319","201306",24/09/2012 00:00:00,-1577.12,"43419","Home Care Services","REDACTED DATA","FASTFLOW DE VERE CARE","",,""
"London Borough of Redbridge","http://opendatacommunities.org/doc/london-borough-council/redbridge","6BADULTSOCIA","Adult Social Care","6COTHADSERV","Other Adult Services","REV","Revenue","R4389","PCT Older Person Home Care","05-THIRD","Third Party Payments","05A","Independent units within the council","6502","Agency Homecare (Payments To Independent Units)","90352429","201306",10/09/2012 00:00:00,-1573.12,"43419","Home Care Services","REDACTED DATA","FASTFLOW DE VERE CARE","",,""
"London Borough of Redbridge","http://opendatacommunities.org/doc/london-borough-council/redbridge","6BADULTSOCIA","Adult Social Care","6COTHADSERV","Other Adult Services","REV","Revenue","R4389","PCT Older Person Home Care","05-THIRD","Third Party Payments","05A","Independent units within the council","6502","Agency Homecare (Payments To Independent Units)","90352335","201306",07/09/2012 00:00:00,-1570.92,"43419","Home Care Services","REDACTED DATA","FASTFLOW DE VERE CARE","",,""
"London Borough of Redbridge","http://opendatacommunities.org/doc/london-borough-council/redbridge","6BADULTSOCIA","Adult Social Care","6COTHADSERV","Other Adult Services","REV","Revenue","R4389","PCT Older Person Home Care","05-THIRD","Third Party Payments","05A","Independent units within the council","6502","Agency Homecare (Payments To Independent Units)","90355314","201306",20/09/2012 00:00:00,-1569.41,"43419","Home Care Services","REDACTED DATA","FASTFLOW DE VERE CARE","",,""
"London Borough of Redbridge","http://opendatacommunities.org/doc/london-borough-council/redbridge","9BNONBVO","Outside the BVACOP Objective Structure","9CNONBVO","Outside the BVACOP Objective Structure","BAL","Balance Sheet","B0095","CLOSED -  PO Holding Account","99-NONBV","Capital, Balance Sheet and Control","50Q","Other Balances & Reserves","9995","Early Payment Discount Holding Account","70045414","201306",22/08/2012 00:00:00,-1550.11,"0","Not Classified","REDACTED DATA","CATERLINK LIMITED","",,"703137082"
"London Borough of Redbridge","http://opendatacommunities.org/doc/london-borough-council/redbridge","6BADULTSOCIA","Adult Social Care","6COLDINCMENT","Older People (65 or over) incl. Older Mentally Ill","REV","Revenue","R4385","OP Nursing","05-THIRD","Third Party Payments","05H","Private contractors","6909","Nursing Homes","90350299","201306",14/08/2012 00:00:00,-1782.61,"53350","Nursing Homes","REDACTED DATA","LIFE STYLE CARE (2011) PLC","7709694","http://opencorporates.com/companies/gb/7709694",""
"London Borough of Redbridge","http://opendatacommunities.org/doc/london-borough-council/redbridge","6BADULTSOCIA","Adult Social Care","6COLDINCMENT","Older People (65 or over) incl. Older Mentally Ill","REV","Revenue","R4385","OP Nursing","05-THIRD","Third Party Payments","05H","Private contractors","6909","Nursing Homes","90350299","201306",14/08/2012 00:00:00,285.22,"53350","Nursing Homes","REDACTED DATA","LIFE STYLE CARE (2011) PLC","7709694","http://opencorporates.com/companies/gb/7709694",""
"London Borough of Redbridge","http://opendatacommunities.org/doc/london-borough-council/redbridge","6BADULTSOCIA","Adult Social Care","6COLDINCMENT","Older People (65 or over) incl. Older Mentally Ill","REV","Revenue","R4378","OP Residential","09-INCOME","Income","09C","Customer & Client Receipts","8555","Accommodation Charges","90356015","201306",12/09/2012 00:00:00,-2838.43,"53350","Nursing Homes","REDACTED DATA","JEWISH CARE (MERIT  HOUSE)","2447900","http://opencorporates.com/companies/gb/2447900","587033133"
"London Borough of Redbridge","http://opendatacommunities.org/doc/london-borough-council/redbridge","6BADULTSOCIA","Adult Social Care","6COLDINCMENT","Older People (65 or over) incl. Older Mentally Ill","REV","Revenue","R4378","OP Residential","09-INCOME","Income","09C","Customer & Client Receipts","8555","Accommodation Charges","90356015","201306",12/09/2012 00:00:00,-915.36,"53350","Nursing Homes","REDACTED DATA","JEWISH CARE (MERIT  HOUSE)","2447900","http://opencorporates.com/companies/gb/2447900","587033133"
"London Borough of Redbridge","http://opendatacommunities.org/doc/london-borough-council/redbridge","6BADULTSOCIA","Adult Social Care","6COLDINCMENT","Older People (65 or over) incl. Older Mentally Ill","REV","Revenue","R4378","OP Residential","05-THIRD","Third Party Payments","05F","Voluntary associations","6802","Residential Homes","90356015","201306",12/09/2012 00:00:00,2280.96,"53350","Nursing Homes","REDACTED DATA","JEWISH CARE (MERIT  HOUSE)","2447900","http://opencorporates.com/companies/gb/2447900","587033133"
"London Borough of Redbridge","http://opendatacommunities.org/doc/london-borough-council/redbridge","6BADULTSOCIA","Adult Social Care","6COLDINCMENT","Older People (65 or over) incl. Older Mentally Ill","REV","Revenue","R4385","OP Nursing","05-THIRD","Third Party Payments","05H","Private contractors","6909","Nursing Homes","90355895","201306",14/09/2012 00:00:00,-2186.52,"53350","Nursing Homes","REDACTED DATA","CAMBRIDGE NURSING HOME","",,""
"London Borough of Redbridge","http://opendatacommunities.org/doc/london-borough-council/redbridge","6BADULTSOCIA","Adult Social Care","6COLDINCMENT","Older People (65 or over) incl. Older Mentally Ill","REV","Revenue","R4385","OP Nursing","05-THIRD","Third Party Payments","05H","Private contractors","6909","Nursing Homes","90355895","201306",14/09/2012 00:00:00,282.13,"53350","Nursing Homes","REDACTED DATA","CAMBRIDGE NURSING HOME","",,""
"London Borough of Redbridge","http://opendatacommunities.org/doc/london-borough-council/redbridge","6BADULTSOCIA","Adult Social Care","6COLDINCMENT","Older People (65 or over) incl. Older Mentally Ill","REV","Revenue","R4385","OP Nursing","09-INCOME","Income","09C","Customer & Client Receipts","8557","Nursing Home Charges","90355895","201306",14/09/2012 00:00:00,488.74,"53350","Nursing Homes","REDACTED DATA","CAMBRIDGE NURSING HOME","",,""
"London Borough of Redbridge","http://opendatacommunities.org/doc/london-borough-council/redbridge","6BADULTSOCIA","Adult Social Care","6COLDINCMENT","Older People (65 or over) incl. Older Mentally Ill","REV","Revenue","R4385","OP Nursing","05-THIRD","Third Party Payments","05H","Private contractors","6909","Nursing Homes","90350283","201306",14/08/2012 00:00:00,-2188.56,"53350","Nursing Homes","REDACTED DATA","LIFE STYLE CARE (2011) PLC","7709694","http://opencorporates.com/companies/gb/7709694",""
"London Borough of Redbridge","http://opendatacommunities.org/doc/london-borough-council/redbridge","6BADULTSOCIA","Adult Social Care","6COLDINCMENT","Older People (65 or over) incl. Older Mentally Ill","REV","Revenue","R4385","OP Nursing","05-THIRD","Third Party Payments","05H","Private contractors","6909","Nursing Homes","90350283","201306",14/08/2012 00:00:00,282.39,"53350","Nursing Homes","REDACTED DATA","LIFE STYLE CARE (2011) PLC","7709694","http://opencorporates.com/companies/gb/7709694",""
"London Borough of Redbridge","http://opendatacommunities.org/doc/london-borough-council/redbridge","6BADULTSOCIA","Adult Social Care","6COLDINCMENT","Older People (65 or over) incl. Older Mentally Ill","REV","Revenue","R4385","OP Nursing","09-INCOME","Income","09C","Customer & Client Receipts","8557","Nursing Home Charges","90350283","201306",14/08/2012 00:00:00,492.46,"53350","Nursing Homes","REDACTED DATA","LIFE STYLE CARE (2011) PLC","7709694","http://opencorporates.com/companies/gb/7709694",""
"London Borough of Redbridge","http://opendatacommunities.org/doc/london-borough-council/redbridge","6BADULTSOCIA","Adult Social Care","6COLDINCMENT","Older People (65 or over) incl. Older Mentally Ill","REV","Revenue","R4378","OP Residential","05-THIRD","Third Party Payments","05F","Voluntary associations","6802","Residential Homes","90355939","201306",12/09/2012 00:00:00,-2608.92,"64710","Residential Care Homes","REDACTED DATA","CUNNINGHAM HOUSE (ABBEYFIELD EPPING SOCIETY)","",,""
"London Borough of Redbridge","http://opendatacommunities.org/doc/london-borough-council/redbridge","6BADULTSOCIA","Adult Social Care","6COLDINCMENT","Older People (65 or over) incl. Older Mentally Ill","REV","Revenue","R4378","OP Residential","05-THIRD","Third Party Payments","05F","Voluntary associations","6802","Residential Homes","90355939","201306",12/09/2012 00:00:00,326.11,"64710","Residential Care Homes","REDACTED DATA","CUNNINGHAM HOUSE (ABBEYFIELD EPPING SOCIETY)","",,""
"London Borough of Redbridge","http://opendatacommunities.org/doc/london-borough-council/redbridge","6BADULTSOCIA","Adult Social Care","6COLDINCMENT","Older People (65 or over) incl. Older Mentally Ill","REV","Revenue","R4378","OP Residential","09-INCOME","Income","09C","Customer & Client Receipts","8555","Accommodation Charges","90355939","201306",12/09/2012 00:00:00,953.65,"64710","Residential Care Homes","REDACTED DATA","CUNNINGHAM HOUSE (ABBEYFIELD EPPING SOCIETY)","",,""
"London Borough of Redbridge","http://opendatacommunities.org/doc/london-borough-council/redbridge","6BADULTSOCIA","Adult Social Care","6COLDINCMENT","Older People (65 or over) incl. Older Mentally Ill","REV","Revenue","R4378","OP Residential","05-THIRD","Third Party Payments","05F","Voluntary associations","6802","Residential Homes","90356054","201306",12/09/2012 00:00:00,-2074.64,"53350","Nursing Homes","REDACTED DATA","JEWISH CARE (MERIT  HOUSE)","2447900","http://opencorporates.com/companies/gb/2447900","587033133"
"London Borough of Redbridge","http://opendatacommunities.org/doc/london-borough-council/redbridge","6BADULTSOCIA","Adult Social Care","6COLDINCMENT","Older People (65 or over) incl. Older Mentally Ill","REV","Revenue","R4378","OP Residential","05-THIRD","Third Party Payments","05F","Voluntary associations","6802","Residential Homes","90356054","201306",12/09/2012 00:00:00,331.94,"53350","Nursing Homes","REDACTED DATA","JEWISH CARE (MERIT  HOUSE)","2447900","http://opencorporates.com/companies/gb/2447900","587033133"
"London Borough of Redbridge","http://opendatacommunities.org/doc/london-borough-council/redbridge","6BADULTSOCIA","Adult Social Care","6COLDINCMENT","Older People (65 or over) incl. Older Mentally Ill","REV","Revenue","R4378","OP Residential","09-INCOME","Income","09C","Customer & Client Receipts","8555","Accommodation Charges","90356054","201306",12/09/2012 00:00:00,462.25,"53350","Nursing Homes","REDACTED DATA","JEWISH CARE (MERIT  HOUSE)","2447900","http://opencorporates.com/companies/gb/2447900","587033133"
"London Borough of Redbridge","http://opendatacommunities.org/doc/london-borough-council/redbridge","6BADULTSOCIA","Adult Social Care","6COLDINCMENT","Older People (65 or over) incl. Older Mentally Ill","REV","Revenue","R4378","OP Residential","05-THIRD","Third Party Payments","05F","Voluntary associations","6802","Residential Homes","90356037","201306",12/09/2012 00:00:00,-2688.27,"53350","Nursing Homes","REDACTED DATA","JEWISH CARE (MERIT  HOUSE)","2447900","http://opencorporates.com/companies/gb/2447900","587033133"
"London Borough of Redbridge","http://opendatacommunities.org/doc/london-borough-council/redbridge","6BADULTSOCIA","Adult Social Care","6COLDINCMENT","Older People (65 or over) incl. Older Mentally Ill","REV","Revenue","R4378","OP Residential","09-INCOME","Income","09C","Customer & Client Receipts","8555","Accommodation Charges","90356037","201306",12/09/2012 00:00:00,-169.49,"53350","Nursing Homes","REDACTED DATA","JEWISH CARE (MERIT  HOUSE)","2447900","http://opencorporates.com/companies/gb/2447900","587033133"
"London Borough of Redbridge","http://opendatacommunities.org/doc/london-borough-council/redbridge","6BADULTSOCIA","Adult Social Care","6COLDINCMENT","Older People (65 or over) incl. Older Mentally Ill","REV","Revenue","R4378","OP Residential","09-INCOME","Income","09C","Customer & Client Receipts","8555","Accommodation Charges","90356037","201306",12/09/2012 00:00:00,-16.95,"53350","Nursing Homes","REDACTED DATA","JEWISH CARE (MERIT  HOUSE)","2447900","http://opencorporates.com/companies/gb/2447900","587033133"
"London Borough of Redbridge","http://opendatacommunities.org/doc/london-borough-council/redbridge","6BADULTSOCIA","Adult Social Care","6COLDINCMENT","Older People (65 or over) incl. Older Mentally Ill","REV","Revenue","R4378","OP Residential","05-THIRD","Third Party Payments","05F","Voluntary associations","6802","Residential Homes","90356037","201306",12/09/2012 00:00:00,81.46,"53350","Nursing Homes","REDACTED DATA","JEWISH CARE (MERIT  HOUSE)","2447900","http://opencorporates.com/companies/gb/2447900","587033133"
"London Borough of Redbridge","http://opendatacommunities.org/doc/london-borough-council/redbridge","6BADULTSOCIA","Adult Social Care","6COLDINCMENT","Older People (65 or over) incl. Older Mentally Ill","REV","Revenue","R4378","OP Residential","05-THIRD","Third Party Payments","05F","Voluntary associations","6802","Residential Homes","90356037","201306",12/09/2012 00:00:00,325.85,"53350","Nursing Homes","REDACTED DATA","JEWISH CARE (MERIT  HOUSE)","2447900","http://opencorporates.com/companies/gb/2447900","587033133"
"London Borough of Redbridge","http://opendatacommunities.org/doc/london-borough-council/redbridge","6BADULTSOCIA","Adult Social Care","6COLDINCMENT","Older People (65 or over) incl. Older Mentally Ill","REV","Revenue","R4378","OP Residential","09-INCOME","Income","09C","Customer & Client Receipts","8555","Accommodation Charges","90356037","201306",12/09/2012 00:00:00,559.3,"53350","Nursing Homes","REDACTED DATA","JEWISH CARE (MERIT  HOUSE)","2447900","http://opencorporates.com/companies/gb/2447900","587033133"
"London Borough of Redbridge","http://opendatacommunities.org/doc/london-borough-council/redbridge","6BADULTSOCIA","Adult Social Care","6COLDINCMENT","Older People (65 or over) incl. Older Mentally Ill","REV","Revenue","R4378","OP Residential","05-THIRD","Third Party Payments","05F","Voluntary associations","6802","Residential Homes","90356037","201306",12/09/2012 00:00:00,651.7,"53350","Nursing Homes","REDACTED DATA","JEWISH CARE (MERIT  HOUSE)","2447900","http://opencorporates.com/companies/gb/2447900","587033133"
"London Borough of Redbridge","http://opendatacommunities.org/doc/london-borough-council/redbridge","6BADULTSOCIA","Adult Social Care","6COLDINCMENT","Older People (65 or over) incl. Older Mentally Ill","REV","Revenue","R4211","Older People Direct Payments","06-TRANSFER","Transfer Payments","06B","Social Services Clients","7053","Direct Payments","3249987","201306",24/09/2012 00:00:00,-1252.8,"56800","Payroll Services","REDACTED DATA","HUMAN MANAGEMENT ASSISTANCE-CLIENT ACCOUNT","4752026","http://opencorporates.com/companies/gb/4752026","815230071"
"London Borough of Redbridge","http://opendatacommunities.org/doc/london-borough-council/redbridge","6BADULTSOCIA","Adult Social Care","6COLDINCMENT","Older People (65 or over) incl. Older Mentally Ill","REV","Revenue","R4211","Older People Direct Payments","09-INCOME","Income","09C","Customer & Client Receipts","8545","Direct Payments Income","3249987","201306",24/09/2012 00:00:00,0,"56800","Payroll Services","REDACTED DATA","HUMAN MANAGEMENT ASSISTANCE-CLIENT ACCOUNT","4752026","http://opencorporates.com/companies/gb/4752026","815230071"
"London Borough of Redbridge","http://opendatacommunities.org/doc/london-borough-council/redbridge","6BADULTSOCIA","Adult Social Care","6COLDINCMENT","Older People (65 or over) incl. Older Mentally Ill","REV","Revenue","R4385","OP Nursing","05-THIRD","Third Party Payments","05H","Private contractors","6909","Nursing Homes","90356525","201306",26/09/2012 00:00:00,-2200.52,"53350","Nursing Homes","REDACTED DATA","JEWISH CARE (MERIT  HOUSE)","2447900","http://opencorporates.com/companies/gb/2447900","587033133"
"London Borough of Redbridge","http://opendatacommunities.org/doc/london-borough-council/redbridge","6BADULTSOCIA","Adult Social Care","6COLDINCMENT","Older People (65 or over) incl. Older Mentally Ill","REV","Revenue","R4385","OP Nursing","05-THIRD","Third Party Payments","05H","Private contractors","6909","Nursing Homes","90356525","201306",26/09/2012 00:00:00,303.52,"53350","Nursing Homes","REDACTED DATA","JEWISH CARE (MERIT  HOUSE)","2447900","http://opencorporates.com/companies/gb/2447900","587033133"
"London Borough of Redbridge","http://opendatacommunities.org/doc/london-borough-council/redbridge","6BADULTSOCIA","Adult Social Care","6COLDINCMENT","Older People (65 or over) incl. Older Mentally Ill","REV","Revenue","R4385","OP Nursing","09-INCOME","Income","09C","Customer & Client Receipts","8557","Nursing Home Charges","90356525","201306",26/09/2012 00:00:00,664.39,"53350","Nursing Homes","REDACTED DATA","JEWISH CARE (MERIT  HOUSE)","2447900","http://opencorporates.com/companies/gb/2447900","587033133"
"London Borough of Redbridge","http://opendatacommunities.org/doc/london-borough-council/redbridge","1BOTHEROPI&E","Other Operating Income & Expenditure","1CTRADSURDEF","Trading Account Surpluses & Deficits","REV","Revenue","R9614","852 Cranbrook Rd","02-PREMISES","Premises","02H","Cleaning and domestic supplies","4620","Cleaning Contract Payments","60184238","201306",05/09/2012 00:00:00,-953.26,"15269","Cleaning Services - Commercial","REDACTED DATA","ISS FACILITY SERVICES LTD","890885","http://opencorporates.com/companies/gb/890885","809727795"
"London Borough of Redbridge","http://opendatacommunities.org/doc/london-borough-council/redbridge","3BINDSCHFUND","Individual School Funds","3CDELPRIMARY","Delegated Individual Primary School Budgets","REV","Revenue","S1011","CHRISTCHURCH : Cleaning & Caretaking","02-PREMISES","Premises","02H","Cleaning and domestic supplies","4620","Cleaning Contract Payments","60185447","201306",11/06/2012 00:00:00,-917.79,"15269","Cleaning Services - Commercial","REDACTED DATA","OCEAN CONTRACT CLEANING LTD","1105443","http://opencorporates.com/companies/gb/1105443","197418033"
"London Borough of Redbridge","http://opendatacommunities.org/doc/london-borough-council/redbridge","6BADULTSOCIA","Adult Social Care","6COLDINCMENT","Older People (65 or over) incl. Older Mentally Ill","REV","Revenue","R4385","OP Nursing","05-THIRD","Third Party Payments","05H","Private contractors","6909","Nursing Homes","90356061","201306",12/09/2012 00:00:00,-10471.44,"53350","Nursing Homes","REDACTED DATA","JEWISH CARE (MERIT  HOUSE)","2447900","http://opencorporates.com/companies/gb/2447900","587033133"
"London Borough of Redbridge","http://opendatacommunities.org/doc/london-borough-council/redbridge","6BADULTSOCIA","Adult Social Care","6COLDINCMENT","Older People (65 or over) incl. Older Mentally Ill","REV","Revenue","R4385","OP Nursing","09-INCOME","Income","09C","Customer & Client Receipts","8557","Nursing Home Charges","90356061","201306",12/09/2012 00:00:00,-3355.77,"53350","Nursing Homes","REDACTED DATA","JEWISH CARE (MERIT  HOUSE)","2447900","http://opencorporates.com/companies/gb/2447900","587033133"
"London Borough of Redbridge","http://opendatacommunities.org/doc/london-borough-council/redbridge","6BADULTSOCIA","Adult Social Care","6COLDINCMENT","Older People (65 or over) incl. Older Mentally Ill","REV","Revenue","R4385","OP Nursing","09-INCOME","Income","09C","Customer & Client Receipts","8557","Nursing Home Charges","90356061","201306",12/09/2012 00:00:00,-1113.43,"53350","Nursing Homes","REDACTED DATA","JEWISH CARE (MERIT  HOUSE)","2447900","http://opencorporates.com/companies/gb/2447900","587033133"
"London Borough of Redbridge","http://opendatacommunities.org/doc/london-borough-council/redbridge","6BADULTSOCIA","Adult Social Care","6COLDINCMENT","Older People (65 or over) incl. Older Mentally Ill","REV","Revenue","R4385","OP Nursing","09-INCOME","Income","09C","Customer & Client Receipts","8557","Nursing Home Charges","90356061","201306",12/09/2012 00:00:00,-701.64,"53350","Nursing Homes","REDACTED DATA","JEWISH CARE (MERIT  HOUSE)","2447900","http://opencorporates.com/companies/gb/2447900","587033133"
"London Borough of Redbridge","http://opendatacommunities.org/doc/london-borough-council/redbridge","6BADULTSOCIA","Adult Social Care","6COLDINCMENT","Older People (65 or over) incl. Older Mentally Ill","REV","Revenue","R4385","OP Nursing","09-INCOME","Income","09C","Customer & Client Receipts","8557","Nursing Home Charges","90356061","201306",12/09/2012 00:00:00,-222.27,"53350","Nursing Homes","REDACTED DATA","JEWISH CARE (MERIT  HOUSE)","2447900","http://opencorporates.com/companies/gb/2447900","587033133"
"London Borough of Redbridge","http://opendatacommunities.org/doc/london-borough-council/redbridge","6BADULTSOCIA","Adult Social Care","6COLDINCMENT","Older People (65 or over) incl. Older Mentally Ill","REV","Revenue","R4385","OP Nursing","09-INCOME","Income","09C","Customer & Client Receipts","8557","Nursing Home Charges","90356061","201306",12/09/2012 00:00:00,-142.01,"53350","Nursing Homes","REDACTED DATA","JEWISH CARE (MERIT  HOUSE)","2447900","http://opencorporates.com/companies/gb/2447900","587033133"
"London Borough of Redbridge","http://opendatacommunities.org/doc/london-borough-council/redbridge","6BADULTSOCIA","Adult Social Care","6COLDINCMENT","Older People (65 or over) incl. Older Mentally Ill","REV","Revenue","R4385","OP Nursing","09-INCOME","Income","09C","Customer & Client Receipts","8557","Nursing Home Charges","90356061","201306",12/09/2012 00:00:00,-49.39,"53350","Nursing Homes","REDACTED DATA","JEWISH CARE (MERIT  HOUSE)","2447900","http://opencorporates.com/companies/gb/2447900","587033133"
"London Borough of Redbridge","http://opendatacommunities.org/doc/london-borough-council/redbridge","6BADULTSOCIA","Adult Social Care","6COLDINCMENT","Older People (65 or over) incl. Older Mentally Ill","REV","Revenue","R4385","OP Nursing","09-INCOME","Income","09C","Customer & Client Receipts","8557","Nursing Home Charges","90356061","201306",12/09/2012 00:00:00,-49.39,"53350","Nursing Homes","REDACTED DATA","JEWISH CARE (MERIT  HOUSE)","2447900","http://opencorporates.com/companies/gb/2447900","587033133"
"London Borough of Redbridge","http://opendatacommunities.org/doc/london-borough-council/redbridge","6BADULTSOCIA","Adult Social Care","6COLDINCMENT","Older People (65 or over) incl. Older Mentally Ill","REV","Revenue","R4385","OP Nursing","05-THIRD","Third Party Payments","05H","Private contractors","6909","Nursing Homes","90356061","201306",12/09/2012 00:00:00,2145.88,"53350","Nursing Homes","REDACTED DATA","JEWISH CARE (MERIT  HOUSE)","2447900","http://opencorporates.com/companies/gb/2447900","587033133"
"London Borough of Redbridge","http://opendatacommunities.org/doc/london-borough-council/redbridge","6BADULTSOCIA","Adult Social Care","6COLDINCMENT","Older People (65 or over) incl. Older Mentally Ill","REV","Revenue","R4385","OP Nursing","09-INCOME","Income","09C","Customer & Client Receipts","8557","Nursing Home Charges","90356061","201306",12/09/2012 00:00:00,2503.71,"53350","Nursing Homes","REDACTED DATA","JEWISH CARE (MERIT  HOUSE)","2447900","http://opencorporates.com/companies/gb/2447900","587033133"
"London Borough of Redbridge","http://opendatacommunities.org/doc/london-borough-council/redbridge","6BADULTSOCIA","Adult Social Care","6COLDINCMENT","Older People (65 or over) incl. Older Mentally Ill","REV","Revenue","R4385","OP Nursing","05-THIRD","Third Party Payments","05H","Private contractors","6909","Nursing Homes","90356061","201306",12/09/2012 00:00:00,10471.44,"53350","Nursing Homes","REDACTED DATA","JEWISH CARE (MERIT  HOUSE)","2447900","http://opencorporates.com/companies/gb/2447900","587033133"
"London Borough of Redbridge","http://opendatacommunities.org/doc/london-borough-council/redbridge","6BADULTSOCIA","Adult Social Care","6COTHADSERV","Other Adult Services","REV","Revenue","R4390","PCT HIV Home Care","05-THIRD","Third Party Payments","05A","Independent units within the council","6502","Agency Homecare (Payments To Independent Units)","90354813","201306",31/07/2012 00:00:00,-965.09,"43419","Home Care Services","REDACTED DATA","ALLIED HEALTHCARE GROUP LTD","1689856","http://opencorporates.com/companies/gb/1689856","813058355"
"London Borough of Redbridge","http://opendatacommunities.org/doc/london-borough-council/redbridge","6BADULTSOCIA","Adult Social Care","6COLDINCMENT","Older People (65 or over) incl. Older Mentally Ill","REV","Revenue","R4385","OP Nursing","05-THIRD","Third Party Payments","05H","Private contractors","6909","Nursing Homes","90355890","201306",14/09/2012 00:00:00,-1200.18,"53350","Nursing Homes","REDACTED DATA","CAMBRIDGE NURSING HOME","",,""
"London Borough of Redbridge","http://opendatacommunities.org/doc/london-borough-council/redbridge","6BADULTSOCIA","Adult Social Care","6COLDINCMENT","Older People (65 or over) incl. Older Mentally Ill","REV","Revenue","R4385","OP Nursing","09-INCOME","Income","09C","Customer & Client Receipts","8557","Nursing Home Charges","90355890","201306",14/09/2012 00:00:00,326.04,"53350","Nursing Homes","REDACTED DATA","CAMBRIDGE NURSING HOME","",,""
"London Borough of Redbridge","http://opendatacommunities.org/doc/london-borough-council/redbridge","6BADULTSOCIA","Adult Social Care","6COLDINCMENT","Older People (65 or over) incl. Older Mentally Ill","REV","Revenue","R4211","Older People Direct Payments","09-INCOME","Income","09C","Customer & Client Receipts","8545","Direct Payments Income","3249962","201306",24/09/2012 00:00:00,-1339.43,"56800","Payroll Services","REDACTED DATA","HUMAN MANAGEMENT ASSISTANCE-CLIENT ACCOUNT","4752026","http://opencorporates.com/companies/gb/4752026","815230071"
"London Borough of Redbridge","http://opendatacommunities.org/doc/london-borough-council/redbridge","6BADULTSOCIA","Adult Social Care","6COLDINCMENT","Older People (65 or over) incl. Older Mentally Ill","REV","Revenue","R4211","Older People Direct Payments","09-INCOME","Income","09C","Customer & Client Receipts","8545","Direct Payments Income","3249962","201306",24/09/2012 00:00:00,-421.92,"56800","Payroll Services","REDACTED DATA","HUMAN MANAGEMENT ASSISTANCE-CLIENT ACCOUNT","4752026","http://opencorporates.com/companies/gb/4752026","815230071"
"London Borough of Redbridge","http://opendatacommunities.org/doc/london-borough-council/redbridge","6BADULTSOCIA","Adult Social Care","6COLDINCMENT","Older People (65 or over) incl. Older Mentally Ill","REV","Revenue","R4211","Older People Direct Payments","09-INCOME","Income","09C","Customer & Client Receipts","8545","Direct Payments Income","3249962","201306",24/09/2012 00:00:00,-314.77,"56800","Payroll Services","REDACTED DATA","HUMAN MANAGEMENT ASSISTANCE-CLIENT ACCOUNT","4752026","http://opencorporates.com/companies/gb/4752026","815230071"
"London Borough of Redbridge","http://opendatacommunities.org/doc/london-borough-council/redbridge","6BADULTSOCIA","Adult Social Care","6COLDINCMENT","Older People (65 or over) incl. Older Mentally Ill","REV","Revenue","R4211","Older People Direct Payments","09-INCOME","Income","09C","Customer & Client Receipts","8545","Direct Payments Income","3249962","201306",24/09/2012 00:00:00,-20.09,"56800","Payroll Services","REDACTED DATA","HUMAN MANAGEMENT ASSISTANCE-CLIENT ACCOUNT","4752026","http://opencorporates.com/companies/gb/4752026","815230071"
"London Borough of Redbridge","http://opendatacommunities.org/doc/london-borough-council/redbridge","6BADULTSOCIA","Adult Social Care","6COLDINCMENT","Older People (65 or over) incl. Older Mentally Ill","REV","Revenue","R4211","Older People Direct Payments","06-TRANSFER","Transfer Payments","06B","Social Services Clients","7053","Direct Payments","3249962","201306",24/09/2012 00:00:00,1241.2,"56800","Payroll Services","REDACTED DATA","HUMAN MANAGEMENT ASSISTANCE-CLIENT ACCOUNT","4752026","http://opencorporates.com/companies/gb/4752026","815230071"
"London Borough of Redbridge","http://opendatacommunities.org/doc/london-borough-council/redbridge","6BADULTSOCIA","Adult Social Care","6CADLEARNDIS","Adults Under 65 with Learning Disabilities","REV","Revenue","R4394","LD - Homecare","05-THIRD","Third Party Payments","05A","Independent units within the council","6502","Agency Homecare (Payments To Independent Units)","90352383","201306",10/09/2012 00:00:00,-834.56,"43419","Home Care Services","REDACTED DATA","FASTFLOW DE VERE CARE","",,""
"London Borough of Redbridge","http://opendatacommunities.org/doc/london-borough-council/redbridge","6BADULTSOCIA","Adult Social Care","6CADLEARNDIS","Adults Under 65 with Learning Disabilities","REV","Revenue","R4394","LD - Homecare","05-THIRD","Third Party Payments","05A","Independent units within the council","6502","Agency Homecare (Payments To Independent Units)","90355361","201306",24/09/2012 00:00:00,-828.04,"43419","Home Care Services","REDACTED DATA","FASTFLOW DE VERE CARE","",,""
"London Borough of Redbridge","http://opendatacommunities.org/doc/london-borough-council/redbridge","3BLEACENTFND","LEA Centrally Held School Funds","3CNONSCH","Non Schools","REV","Revenue","R2004","SEN and CD Res Placements DSG","05-THIRD","Third Party Payments","05H","Private contractors","6906","Independent Schools","60185143","201306",17/07/2012 00:00:00,-745,"68200","Schools - Special","REDACTED DATA","HOPEWELL SCHOOL","",,""
"London Borough of Redbridge","http://opendatacommunities.org/doc/london-borough-council/redbridge","5BGFHOUSING","General Fund Housing","5CHOUSADVICE","Housing Advice","REV","Revenue","R5533","Hylefords TA Refurbishment Project","02-PREMISES","Premises","02B","Energy costs","4000","Electricity","80000146","201306",03/09/2012 00:00:00,-605.75,"30586","Electricity Companies","REDACTED DATA","SCOTTISH & SOUTHERN ENERGY (SOUTHERN ELECTRIC & SWALEC)","2716495","http://opencorporates.com/companies/gb/2716495","553769603"
"London Borough of Redbridge","http://opendatacommunities.org/doc/london-borough-council/redbridge","6BADULTSOCIA","Adult Social Care","6CADPHYSDIS","Adults Under 65 with Phys Disab or Sensory Impair","REV","Revenue","R4393","PD Home Care","05-THIRD","Third Party Payments","05A","Independent units within the council","6502","Agency Homecare (Payments To Independent Units)","90351087","201306",17/08/2012 00:00:00,-725.14,"53350","Nursing Homes","REDACTED DATA","ELEANOR NURSING & SOCIALCARE LTD","4393038","http://opencorporates.com/companies/gb/4393038",""
"London Borough of Redbridge","http://opendatacommunities.org/doc/london-borough-council/redbridge","6BADULTSOCIA","Adult Social Care","6CADPHYSDIS","Adults Under 65 with Phys Disab or Sensory Impair","REV","Revenue","R4393","PD Home Care","05-THIRD","Third Party Payments","05A","Independent units within the council","6502","Agency Homecare (Payments To Independent Units)","90351089","201306",17/08/2012 00:00:00,-712.64,"53350","Nursing Homes","REDACTED DATA","ELEANOR NURSING & SOCIALCARE LTD","4393038","http://opencorporates.com/companies/gb/4393038",""
"London Borough of Redbridge","http://opendatacommunities.org/doc/london-borough-council/redbridge","6BADULTSOCIA","Adult Social Care","6CADPHYSDIS","Adults Under 65 with Phys Disab or Sensory Impair","REV","Revenue","R4393","PD Home Care","05-THIRD","Third Party Payments","05A","Independent units within the council","6502","Agency Homecare (Payments To Independent Units)","90351085","201306",10/08/2012 00:00:00,-712.64,"53350","Nursing Homes","REDACTED DATA","ELEANOR NURSING & SOCIALCARE LTD","4393038","http://opencorporates.com/companies/gb/4393038",""
"London Borough of Redbridge","http://opendatacommunities.org/doc/london-borough-council/redbridge","6BADULTSOCIA","Adult Social Care","6CADPHYSDIS","Adults Under 65 with Phys Disab or Sensory Impair","REV","Revenue","R4393","PD Home Care","05-THIRD","Third Party Payments","05A","Independent units within the council","6502","Agency Homecare (Payments To Independent Units)","90351082","201306",23/07/2012 00:00:00,-703.26,"53350","Nursing Homes","REDACTED DATA","ELEANOR NURSING & SOCIALCARE LTD","4393038","http://opencorporates.com/companies/gb/4393038",""
"London Borough of Redbridge","http://opendatacommunities.org/doc/london-borough-council/redbridge","6BADULTSOCIA","Adult Social Care","6COLDINCMENT","Older People (65 or over) incl. Older Mentally Ill","REV","Revenue","R4020","Carers Older People Direct Payments","06-TRANSFER","Transfer Payments","06B","Social Services Clients","7053","Direct Payments","3250250","201306",24/09/2012 00:00:00,-695.57,"56800","Payroll Services","REDACTED DATA","HUMAN MANAGEMENT ASSISTANCE-CLIENT ACCOUNT","4752026","http://opencorporates.com/companies/gb/4752026","815230071"
"London Borough of Redbridge","http://opendatacommunities.org/doc/london-borough-council/redbridge","6BADULTSOCIA","Adult Social Care","6CADLEARNDIS","Adults Under 65 with Learning Disabilities","REV","Revenue","R4188","LD - Residential Care","05-THIRD","Third Party Payments","05F","Voluntary associations","6802","Residential Homes","90350250","201306",21/08/2012 00:00:00,-744.06,"17020","Charities and Voluntary Organisations","REDACTED DATA","NORWOOD RAVENWOOD SERVICES LTD","",,""
"London Borough of Redbridge","http://opendatacommunities.org/doc/london-borough-council/redbridge","6BADULTSOCIA","Adult Social Care","6CADLEARNDIS","Adults Under 65 with Learning Disabilities","REV","Revenue","R4188","LD - Residential Care","09-INCOME","Income","09C","Customer & Client Receipts","8555","Accommodation Charges","90350250","201306",21/08/2012 00:00:00,55.61,"17020","Charities and Voluntary Organisations","REDACTED DATA","NORWOOD RAVENWOOD SERVICES LTD","",,""
"London Borough of Redbridge","http://opendatacommunities.org/doc/london-borough-council/redbridge","6BADULTSOCIA","Adult Social Care","6COLDINCMENT","Older People (65 or over) incl. Older Mentally Ill","REV","Revenue","R4211","Older People Direct Payments","06-TRANSFER","Transfer Payments","06B","Social Services Clients","7053","Direct Payments","3250288","201306",24/09/2012 00:00:00,-775.54,"56800","Payroll Services","REDACTED DATA","HUMAN MANAGEMENT ASSISTANCE-CLIENT ACCOUNT","4752026","http://opencorporates.com/companies/gb/4752026","815230071"
"London Borough of Redbridge","http://opendatacommunities.org/doc/london-borough-council/redbridge","6BADULTSOCIA","Adult Social Care","6COLDINCMENT","Older People (65 or over) incl. Older Mentally Ill","REV","Revenue","R4211","Older People Direct Payments","09-INCOME","Income","09C","Customer & Client Receipts","8545","Direct Payments Income","3250288","201306",24/09/2012 00:00:00,95.16,"56800","Payroll Services","REDACTED DATA","HUMAN MANAGEMENT ASSISTANCE-CLIENT ACCOUNT","4752026","http://opencorporates.com/companies/gb/4752026","815230071"
"London Borough of Redbridge","http://opendatacommunities.org/doc/london-borough-council/redbridge","6BADULTSOCIA","Adult Social Care","6CADPHYSDIS","Adults Under 65 with Phys Disab or Sensory Impair","REV","Revenue","R4393","PD Home Care","05-THIRD","Third Party Payments","05A","Independent units within the council","6502","Agency Homecare (Payments To Independent Units)","90355041","201306",12/09/2012 00:00:00,-671.37,"43419","Home Care Services","REDACTED DATA","CAREWATCH CARE SERVICES LTD","2949558","http://opencorporates.com/companies/gb/2949558","927457005"
"London Borough of Redbridge","http://opendatacommunities.org/doc/london-borough-council/redbridge","6BADULTSOCIA","Adult Social Care","6CADPHYSDIS","Adults Under 65 with Phys Disab or Sensory Impair","REV","Revenue","R4393","PD Home Care","05-THIRD","Third Party Payments","05A","Independent units within the council","6502","Agency Homecare (Payments To Independent Units)","90355156","201306",19/09/2012 00:00:00,-670.94,"43419","Home Care Services","REDACTED DATA","CAREWATCH CARE SERVICES LTD","2949558","http://opencorporates.com/companies/gb/2949558","927457005"
"London Borough of Redbridge","http://opendatacommunities.org/doc/london-borough-council/redbridge","6BADULTSOCIA","Adult Social Care","6CADPHYSDIS","Adults Under 65 with Phys Disab or Sensory Impair","REV","Revenue","R4393","PD Home Care","05-THIRD","Third Party Payments","05A","Independent units within the council","6502","Agency Homecare (Payments To Independent Units)","90352046","201306",05/09/2012 00:00:00,-670.51,"43419","Home Care Services","REDACTED DATA","CAREWATCH CARE SERVICES LTD","2949558","http://opencorporates.com/companies/gb/2949558","927457005"
"London Borough of Redbridge","http://opendatacommunities.org/doc/london-borough-council/redbridge","6BADULTSOCIA","Adult Social Care","6COTHADSERV","Other Adult Services","REV","Revenue","R4389","PCT Older Person Home Care","05-THIRD","Third Party Payments","05A","Independent units within the council","6502","Agency Homecare (Payments To Independent Units)","90354387","201306",13/09/2012 00:00:00,-601.72,"53280","Nursing Agencies","REDACTED DATA","IMMACULATE HEALTHCARE SERVICES LIMITED","",,""
"London Borough of Redbridge","http://opendatacommunities.org/doc/london-borough-council/redbridge","9BNONBVO","Outside the BVACOP Objective Structure","9CNONBVO","Outside the BVACOP Objective Structure","REV","Revenue","R7704","Veh Contracted Servs","03-TRANSPORT","Transport","03C","Contract hire and operating leases","5205","Coaches - General","634123","201306",10/09/2012 00:00:00,-500,"51250","Mini Cabs","REDACTED DATA","ATLAS TRANSPORT SERVICES LTD","5024168","http://opencorporates.com/companies/gb/5024168","832974502"
"London Borough of Redbridge","http://opendatacommunities.org/doc/london-borough-council/redbridge","6BADULTSOCIA","Adult Social Care","6COLDINCMENT","Older People (65 or over) incl. Older Mentally Ill","REV","Revenue","R4020","Carers Older People Direct Payments","06-TRANSFER","Transfer Payments","06B","Social Services Clients","7053","Direct Payments","3250028","201306",24/09/2012 00:00:00,-600,"56800","Payroll Services","REDACTED DATA","HUMAN MANAGEMENT ASSISTANCE-CLIENT ACCOUNT","4752026","http://opencorporates.com/companies/gb/4752026","815230071"
"London Borough of Redbridge","http://opendatacommunities.org/doc/london-borough-council/redbridge","6BADULTSOCIA","Adult Social Care","6COLDINCMENT","Older People (65 or over) incl. Older Mentally Ill","REV","Revenue","R4020","Carers Older People Direct Payments","06-TRANSFER","Transfer Payments","06B","Social Services Clients","7053","Direct Payments","3250028","201306",24/09/2012 00:00:00,46.4,"56800","Payroll Services","REDACTED DATA","HUMAN MANAGEMENT ASSISTANCE-CLIENT ACCOUNT","4752026","http://opencorporates.com/companies/gb/4752026","815230071"
"London Borough of Redbridge","http://opendatacommunities.org/doc/london-borough-council/redbridge","6BADULTSOCIA","Adult Social Care","6COTHADSERV","Other Adult Services","REV","Revenue","R4389","PCT Older Person Home Care","05-THIRD","Third Party Payments","05A","Independent units within the council","6502","Agency Homecare (Payments To Independent Units)","90352405","201306",10/09/2012 00:00:00,-541.16,"43419","Home Care Services","REDACTED DATA","FASTFLOW DE VERE CARE","",,""
"London Borough of Redbridge","http://opendatacommunities.org/doc/london-borough-council/redbridge","6BADULTSOCIA","Adult Social Care","6COTHADSERV","Other Adult Services","REV","Revenue","R4389","PCT Older Person Home Care","05-THIRD","Third Party Payments","05A","Independent units within the council","6502","Agency Homecare (Payments To Independent Units)","90350885","201306",12/04/2012 00:00:00,-541.16,"53280","Nursing Agencies","REDACTED DATA","IMMACULATE HEALTHCARE SERVICES LIMITED","",,""
"London Borough of Redbridge","http://opendatacommunities.org/doc/london-borough-council/redbridge","6BADULTSOCIA","Adult Social Care","6COTHADSERV","Other Adult Services","REV","Revenue","R4389","PCT Older Person Home Care","05-THIRD","Third Party Payments","05A","Independent units within the council","6502","Agency Homecare (Payments To Independent Units)","90355222","201306",11/09/2012 00:00:00,-529.46,"43419","Home Care Services","REDACTED DATA","FASTFLOW DE VERE CARE","",,""
"London Borough of Redbridge","http://opendatacommunities.org/doc/london-borough-council/redbridge","6BADULTSOCIA","Adult Social Care","6COLDINCMENT","Older People (65 or over) incl. Older Mentally Ill","REV","Revenue","R4385","OP Nursing","05-THIRD","Third Party Payments","05H","Private contractors","6909","Nursing Homes","90356291","201306",12/09/2012 00:00:00,-1058.98,"53350","Nursing Homes","REDACTED DATA","LIFE STYLE CARE (2011) PLC","7709694","http://opencorporates.com/companies/gb/7709694",""
"London Borough of Redbridge","http://opendatacommunities.org/doc/london-borough-council/redbridge","6BADULTSOCIA","Adult Social Care","6COLDINCMENT","Older People (65 or over) incl. Older Mentally Ill","REV","Revenue","R4385","OP Nursing","09-INCOME","Income","09C","Customer & Client Receipts","8557","Nursing Home Charges","90356291","201306",12/09/2012 00:00:00,255.43,"53350","Nursing Homes","REDACTED DATA","LIFE STYLE CARE (2011) PLC","7709694","http://opencorporates.com/companies/gb/7709694",""
"London Borough of Redbridge","http://opendatacommunities.org/doc/london-borough-council/redbridge","6BADULTSOCIA","Adult Social Care","6COLDINCMENT","Older People (65 or over) incl. Older Mentally Ill","REV","Revenue","R4385","OP Nursing","05-THIRD","Third Party Payments","05H","Private contractors","6909","Nursing Homes","90356291","201306",12/09/2012 00:00:00,282.39,"53350","Nursing Homes","REDACTED DATA","LIFE STYLE CARE (2011) PLC","7709694","http://opencorporates.com/companies/gb/7709694",""
"London Borough of Redbridge","http://opendatacommunities.org/doc/london-borough-council/redbridge","6BADULTSOCIA","Adult Social Care","6COLDINCMENT","Older People (65 or over) incl. Older Mentally Ill","REV","Revenue","R4391","OP Home Care","05-THIRD","Third Party Payments","05A","Independent units within the council","6502","Agency Homecare (Payments To Independent Units)","90352344","201306",10/09/2012 00:00:00,-515.08,"43419","Home Care Services","REDACTED DATA","FASTFLOW DE VERE CARE","",,""
"London Borough of Redbridge","http://opendatacommunities.org/doc/london-borough-council/redbridge","6BADULTSOCIA","Adult Social Care","6COTHADSERV","Other Adult Services","REV","Revenue","R4389","PCT Older Person Home Care","05-THIRD","Third Party Payments","05A","Independent units within the council","6502","Agency Homecare (Payments To Independent Units)","90350904","201306",24/08/2012 00:00:00,500.12,"53280","Nursing Agencies","REDACTED DATA","IMMACULATE HEALTHCARE SERVICES LIMITED","",,""
"London Borough of Redbridge","http://opendatacommunities.org/doc/london-borough-council/redbridge","6BADULTSOCIA","Adult Social Care","6COTHADSERV","Other Adult Services","REV","Revenue","R4389","PCT Older Person Home Care","05-THIRD","Third Party Payments","05A","Independent units within the council","6502","Agency Homecare (Payments To Independent Units)","90354376","201306",13/09/2012 00:00:00,500.12,"53280","Nursing Agencies","REDACTED DATA","IMMACULATE HEALTHCARE SERVICES LIMITED","",,""
"London Borough of Redbridge","http://opendatacommunities.org/doc/london-borough-council/redbridge","6BADULTSOCIA","Adult Social Care","6COTHADSERV","Other Adult Services","REV","Revenue","R4389","PCT Older Person Home Care","05-THIRD","Third Party Payments","05A","Independent units within the council","6502","Agency Homecare (Payments To Independent Units)","90350933","201306",30/08/2012 00:00:00,500.12,"53280","Nursing Agencies","REDACTED DATA","IMMACULATE HEALTHCARE SERVICES LIMITED","",,""
"London Borough of Redbridge","http://opendatacommunities.org/doc/london-borough-council/redbridge","6BADULTSOCIA","Adult Social Care","6CADPHYSDIS","Adults Under 65 with Phys Disab or Sensory Impair","REV","Revenue","R4214","PD Direct Payments","09-INCOME","Income","09C","Customer & Client Receipts","8545","Direct Payments Income","3250015","201306",24/09/2012 00:00:00,-79.6,"90005","Home Care Services DP","REDACTED DATA","REDACTED DATA","",,""
"London Borough of Redbridge","http://opendatacommunities.org/doc/london-borough-council/redbridge","6BADULTSOCIA","Adult Social Care","6CADPHYSDIS","Adults Under 65 with Phys Disab or Sensory Impair","REV","Revenue","R4214","PD Direct Payments","06-TRANSFER","Transfer Payments","06B","Social Services Clients","7053","Direct Payments","3250015","201306",24/09/2012 00:00:00,580,"90005","Home Care Services DP","REDACTED DATA","REDACTED DATA","",,""
"London Borough of Redbridge","http://opendatacommunities.org/doc/london-borough-council/redbridge","9BNONBVO","Outside the BVACOP Objective Structure","9CNONBVO","Outside the BVACOP Objective Structure","REV","Revenue","R5222","Home Ownership Team","04-SUPPLIES","Supplies And Services","04H","Grants and subscriptions","5954","Professional Fees","70045319","201306",31/08/2012 00:00:00,210,"0","Not Classified","REDACTED DATA","BATCHELORS SOLICITORS","",,"238505069"
"London Borough of Redbridge","http://opendatacommunities.org/doc/london-borough-council/redbridge","9BNONBVO","Outside the BVACOP Objective Structure","9CNONBVO","Outside the BVACOP Objective Structure","REV","Revenue","R5222","Home Ownership Team","04-SUPPLIES","Supplies And Services","04H","Grants and subscriptions","5954","Professional Fees","70045319","201306",31/08/2012 00:00:00,249,"0","Not Classified","REDACTED DATA","BATCHELORS SOLICITORS","",,"238505069"
"London Borough of Redbridge","http://opendatacommunities.org/doc/london-borough-council/redbridge","6BADULTSOCIA","Adult Social Care","6CADLEARNDIS","Adults Under 65 with Learning Disabilities","REV","Revenue","R4293","Woodbine Club House","01-EMPLOYEES","Employees","01A","Direct employee expenses","4","Agency Staff - Pay","60184752","201306",09/09/2012 00:00:00,417.55,"31230","Employment & Recruitment Agencies","REDACTED DATA","TAYLOR GORDON & CO LTD T/AS PLAN PERSONNEL & PLAN CARE","",,"190680845"
"London Borough of Redbridge","http://opendatacommunities.org/doc/london-borough-council/redbridge","6BSOCIALSERV","Social Services","6CCHILLOOKED","Children Looked After","REV","Revenue","R2140","CQ and F - Safeguarding and Care Planning Soc Care","05-THIRD","Third Party Payments","05A","Independent units within the council","6513","Agency & Contracted Services","60185573","201306",03/09/2012 00:00:00,417.77,"79980","Training Services","REDACTED DATA","RECONSTRUCT LTD","3000878","http://opencorporates.com/companies/gb/3000878","668052912"
"London Borough of Redbridge","http://opendatacommunities.org/doc/london-borough-council/redbridge","6BSOCIALSERV","Social Services","6CCHILLOOKED","Children Looked After","REV","Revenue","R2140","CQ and F - Safeguarding and Care Planning Soc Care","05-THIRD","Third Party Payments","05A","Independent units within the council","6513","Agency & Contracted Services","60185574","201306",30/08/2012 00:00:00,417.77,"79980","Training Services","REDACTED DATA","RECONSTRUCT LTD","3000878","http://opencorporates.com/companies/gb/3000878","668052912"
"London Borough of Redbridge","http://opendatacommunities.org/doc/london-borough-council/redbridge","6BADULTSOCIA","Adult Social Care","6CADPHYSDIS","Adults Under 65 with Phys Disab or Sensory Impair","REV","Revenue","R4138","Integrated Community Equipment Services (ICES)","04-SUPPLIES","Supplies And Services","04K","Miscellaneous expenses","6239","Occupational Therapy Equip","3249518","201306",01/09/2012 00:00:00,417.86,"17440","Chemists - Dispensing","REDACTED DATA","JAN-PHARMA LTD T/A CHURCHFIELD PHARMACY","5837560","http://opencorporates.com/companies/gb/5837560","887849046"
"London Borough of Redbridge","http://opendatacommunities.org/doc/london-borough-council/redbridge","1BOTHEROPI&E","Other Operating Income & Expenditure","1CTRADSURDEF","Trading Account Surpluses & Deficits","REV","Revenue","R9003","One Stop Shop","04-SUPPLIES","Supplies And Services","04D","Printing, stationery and general office expenses","5703","Reprographics","80000187","201306",09/09/2012 00:00:00,208.96,"57614","Photocopiers","REDACTED DATA","CANON UK LTD","1264300","http://opencorporates.com/companies/gb/1264300","523797128"
"London Borough of Redbridge","http://opendatacommunities.org/doc/london-borough-council/redbridge","1BOTHEROPI&E","Other Operating Income & Expenditure","1CTRADSURDEF","Trading Account Surpluses & Deficits","REV","Revenue","R9003","One Stop Shop","04-SUPPLIES","Supplies And Services","04D","Printing, stationery and general office expenses","5703","Reprographics","80000187","201306",09/09/2012 00:00:00,208.96,"57614","Photocopiers","REDACTED DATA","CANON UK LTD","1264300","http://opencorporates.com/companies/gb/1264300","523797128"
"London Borough of Redbridge","http://opendatacommunities.org/doc/london-borough-council/redbridge","4BMANGT&SUPP","Management & Support Services","4CHIGHRDSTR","Highways/Roads (Structural)","REV","Revenue","R7092","Footway Crossing Works","05-THIRD","Third Party Payments","05H","Private contractors","6915","Contractor Payments","3249338","201306",19/09/2012 00:00:00,418.04,"18632","Civil Engineers","REDACTED DATA","KENSON CONTRACTORS BENINGTON LTD","1314691","http://opencorporates.com/companies/gb/1314691","301629589"
"London Borough of Redbridge","http://opendatacommunities.org/doc/london-borough-council/redbridge","4BMANGT&SUPP","Management & Support Services","4CHIGHRDROUT","Highways/Roads (Routine)","REV","Revenue","R7070","Reactive Maintenance","05-THIRD","Third Party Payments","05H","Private contractors","6915","Contractor Payments","3247500","201306",06/09/2012 00:00:00,418.16,"18632","Civil Engineers","REDACTED DATA","KENSON CONTRACTORS BENINGTON LTD","1314691","http://opencorporates.com/companies/gb/1314691","301629589"
"London Borough of Redbridge","http://opendatacommunities.org/doc/london-borough-council/redbridge","6BSOCIALSERV","Social Services","6COLDINCMENT","Older People (65 or over) incl. Older Mentally Ill","REV","Revenue","R4059","Elderly Mentally ill Home Care","05-THIRD","Third Party Payments","05A","Independent units within the council","6502","Agency Homecare (Payments To Independent Units)","90355396","201306",24/09/2012 00:00:00,502.04,"43419","Home Care Services","REDACTED DATA","FASTFLOW DE VERE CARE","",,""
"London Borough of Redbridge","http://opendatacommunities.org/doc/london-borough-council/redbridge","6BSOCIALSERV","Social Services","6COLDINCMENT","Older People (65 or over) incl. Older Mentally Ill","REV","Revenue","R4059","Elderly Mentally ill Home Care","05-THIRD","Third Party Payments","05A","Independent units within the council","6502","Agency Homecare (Payments To Independent Units)","90352322","201306",07/09/2012 00:00:00,502.04,"43419","Home Care Services","REDACTED DATA","FASTFLOW DE VERE CARE","",,""
"London Borough of Redbridge","http://opendatacommunities.org/doc/london-borough-council/redbridge","6BSOCIALSERV","Social Services","6COLDINCMENT","Older People (65 or over) incl. Older Mentally Ill","REV","Revenue","R4059","Elderly Mentally ill Home Care","05-THIRD","Third Party Payments","05A","Independent units within the council","6502","Agency Homecare (Payments To Independent Units)","90355303","201306",20/09/2012 00:00:00,502.04,"43419","Home Care Services","REDACTED DATA","FASTFLOW DE VERE CARE","",,""
"London Borough of Redbridge","http://opendatacommunities.org/doc/london-borough-council/redbridge","6BSOCIALSERV","Social Services","6COLDINCMENT","Older People (65 or over) incl. Older Mentally Ill","REV","Revenue","R4059","Elderly Mentally ill Home Care","05-THIRD","Third Party Payments","05A","Independent units within the council","6502","Agency Homecare (Payments To Independent Units)","90352419","201306",10/09/2012 00:00:00,502.04,"43419","Home Care Services","REDACTED DATA","FASTFLOW DE VERE CARE","",,""
"London Borough of Redbridge","http://opendatacommunities.org/doc/london-borough-council/redbridge","6BSOCIALSERV","Social Services","6CCHILLOOKED","Children Looked After","REV","Revenue","R2140","CQ and F - Safeguarding and Care Planning Soc Care","05-THIRD","Third Party Payments","05A","Independent units within the council","6513","Agency & Contracted Services","60185230","201306",30/07/2012 00:00:00,418.54,"79980","Training Services","REDACTED DATA","RECONSTRUCT LTD","3000878","http://opencorporates.com/companies/gb/3000878","668052912"
"London Borough of Redbridge","http://opendatacommunities.org/doc/london-borough-council/redbridge","2BENVIRONMEN","Environmental Services","2CSTCLEANS","Street Cleansing (not chargeable to Highways)","REV","Revenue","R6111","Cleans-Fly Tipping","05-THIRD","Third Party Payments","05A","Independent units within the council","3009","Env. Prot. Act","60184287","201306",07/09/2012 00:00:00,420,"17150","Recycling and Disposal - Chemicals","REDACTED DATA","P & T HAULAGE LTD","4199094","http://opencorporates.com/companies/gb/4199094","672812133"
"London Borough of Redbridge","http://opendatacommunities.org/doc/london-borough-council/redbridge","9BNONBVO","Outside the BVACOP Objective Structure","9CNONBVO","Outside the BVACOP Objective Structure","REV","Revenue","R5131","Repairs and Maintenance - MFS","02-PREMISES","Premises","02A","Repairs, alteration and maintenance of buildings","3038","Service Repairs","70044980","201306",17/07/2012 00:00:00,420,"16111","Catering Equipment","REDACTED DATA","J SCOTT & SONS  LTD","",,"354241082"
"London Borough of Redbridge","http://opendatacommunities.org/doc/london-borough-council/redbridge","6BADULTSOCIA","Adult Social Care","6COLDINCMENT","Older People (65 or over) incl. Older Mentally Ill","REV","Revenue","R4391","OP Home Care","05-THIRD","Third Party Payments","05A","Independent units within the council","6502","Agency Homecare (Payments To Independent Units)","90355277","201306",20/09/2012 00:00:00,504.15,"43419","Home Care Services","REDACTED DATA","FASTFLOW DE VERE CARE","",,""
"London Borough of Redbridge","http://opendatacommunities.org/doc/london-borough-council/redbridge","4BMANGT&SUPP","Management & Support Services","4CHIGHRDROUT","Highways/Roads (Routine)","REV","Revenue","R7068","Signs - Schedule 2","05-THIRD","Third Party Payments","05H","Private contractors","6915","Contractor Payments","3247719","201306",06/09/2012 00:00:00,422.16,"21555","Construction Contractors - General","REDACTED DATA","MAY GURNEY LIMITED","873179","http://opencorporates.com/companies/gb/873179","105540018"
"London Borough of Redbridge","http://opendatacommunities.org/doc/london-borough-council/redbridge","4BMANGT&SUPP","Management & Support Services","4CHIGHRDROUT","Highways/Roads (Routine)","REV","Revenue","R7068","Signs - Schedule 2","05-THIRD","Third Party Payments","05H","Private contractors","6915","Contractor Payments","3250641","201306",24/09/2012 00:00:00,422.16,"21555","Construction Contractors - General","REDACTED DATA","MAY GURNEY LIMITED","873179","http://opencorporates.com/companies/gb/873179","105540018"
"London Borough of Redbridge","http://opendatacommunities.org/doc/london-borough-council/redbridge","6BSOCIALSERV","Social Services","6CCHILLOOKED","Children Looked After","REV","Revenue","R2117","SEN and CD Care and Support Packages Social Care","06-TRANSFER","Transfer Payments","06B","Social Services Clients","7053","Direct Payments","70045837","201306",21/09/2012 00:00:00,508,"90005","Home Care Services DP","REDACTED DATA","REDACTED DATA","",,""
"London Borough of Redbridge","http://opendatacommunities.org/doc/london-borough-council/redbridge","6BADULTSOCIA","Adult Social Care","6CADLEARNDIS","Adults Under 65 with Learning Disabilities","REV","Revenue","R4394","LD - Homecare","05-THIRD","Third Party Payments","05A","Independent units within the council","6502","Agency Homecare (Payments To Independent Units)","90352290","201306",07/09/2012 00:00:00,508.56,"43419","Home Care Services","REDACTED DATA","FASTFLOW DE VERE CARE","",,""
"London Borough of Redbridge","http://opendatacommunities.org/doc/london-borough-council/redbridge","4BMANGT&SUPP","Management & Support Services","4CHIGHRDROUT","Highways/Roads (Routine)","REV","Revenue","R7070","Reactive Maintenance","05-THIRD","Third Party Payments","05H","Private contractors","6915","Contractor Payments","3250502","201306",24/09/2012 00:00:00,423.85,"18632","Civil Engineers","REDACTED DATA","KENSON CONTRACTORS BENINGTON LTD","1314691","http://opencorporates.com/companies/gb/1314691","301629589"
"London Borough of Redbridge","http://opendatacommunities.org/doc/london-borough-council/redbridge","7BCDC","Corporate & Democratic Core","7CCORPMGT","Corporate Management","REV","Revenue","R9804","Members Exp/Allowances","04-SUPPLIES","Supplies And Services","04F","Communications and computing","5858","Phones","3250724","201306",19/09/2012 00:00:00,423.89,"76510","Telecommunication Services","REDACTED DATA","NTL/VIRGIN MEDIA PAYMENTS LTD(MAIN ACCT)","1785381","http://opencorporates.com/companies/gb/1785381","591819014"
"London Borough of Redbridge","http://opendatacommunities.org/doc/london-borough-council/redbridge","2BENVIRONMEN","Environmental Services","2CCOMSAFCRIM","Community Safety (Crime Reduction)","REV","Revenue","R9880","PVE","01-EMPLOYEES","Employees","01B","Indirect employee expenses","2403","External Training","60185736","201306",28/09/2012 00:00:00,424,"79980","Training Services","REDACTED DATA","PUBLIC POLICY EXCHANGE LTD","7350384","http://opencorporates.com/companies/gb/7350384","998255749"
"London Borough of Redbridge","http://opendatacommunities.org/doc/london-borough-council/redbridge","4BMANGT&SUPP","Management & Support Services","4CHIGHRDROUT","Highways/Roads (Routine)","REV","Revenue","R7070","Reactive Maintenance","05-THIRD","Third Party Payments","05H","Private contractors","6915","Contractor Payments","3248433","201306",12/09/2012 00:00:00,424.04,"18632","Civil Engineers","REDACTED DATA","KENSON CONTRACTORS BENINGTON LTD","1314691","http://opencorporates.com/companies/gb/1314691","301629589"
"London Borough of Redbridge","http://opendatacommunities.org/doc/london-borough-council/redbridge","6BADULTSOCIA","Adult Social Care","6CCHILLOOKED","Children Looked After","REV","Revenue","R2119","CLAFH - Supportive Accommodation","05-THIRD","Third Party Payments","05H","Private contractors","6910","Care Packages","3250369","201306",15/09/2012 00:00:00,424.29,"43419","Home Care Services","REDACTED DATA","LCS PARTNERSHIPS LTD (LONDON CARE SOLUTIONS)","6820538","http://opencorporates.com/companies/gb/6820538","975528279"
"London Borough of Redbridge","http://opendatacommunities.org/doc/london-borough-council/redbridge","2BENVIRONMEN","Environmental Services","2CWASTECOLLN","Waste Collection","REV","Revenue","R6206","Recycling - Flats","04-SUPPLIES","Supplies And Services","04A","Equipment, furniture and materials","5510","Materials","60185001","201306",07/08/2012 00:00:00,425,"42000","Hardware","REDACTED DATA","TOOLBANK","529964","http://opencorporates.com/companies/gb/529964","202934783"
"London Borough of Redbridge","http://opendatacommunities.org/doc/london-borough-council/redbridge","4BMANGT&SUPP","Management & Support Services","4CHIGHRDROUT","Highways/Roads (Routine)","REV","Revenue","R7070","Reactive Maintenance","05-THIRD","Third Party Payments","05H","Private contractors","6915","Contractor Payments","3250550","201306",24/09/2012 00:00:00,425.34,"18632","Civil Engineers","REDACTED DATA","KENSON CONTRACTORS BENINGTON LTD","1314691","http://opencorporates.com/companies/gb/1314691","301629589"
"London Borough of Redbridge","http://opendatacommunities.org/doc/london-borough-council/redbridge","6BADULTSOCIA","Adult Social Care","6CADPHYSDIS","Adults Under 65 with Phys Disab or Sensory Impair","REV","Revenue","R4214","PD Direct Payments","06-TRANSFER","Transfer Payments","06B","Social Services Clients","7053","Direct Payments","3250138","201306",24/09/2012 00:00:00,510.4,"56800","Payroll Services","REDACTED DATA","HUMAN MANAGEMENT ASSISTANCE-CLIENT ACCOUNT","4752026","http://opencorporates.com/companies/gb/4752026","815230071"
"London Borough of Redbridge","http://opendatacommunities.org/doc/london-borough-council/redbridge","6BADULTSOCIA","Adult Social Care","6CADPHYSDIS","Adults Under 65 with Phys Disab or Sensory Impair","REV","Revenue","R4214","PD Direct Payments","06-TRANSFER","Transfer Payments","06B","Social Services Clients","7053","Direct Payments","3249888","201306",24/09/2012 00:00:00,510.4,"56800","Payroll Services","REDACTED DATA","HUMAN MANAGEMENT ASSISTANCE-CLIENT ACCOUNT","4752026","http://opencorporates.com/companies/gb/4752026","815230071"
"London Borough of Redbridge","http://opendatacommunities.org/doc/london-borough-council/redbridge","6BADULTSOCIA","Adult Social Care","6CADPHYSDIS","Adults Under 65 with Phys Disab or Sensory Impair","REV","Revenue","R4214","PD Direct Payments","06-TRANSFER","Transfer Payments","06B","Social Services Clients","7053","Direct Payments","3250060","201306",24/09/2012 00:00:00,510.4,"56800","Payroll Services","REDACTED DATA","HUMAN MANAGEMENT ASSISTANCE-CLIENT ACCOUNT","4752026","http://opencorporates.com/companies/gb/4752026","815230071"
"London Borough of Redbridge","http://opendatacommunities.org/doc/london-borough-council/redbridge","6BADULTSOCIA","Adult Social Care","6CADLEARNDIS","Adults Under 65 with Learning Disabilities","REV","Revenue","R4394","LD - Homecare","05-THIRD","Third Party Payments","05A","Independent units within the council","6502","Agency Homecare (Payments To Independent Units)","90354190","201306",20/09/2012 00:00:00,510.48,"31230","Employment & Recruitment Agencies","REDACTED DATA","SHARED CARE SERVICES LTD","4704680","http://opencorporates.com/companies/gb/4704680",""
"London Borough of Redbridge","http://opendatacommunities.org/doc/london-borough-council/redbridge","6BADULTSOCIA","Adult Social Care","6CADLEARNDIS","Adults Under 65 with Learning Disabilities","REV","Revenue","R4394","LD - Homecare","05-THIRD","Third Party Payments","05A","Independent units within the council","6502","Agency Homecare (Payments To Independent Units)","90354189","201306",20/09/2012 00:00:00,510.48,"31230","Employment & Recruitment Agencies","REDACTED DATA","SHARED CARE SERVICES LTD","4704680","http://opencorporates.com/companies/gb/4704680",""
"London Borough of Redbridge","http://opendatacommunities.org/doc/london-borough-council/redbridge","6BADULTSOCIA","Adult Social Care","6CADLEARNDIS","Adults Under 65 with Learning Disabilities","REV","Revenue","R4394","LD - Homecare","05-THIRD","Third Party Payments","05A","Independent units within the council","6502","Agency Homecare (Payments To Independent Units)","90354188","201306",20/09/2012 00:00:00,510.48,"31230","Employment & Recruitment Agencies","REDACTED DATA","SHARED CARE SERVICES LTD","4704680","http://opencorporates.com/companies/gb/4704680",""
"London Borough of Redbridge","http://opendatacommunities.org/doc/london-borough-council/redbridge","6BADULTSOCIA","Adult Social Care","6CADLEARNDIS","Adults Under 65 with Learning Disabilities","REV","Revenue","R4394","LD - Homecare","05-THIRD","Third Party Payments","05A","Independent units within the council","6502","Agency Homecare (Payments To Independent Units)","90354187","201306",20/09/2012 00:00:00,510.48,"31230","Employment & Recruitment Agencies","REDACTED DATA","SHARED CARE SERVICES LTD","4704680","http://opencorporates.com/companies/gb/4704680",""
"London Borough of Redbridge","http://opendatacommunities.org/doc/london-borough-council/redbridge","4BTRANSPORT","Transport Planning, Policy & Strategy","4CMANGT&SUPP","Management & Support Services","REV","Revenue","R7006","Lighting sched 2 Cartledge","05-THIRD","Third Party Payments","05H","Private contractors","6915","Contractor Payments","3247803","201306",06/09/2012 00:00:00,425.44,"21555","Construction Contractors - General","REDACTED DATA","MAY GURNEY LIMITED","873179","http://opencorporates.com/companies/gb/873179","105540018"
"London Borough of Redbridge","http://opendatacommunities.org/doc/london-borough-council/redbridge","4BMANGT&SUPP","Management & Support Services","4CHIGHRDROUT","Highways/Roads (Routine)","REV","Revenue","R7070","Reactive Maintenance","05-THIRD","Third Party Payments","05H","Private contractors","6915","Contractor Payments","3250521","201306",24/09/2012 00:00:00,425.47,"18632","Civil Engineers","REDACTED DATA","KENSON CONTRACTORS BENINGTON LTD","1314691","http://opencorporates.com/companies/gb/1314691","301629589"
"London Borough of Redbridge","http://opendatacommunities.org/doc/london-borough-council/redbridge","4BMANGT&SUPP","Management & Support Services","4CHIGHRDROUT","Highways/Roads (Routine)","REV","Revenue","R7070","Reactive Maintenance","05-THIRD","Third Party Payments","05H","Private contractors","6915","Contractor Payments","3248360","201306",12/09/2012 00:00:00,425.51,"18632","Civil Engineers","REDACTED DATA","KENSON CONTRACTORS BENINGTON LTD","1314691","http://opencorporates.com/companies/gb/1314691","301629589"
"London Borough of Redbridge","http://opendatacommunities.org/doc/london-borough-council/redbridge","6BADULTSOCIA","Adult Social Care","6COLDINCMENT","Older People (65 or over) incl. Older Mentally Ill","REV","Revenue","R4391","OP Home Care","05-THIRD","Third Party Payments","05A","Independent units within the council","6502","Agency Homecare (Payments To Independent Units)","90350502","201306",29/08/2012 00:00:00,510.88,"44166","Housing Associations, Societies, Trusts and Co-operatives","REDACTED DATA","ANCHOR TRUST(OAKLEA LODGE)","3147851","http://opencorporates.com/companies/gb/3147851","490992502"
"London Borough of Redbridge","http://opendatacommunities.org/doc/london-borough-council/redbridge","6BSOCIALSERV","Social Services","6CCHILLOOKED","Children Looked After","REV","Revenue","R2132","CLAFH - Asylum Seekers Non Grant Funded","06-TRANSFER","Transfer Payments","06B","Social Services Clients","7055","Habitual Residents","60184889","201306",14/09/2012 00:00:00,511.3,"1266","Accommodation Agencies - Residential","REDACTED DATA","EAST LIVING","",,""
"London Borough of Redbridge","http://opendatacommunities.org/doc/london-borough-council/redbridge","9BNONBVO","Outside the BVACOP Objective Structure","9CNONBVO","Outside the BVACOP Objective Structure","REV","Revenue","R0029","Chief Executive","04-SUPPLIES","Supplies And Services","04A","Equipment, furniture and materials","5503","Equipment Rentals","60183422","201306",16/08/2012 00:00:00,428.02,"57614","Photocopiers","REDACTED DATA","RICOH UK LTD","473236","http://opencorporates.com/companies/gb/473236","524161280"
"London Borough of Redbridge","http://opendatacommunities.org/doc/london-borough-council/redbridge","6BADULTSOCIA","Adult Social Care","6COLDINCMENT","Older People (65 or over) incl. Older Mentally Ill","REV","Revenue","R4211","Older People Direct Payments","09-INCOME","Income","09C","Customer & Client Receipts","8545","Direct Payments Income","3250243","201306",24/09/2012 00:00:00,-297.52,"56800","Payroll Services","REDACTED DATA","HUMAN MANAGEMENT ASSISTANCE-CLIENT ACCOUNT","4752026","http://opencorporates.com/companies/gb/4752026","815230071"
"London Borough of Redbridge","http://opendatacommunities.org/doc/london-borough-council/redbridge","6BADULTSOCIA","Adult Social Care","6COLDINCMENT","Older People (65 or over) incl. Older Mentally Ill","REV","Revenue","R4211","Older People Direct Payments","06-TRANSFER","Transfer Payments","06B","Social Services Clients","7053","Direct Payments","3250243","201306",24/09/2012 00:00:00,812,"56800","Payroll Services","REDACTED DATA","HUMAN MANAGEMENT ASSISTANCE-CLIENT ACCOUNT","4752026","http://opencorporates.com/companies/gb/4752026","815230071"
"London Borough of Redbridge","http://opendatacommunities.org/doc/london-borough-council/redbridge","6BADULTSOCIA","Adult Social Care","6COLDINCMENT","Older People (65 or over) incl. Older Mentally Ill","REV","Revenue","R4211","Older People Direct Payments","09-INCOME","Income","09C","Customer & Client Receipts","8545","Direct Payments Income","3250140","201306",24/09/2012 00:00:00,-53.44,"56800","Payroll Services","REDACTED DATA","HUMAN MANAGEMENT ASSISTANCE-CLIENT ACCOUNT","4752026","http://opencorporates.com/companies/gb/4752026","815230071"
"London Borough of Redbridge","http://opendatacommunities.org/doc/london-borough-council/redbridge","6BADULTSOCIA","Adult Social Care","6COLDINCMENT","Older People (65 or over) incl. Older Mentally Ill","REV","Revenue","R4211","Older People Direct Payments","06-TRANSFER","Transfer Payments","06B","Social Services Clients","7053","Direct Payments","3250140","201306",24/09/2012 00:00:00,568.44,"56800","Payroll Services","REDACTED DATA","HUMAN MANAGEMENT ASSISTANCE-CLIENT ACCOUNT","4752026","http://opencorporates.com/companies/gb/4752026","815230071"
"London Borough of Redbridge","http://opendatacommunities.org/doc/london-borough-council/redbridge","6BADULTSOCIA","Adult Social Care","6COLDINCMENT","Older People (65 or over) incl. Older Mentally Ill","REV","Revenue","R4391","OP Home Care","05-THIRD","Third Party Payments","05A","Independent units within the council","6502","Agency Homecare (Payments To Independent Units)","90352343","201306",10/09/2012 00:00:00,515.08,"43419","Home Care Services","REDACTED DATA","FASTFLOW DE VERE CARE","",,""
"London Borough of Redbridge","http://opendatacommunities.org/doc/london-borough-council/redbridge","6BADULTSOCIA","Adult Social Care","6COLDINCMENT","Older People (65 or over) incl. Older Mentally Ill","REV","Revenue","R4391","OP Home Care","05-THIRD","Third Party Payments","05A","Independent units within the council","6502","Agency Homecare (Payments To Independent Units)","90352884","201306",30/08/2012 00:00:00,515.21,"43419","Home Care Services","REDACTED DATA","ENARA LTD (ENARA COMMUNITY CARE)","65455420","http://opencorporates.com/companies/gb/65455420",""
"London Borough of Redbridge","http://opendatacommunities.org/doc/london-borough-council/redbridge","6BADULTSOCIA","Adult Social Care","6COTHADSERV","Other Adult Services","REV","Revenue","R4389","PCT Older Person Home Care","05-THIRD","Third Party Payments","05A","Independent units within the council","6502","Agency Homecare (Payments To Independent Units)","90350940","201306",30/08/2012 00:00:00,515.24,"53280","Nursing Agencies","REDACTED DATA","IMMACULATE HEALTHCARE SERVICES LIMITED","",,""
"London Borough of Redbridge","http://opendatacommunities.org/doc/london-borough-council/redbridge","6BADULTSOCIA","Adult Social Care","6COTHADSERV","Other Adult Services","REV","Revenue","R4389","PCT Older Person Home Care","05-THIRD","Third Party Payments","05A","Independent units within the council","6502","Agency Homecare (Payments To Independent Units)","90355381","201306",24/09/2012 00:00:00,515.34,"43419","Home Care Services","REDACTED DATA","FASTFLOW DE VERE CARE","",,""
"London Borough of Redbridge","http://opendatacommunities.org/doc/london-borough-council/redbridge","6BADULTSOCIA","Adult Social Care","6COTHADSERV","Other Adult Services","REV","Revenue","R4389","PCT Older Person Home Care","05-THIRD","Third Party Payments","05A","Independent units within the council","6502","Agency Homecare (Payments To Independent Units)","90355226","201306",19/09/2012 00:00:00,516.42,"43419","Home Care Services","REDACTED DATA","FASTFLOW DE VERE CARE","",,""
"London Borough of Redbridge","http://opendatacommunities.org/doc/london-borough-council/redbridge","6BADULTSOCIA","Adult Social Care","6COLDINCMENT","Older People (65 or over) incl. Older Mentally Ill","REV","Revenue","R4391","OP Home Care","05-THIRD","Third Party Payments","05A","Independent units within the council","6502","Agency Homecare (Payments To Independent Units)","90353072","201306",10/09/2012 00:00:00,516.56,"43419","Home Care Services","REDACTED DATA","ENARA LTD (ENARA COMMUNITY CARE)","65455420","http://opencorporates.com/companies/gb/65455420",""
"London Borough of Redbridge","http://opendatacommunities.org/doc/london-borough-council/redbridge","2BPLAN&DEVEL","Planning & Development Services","2CCOMMDEVT","Community Development","REV","Revenue","R6510","Dev Management Tech","04-SUPPLIES","Supplies And Services","04D","Printing, stationery and general office expenses","5707","Advertising & publications non promotional","60185538","201306",14/09/2012 00:00:00,432,"52860","Newspaper & Magazine Publishers","REDACTED DATA","LONDON & ESSEX NEWSPAPERS LTD","6332874","http://opencorporates.com/companies/gb/6332874","915717809"
"London Borough of Redbridge","http://opendatacommunities.org/doc/london-borough-council/redbridge","3BNONSCHFUND","Non-School Funding","3CNONSCH","Non Schools","REV","Revenue","R3946","Hainault CC Nursery","01-EMPLOYEES","Employees","01A","Direct employee expenses","4","Agency Staff - Pay","60185365","201306",05/09/2012 00:00:00,432,"31230","Employment & Recruitment Agencies","REDACTED DATA","RANDSTAD EDUCATION LTD","3403530","http://opencorporates.com/companies/gb/3403530","492435726"
"London Borough of Redbridge","http://opendatacommunities.org/doc/london-borough-council/redbridge","6BADULTSOCIA","Adult Social Care","6COTHADSERV","Other Adult Services","REV","Revenue","R4389","PCT Older Person Home Care","05-THIRD","Third Party Payments","05A","Independent units within the council","6502","Agency Homecare (Payments To Independent Units)","90351222","201306",10/09/2012 00:00:00,518.75,"53350","Nursing Homes","REDACTED DATA","ELEANOR NURSING & SOCIALCARE LTD","4393038","http://opencorporates.com/companies/gb/4393038",""
"London Borough of Redbridge","http://opendatacommunities.org/doc/london-borough-council/redbridge","4BMANGT&SUPP","Management & Support Services","4CHIGHRDROUT","Highways/Roads (Routine)","REV","Revenue","R7070","Reactive Maintenance","05-THIRD","Third Party Payments","05H","Private contractors","6915","Contractor Payments","3248605","201306",12/09/2012 00:00:00,433.15,"18632","Civil Engineers","REDACTED DATA","KENSON CONTRACTORS BENINGTON LTD","1314691","http://opencorporates.com/companies/gb/1314691","301629589"
"London Borough of Redbridge","http://opendatacommunities.org/doc/london-borough-council/redbridge","9BNONBVO","Outside the BVACOP Objective Structure","9CNONBVO","Outside the BVACOP Objective Structure","BAL","Balance Sheet","B0006","Mech Engineerng Store","99-NONBV","Capital, Balance Sheet and Control","50K","Current Assets","9407","Variation A/C - Payments","633866","201306",20/08/2012 00:00:00,433.2,"13330","Car Body Repairs","REDACTED DATA","BARKING PANELCRAFT","",,""
"London Borough of Redbridge","http://opendatacommunities.org/doc/london-borough-council/redbridge","3BNONSCHFUND","Non-School Funding","3CNONSCH","Non Schools","REV","Revenue","R3960","FiND","04-SUPPLIES","Supplies And Services","04K","Miscellaneous expenses","6227","Furniture Removal & Storage","60185380","201306",24/09/2012 00:00:00,433.33,"64550","Removals - Business and Industrial","REDACTED DATA","SONNY WHITE","",,""
"London Borough of Redbridge","http://opendatacommunities.org/doc/london-borough-council/redbridge","3BOPTIONHLDG","Optional Holding Accounts","3CYOUTH","Youth Service","REV","Revenue","R3413","Hainault YC Delegated","04-SUPPLIES","Supplies And Services","04K","Miscellaneous expenses","6219","Direct Use Compensation","60185386","201306",24/09/2012 00:00:00,520,"67981","Schools - Local Authority","REDACTED DATA","THE FOREST ACADEMY","7835788","http://opencorporates.com/companies/gb/7835788",""
"London Borough of Redbridge","http://opendatacommunities.org/doc/london-borough-council/redbridge","9BNONBVO","Outside the BVACOP Objective Structure","9CNONBVO","Outside the BVACOP Objective Structure","REV","Revenue","R5132","Repairs and Maintenance - Other","02-PREMISES","Premises","02A","Repairs, alteration and maintenance of buildings","3003","Decoration","60183928","201306",20/08/2012 00:00:00,433.47,"55550","Paint Mnfrs","REDACTED DATA","ICI CONTRACT DIRECT","2881641","http://opencorporates.com/companies/gb/2881641","238458241"
"London Borough of Redbridge","http://opendatacommunities.org/doc/london-borough-council/redbridge","6BADULTSOCIA","Adult Social Care","6COTHADSERV","Other Adult Services","REV","Revenue","R4389","PCT Older Person Home Care","05-THIRD","Third Party Payments","05A","Independent units within the council","6502","Agency Homecare (Payments To Independent Units)","90352607","201306",30/08/2012 00:00:00,520.71,"43419","Home Care Services","REDACTED DATA","ENARA LTD (ENARA COMMUNITY CARE)","65455420","http://opencorporates.com/companies/gb/65455420",""
"London Borough of Redbridge","http://opendatacommunities.org/doc/london-borough-council/redbridge","6BADULTSOCIA","Adult Social Care","6CADPHYSDIS","Adults Under 65 with Phys Disab or Sensory Impair","REV","Revenue","R4214","PD Direct Payments","09-INCOME","Income","09C","Customer & Client Receipts","8545","Direct Payments Income","3250082","201306",24/09/2012 00:00:00,-46.8,"56800","Payroll Services","REDACTED DATA","HUMAN MANAGEMENT ASSISTANCE-CLIENT ACCOUNT","4752026","http://opencorporates.com/companies/gb/4752026","815230071"
"London Borough of Redbridge","http://opendatacommunities.org/doc/london-borough-council/redbridge","6BADULTSOCIA","Adult Social Care","6CADPHYSDIS","Adults Under 65 with Phys Disab or Sensory Impair","REV","Revenue","R4214","PD Direct Payments","06-TRANSFER","Transfer Payments","06B","Social Services Clients","7053","Direct Payments","3250082","201306",24/09/2012 00:00:00,568.44,"56800","Payroll Services","REDACTED DATA","HUMAN MANAGEMENT ASSISTANCE-CLIENT ACCOUNT","4752026","http://opencorporates.com/companies/gb/4752026","815230071"
"London Borough of Redbridge","http://opendatacommunities.org/doc/london-borough-council/redbridge","6BADULTSOCIA","Adult Social Care","6CADPHYSDIS","Adults Under 65 with Phys Disab or Sensory Impair","REV","Revenue","R4214","PD Direct Payments","06-TRANSFER","Transfer Payments","06B","Social Services Clients","7053","Direct Payments","3249812","201306",24/09/2012 00:00:00,522,"56800","Payroll Services","REDACTED DATA","HUMAN MANAGEMENT ASSISTANCE-CLIENT ACCOUNT","4752026","http://opencorporates.com/companies/gb/4752026","815230071"
"London Borough of Redbridge","http://opendatacommunities.org/doc/london-borough-council/redbridge","6BADULTSOCIA","Adult Social Care","6CADPHYSDIS","Adults Under 65 with Phys Disab or Sensory Impair","REV","Revenue","R4214","PD Direct Payments","06-TRANSFER","Transfer Payments","06B","Social Services Clients","7053","Direct Payments","3249974","201306",24/09/2012 00:00:00,522.04,"56800","Payroll Services","REDACTED DATA","HUMAN MANAGEMENT ASSISTANCE-CLIENT ACCOUNT","4752026","http://opencorporates.com/companies/gb/4752026","815230071"
"London Borough of Redbridge","http://opendatacommunities.org/doc/london-borough-council/redbridge","3BLEACENTFND","LEA Centrally Held School Funds","3CSCHSTRATMG","Schools Strategic Management","REV","Revenue","R3173","Bus Supp - CP, EI and CRCs","01-EMPLOYEES","Employees","01A","Direct employee expenses","4","Agency Staff - Pay","60183743","201306",29/08/2012 00:00:00,435.05,"31230","Employment & Recruitment Agencies","REDACTED DATA","BERRY RECRUITMENT LTD","7036111","http://opencorporates.com/companies/gb/7036111","981989739"
"London Borough of Redbridge","http://opendatacommunities.org/doc/london-borough-council/redbridge","2BPLAN&DEVEL","Planning & Development Services","2CCOMMDEVT","Community Development","REV","Revenue","R6505","Planning Policy","04-SUPPLIES","Supplies And Services","04D","Printing, stationery and general office expenses","5703","Reprographics","60183961","201306",28/08/2012 00:00:00,217.8,"53390","Office Equipment Mnfrs & Distributors","REDACTED DATA","SELECT BUSINESS EQUIPMENT LTD","",,"545926025"
"London Borough of Redbridge","http://opendatacommunities.org/doc/london-borough-council/redbridge","2BPLAN&DEVEL","Planning & Development Services","2CCOMMDEVT","Community Development","REV","Revenue","R6510","Dev Management Tech","04-SUPPLIES","Supplies And Services","04D","Printing, stationery and general office expenses","5703","Reprographics","60183961","201306",28/08/2012 00:00:00,217.8,"53390","Office Equipment Mnfrs & Distributors","REDACTED DATA","SELECT BUSINESS EQUIPMENT LTD","",,"545926025"
"London Borough of Redbridge","http://opendatacommunities.org/doc/london-borough-council/redbridge","6BADULTSOCIA","Adult Social Care","6CADPHYSDIS","Adults Under 65 with Phys Disab or Sensory Impair","REV","Revenue","R4214","PD Direct Payments","09-INCOME","Income","09C","Customer & Client Receipts","8545","Direct Payments Income","3250019","201306",24/09/2012 00:00:00,-33.24,"90005","Home Care Services DP","REDACTED DATA","REDACTED DATA","",,""
"London Borough of Redbridge","http://opendatacommunities.org/doc/london-borough-council/redbridge","6BADULTSOCIA","Adult Social Care","6CADPHYSDIS","Adults Under 65 with Phys Disab or Sensory Impair","REV","Revenue","R4214","PD Direct Payments","06-TRANSFER","Transfer Payments","06B","Social Services Clients","7053","Direct Payments","3250019","201306",24/09/2012 00:00:00,556.8,"90005","Home Care Services DP","REDACTED DATA","REDACTED DATA","",,""
"London Borough of Redbridge","http://opendatacommunities.org/doc/london-borough-council/redbridge","1BOTHEROPI&E","Other Operating Income & Expenditure","1CTRADSURDEF","Trading Account Surpluses & Deficits","REV","Revenue","R9575","Ilford Chambers Service Charge Account","02-PREMISES","Premises","02A","Repairs, alteration and maintenance of buildings","3037","Service Contracts","789872","201306",31/08/2012 00:00:00,0,"47960","Lifts - Servicing & Repairs","REDACTED DATA","APOLLO LIFTS LTD","1449230","http://opencorporates.com/companies/gb/1449230","245558443"
"London Borough of Redbridge","http://opendatacommunities.org/doc/london-borough-council/redbridge","1BOTHEROPI&E","Other Operating Income & Expenditure","1CTRADSURDEF","Trading Account Surpluses & Deficits","REV","Revenue","R9576","Broadway Chambers Service Charge Account","02-PREMISES","Premises","02A","Repairs, alteration and maintenance of buildings","3037","Service Contracts","789872","201306",31/08/2012 00:00:00,0,"47960","Lifts - Servicing & Repairs","REDACTED DATA","APOLLO LIFTS LTD","1449230","http://opencorporates.com/companies/gb/1449230","245558443"
"London Borough of Redbridge","http://opendatacommunities.org/doc/london-borough-council/redbridge","1BOTHEROPI&E","Other Operating Income & Expenditure","1CTRADSURDEF","Trading Account Surpluses & Deficits","REV","Revenue","R9600","Town Hall","02-PREMISES","Premises","02A","Repairs, alteration and maintenance of buildings","3037","Service Contracts","789872","201306",31/08/2012 00:00:00,0,"47960","Lifts - Servicing & Repairs","REDACTED DATA","APOLLO LIFTS LTD","1449230","http://opencorporates.com/companies/gb/1449230","245558443"
"London Borough of Redbridge","http://opendatacommunities.org/doc/london-borough-council/redbridge","1BOTHEROPI&E","Other Operating Income & Expenditure","1CTRADSURDEF","Trading Account Surpluses & Deficits","REV","Revenue","R9601","Lynton House","02-PREMISES","Premises","02A","Repairs, alteration and maintenance of buildings","3037","Service Contracts","789872","201306",31/08/2012 00:00:00,0,"47960","Lifts - Servicing & Repairs","REDACTED DATA","APOLLO LIFTS LTD","1449230","http://opencorporates.com/companies/gb/1449230","245558443"
"London Borough of Redbridge","http://opendatacommunities.org/doc/london-borough-council/redbridge","1BOTHEROPI&E","Other Operating Income & Expenditure","1CTRADSURDEF","Trading Account Surpluses & Deficits","REV","Revenue","R9603","17-23 Clements Rd","02-PREMISES","Premises","02A","Repairs, alteration and maintenance of buildings","3037","Service Contracts","789872","201306",31/08/2012 00:00:00,0,"47960","Lifts - Servicing & Repairs","REDACTED DATA","APOLLO LIFTS LTD","1449230","http://opencorporates.com/companies/gb/1449230","245558443"
"London Borough of Redbridge","http://opendatacommunities.org/doc/london-borough-council/redbridge","1BOTHEROPI&E","Other Operating Income & Expenditure","1CTRADSURDEF","Trading Account Surpluses & Deficits","REV","Revenue","R9605","497-499 Ley Street","02-PREMISES","Premises","02A","Repairs, alteration and maintenance of buildings","3037","Service Contracts","789872","201306",31/08/2012 00:00:00,0,"47960","Lifts - Servicing & Repairs","REDACTED DATA","APOLLO LIFTS LTD","1449230","http://opencorporates.com/companies/gb/1449230","245558443"
"London Borough of Redbridge","http://opendatacommunities.org/doc/london-borough-council/redbridge","3BLEACENTFND","LEA Centrally Held School Funds","3CASSURACCES","Assuring Access to Schools","REV","Revenue","R3290","Mus Sch - Delegated","02-PREMISES","Premises","02A","Repairs, alteration and maintenance of buildings","3037","Service Contracts","789872","201306",31/08/2012 00:00:00,0,"47960","Lifts - Servicing & Repairs","REDACTED DATA","APOLLO LIFTS LTD","1449230","http://opencorporates.com/companies/gb/1449230","245558443"
"London Borough of Redbridge","http://opendatacommunities.org/doc/london-borough-council/redbridge","4BPUBLICTRAN","Public Transport","4CPARKING","Parking Services","REV","Revenue","R7012","Ley St MSCP","02-PREMISES","Premises","02A","Repairs, alteration and maintenance of buildings","3037","Service Contracts","789872","201306",31/08/2012 00:00:00,0,"47960","Lifts - Servicing & Repairs","REDACTED DATA","APOLLO LIFTS LTD","1449230","http://opencorporates.com/companies/gb/1449230","245558443"
"London Borough of Redbridge","http://opendatacommunities.org/doc/london-borough-council/redbridge","6BADULTSOCIA","Adult Social Care","6CADLEARNDIS","Adults Under 65 with Learning Disabilities","REV","Revenue","R4293","Woodbine Club House","02-PREMISES","Premises","02A","Repairs, alteration and maintenance of buildings","3037","Service Contracts","789872","201306",31/08/2012 00:00:00,0,"47960","Lifts - Servicing & Repairs","REDACTED DATA","APOLLO LIFTS LTD","1449230","http://opencorporates.com/companies/gb/1449230","245558443"
"London Borough of Redbridge","http://opendatacommunities.org/doc/london-borough-council/redbridge","1BOTHEROPI&E","Other Operating Income & Expenditure","1CTRADSURDEF","Trading Account Surpluses & Deficits","REV","Revenue","R9575","Ilford Chambers Service Charge Account","02-PREMISES","Premises","02A","Repairs, alteration and maintenance of buildings","3037","Service Contracts","789872","201306",31/08/2012 00:00:00,25.03,"47960","Lifts - Servicing & Repairs","REDACTED DATA","APOLLO LIFTS LTD","1449230","http://opencorporates.com/companies/gb/1449230","245558443"
"London Borough of Redbridge","http://opendatacommunities.org/doc/london-borough-council/redbridge","1BOTHEROPI&E","Other Operating Income & Expenditure","1CTRADSURDEF","Trading Account Surpluses & Deficits","REV","Revenue","R9576","Broadway Chambers Service Charge Account","02-PREMISES","Premises","02A","Repairs, alteration and maintenance of buildings","3037","Service Contracts","789872","201306",31/08/2012 00:00:00,25.03,"47960","Lifts - Servicing & Repairs","REDACTED DATA","APOLLO LIFTS LTD","1449230","http://opencorporates.com/companies/gb/1449230","245558443"
"London Borough of Redbridge","http://opendatacommunities.org/doc/london-borough-council/redbridge","1BOTHEROPI&E","Other Operating Income & Expenditure","1CTRADSURDEF","Trading Account Surpluses & Deficits","REV","Revenue","R9600","Town Hall","02-PREMISES","Premises","02A","Repairs, alteration and maintenance of buildings","3037","Service Contracts","789872","201306",31/08/2012 00:00:00,25.03,"47960","Lifts - Servicing & Repairs","REDACTED DATA","APOLLO LIFTS LTD","1449230","http://opencorporates.com/companies/gb/1449230","245558443"
"London Borough of Redbridge","http://opendatacommunities.org/doc/london-borough-council/redbridge","3BLEACENTFND","LEA Centrally Held School Funds","3CASSURACCES","Assuring Access to Schools","REV","Revenue","R3290","Mus Sch - Delegated","02-PREMISES","Premises","02A","Repairs, alteration and maintenance of buildings","3037","Service Contracts","789872","201306",31/08/2012 00:00:00,25.03,"47960","Lifts - Servicing & Repairs","REDACTED DATA","APOLLO LIFTS LTD","1449230","http://opencorporates.com/companies/gb/1449230","245558443"
"London Borough of Redbridge","http://opendatacommunities.org/doc/london-borough-council/redbridge","6BADULTSOCIA","Adult Social Care","6CADLEARNDIS","Adults Under 65 with Learning Disabilities","REV","Revenue","R4293","Woodbine Club House","02-PREMISES","Premises","02A","Repairs, alteration and maintenance of buildings","3037","Service Contracts","789872","201306",31/08/2012 00:00:00,25.03,"47960","Lifts - Servicing & Repairs","REDACTED DATA","APOLLO LIFTS LTD","1449230","http://opencorporates.com/companies/gb/1449230","245558443"
"London Borough of Redbridge","http://opendatacommunities.org/doc/london-borough-council/redbridge","1BOTHEROPI&E","Other Operating Income & Expenditure","1CTRADSURDEF","Trading Account Surpluses & Deficits","REV","Revenue","R9603","17-23 Clements Rd","02-PREMISES","Premises","02A","Repairs, alteration and maintenance of buildings","3037","Service Contracts","789872","201306",31/08/2012 00:00:00,50.05,"47960","Lifts - Servicing & Repairs","REDACTED DATA","APOLLO LIFTS LTD","1449230","http://opencorporates.com/companies/gb/1449230","245558443"
"London Borough of Redbridge","http://opendatacommunities.org/doc/london-borough-council/redbridge","1BOTHEROPI&E","Other Operating Income & Expenditure","1CTRADSURDEF","Trading Account Surpluses & Deficits","REV","Revenue","R9605","497-499 Ley Street","02-PREMISES","Premises","02A","Repairs, alteration and maintenance of buildings","3037","Service Contracts","789872","201306",31/08/2012 00:00:00,50.05,"47960","Lifts - Servicing & Repairs","REDACTED DATA","APOLLO LIFTS LTD","1449230","http://opencorporates.com/companies/gb/1449230","245558443"
"London Borough of Redbridge","http://opendatacommunities.org/doc/london-borough-council/redbridge","1BOTHEROPI&E","Other Operating Income & Expenditure","1CTRADSURDEF","Trading Account Surpluses & Deficits","REV","Revenue","R9601","Lynton House","02-PREMISES","Premises","02A","Repairs, alteration and maintenance of buildings","3037","Service Contracts","789872","201306",31/08/2012 00:00:00,86,"47960","Lifts - Servicing & Repairs","REDACTED DATA","APOLLO LIFTS LTD","1449230","http://opencorporates.com/companies/gb/1449230","245558443"
"London Borough of Redbridge","http://opendatacommunities.org/doc/london-borough-council/redbridge","4BPUBLICTRAN","Public Transport","4CPARKING","Parking Services","REV","Revenue","R7012","Ley St MSCP","02-PREMISES","Premises","02A","Repairs, alteration and maintenance of buildings","3037","Service Contracts","789872","201306",31/08/2012 00:00:00,125.14,"47960","Lifts - Servicing & Repairs","REDACTED DATA","APOLLO LIFTS LTD","1449230","http://opencorporates.com/companies/gb/1449230","245558443"
"London Borough of Redbridge","http://opendatacommunities.org/doc/london-borough-council/redbridge","6BADULTSOCIA","Adult Social Care","6COLDINCMENT","Older People (65 or over) incl. Older Mentally Ill","REV","Revenue","R4391","OP Home Care","05-THIRD","Third Party Payments","05A","Independent units within the council","6502","Agency Homecare (Payments To Independent Units)","90350900","201306",24/08/2012 00:00:00,523.96,"53280","Nursing Agencies","REDACTED DATA","IMMACULATE HEALTHCARE SERVICES LIMITED","",,""
"London Borough of Redbridge","http://opendatacommunities.org/doc/london-borough-council/redbridge","6BADULTSOCIA","Adult Social Care","6COLDINCMENT","Older People (65 or over) incl. Older Mentally Ill","REV","Revenue","R4391","OP Home Care","05-THIRD","Third Party Payments","05A","Independent units within the council","6502","Agency Homecare (Payments To Independent Units)","90354486","201306",18/09/2012 00:00:00,523.96,"53280","Nursing Agencies","REDACTED DATA","IMMACULATE HEALTHCARE SERVICES LIMITED","",,""
"London Borough of Redbridge","http://opendatacommunities.org/doc/london-borough-council/redbridge","6BADULTSOCIA","Adult Social Care","6COLDINCMENT","Older People (65 or over) incl. Older Mentally Ill","REV","Revenue","R4391","OP Home Care","05-THIRD","Third Party Payments","05A","Independent units within the council","6502","Agency Homecare (Payments To Independent Units)","90350962","201306",31/08/2012 00:00:00,523.96,"53280","Nursing Agencies","REDACTED DATA","IMMACULATE HEALTHCARE SERVICES LIMITED","",,""
"London Borough of Redbridge","http://opendatacommunities.org/doc/london-borough-council/redbridge","6BADULTSOCIA","Adult Social Care","6COLDINCMENT","Older People (65 or over) incl. Older Mentally Ill","REV","Revenue","R4391","OP Home Care","05-THIRD","Third Party Payments","05A","Independent units within the council","6502","Agency Homecare (Payments To Independent Units)","90351037","201306",10/09/2012 00:00:00,523.96,"53280","Nursing Agencies","REDACTED DATA","IMMACULATE HEALTHCARE SERVICES LIMITED","",,""
"London Borough of Redbridge","http://opendatacommunities.org/doc/london-borough-council/redbridge","6BADULTSOCIA","Adult Social Care","6COTHADSERV","Other Adult Services","REV","Revenue","R4389","PCT Older Person Home Care","05-THIRD","Third Party Payments","05A","Independent units within the council","6502","Agency Homecare (Payments To Independent Units)","90354372","201306",12/09/2012 00:00:00,523.96,"53280","Nursing Agencies","REDACTED DATA","IMMACULATE HEALTHCARE SERVICES LIMITED","",,""
"London Borough of Redbridge","http://opendatacommunities.org/doc/london-borough-council/redbridge","4BMANGT&SUPP","Management & Support Services","4CHIGHRDROUT","Highways/Roads (Routine)","REV","Revenue","R7068","Signs - Schedule 2","05-THIRD","Third Party Payments","05H","Private contractors","6915","Contractor Payments","3250648","201306",24/09/2012 00:00:00,436.7,"21555","Construction Contractors - General","REDACTED DATA","MAY GURNEY LIMITED","873179","http://opencorporates.com/companies/gb/873179","105540018"
"London Borough of Redbridge","http://opendatacommunities.org/doc/london-borough-council/redbridge","6BADULTSOCIA","Adult Social Care","6COTHADSERV","Other Adult Services","REV","Revenue","R4389","PCT Older Person Home Care","05-THIRD","Third Party Payments","05A","Independent units within the council","6502","Agency Homecare (Payments To Independent Units)","90353097","201306",10/09/2012 00:00:00,524.76,"43419","Home Care Services","REDACTED DATA","ENARA LTD (ENARA COMMUNITY CARE)","65455420","http://opencorporates.com/companies/gb/65455420",""
"London Borough of Redbridge","http://opendatacommunities.org/doc/london-borough-council/redbridge","6BADULTSOCIA","Adult Social Care","6CADLEARNDIS","Adults Under 65 with Learning Disabilities","REV","Revenue","R4240","Argyle Project","05-THIRD","Third Party Payments","05H","Private contractors","6902","Respite Care","90350161","201306",31/08/2012 00:00:00,175,"17020","Charities and Voluntary Organisations","REDACTED DATA","REDBRIDGE COMMUNITY HOUSING LIMITED (RCHL)","",,""
"London Borough of Redbridge","http://opendatacommunities.org/doc/london-borough-council/redbridge","6BADULTSOCIA","Adult Social Care","6CADLEARNDIS","Adults Under 65 with Learning Disabilities","REV","Revenue","R4240","Argyle Project","05-THIRD","Third Party Payments","05H","Private contractors","6902","Respite Care","90350159","201306",31/08/2012 00:00:00,175,"17020","Charities and Voluntary Organisations","REDACTED DATA","REDBRIDGE COMMUNITY HOUSING LIMITED (RCHL)","",,""
"London Borough of Redbridge","http://opendatacommunities.org/doc/london-borough-council/redbridge","6BADULTSOCIA","Adult Social Care","6CADLEARNDIS","Adults Under 65 with Learning Disabilities","REV","Revenue","R4240","Argyle Project","05-THIRD","Third Party Payments","05H","Private contractors","6902","Respite Care","90350161","201306",31/08/2012 00:00:00,350,"17020","Charities and Voluntary Organisations","REDACTED DATA","REDBRIDGE COMMUNITY HOUSING LIMITED (RCHL)","",,""
"London Borough of Redbridge","http://opendatacommunities.org/doc/london-borough-council/redbridge","6BADULTSOCIA","Adult Social Care","6CADLEARNDIS","Adults Under 65 with Learning Disabilities","REV","Revenue","R4240","Argyle Project","05-THIRD","Third Party Payments","05H","Private contractors","6902","Respite Care","90350159","201306",31/08/2012 00:00:00,350,"17020","Charities and Voluntary Organisations","REDACTED DATA","REDBRIDGE COMMUNITY HOUSING LIMITED (RCHL)","",,""
"London Borough of Redbridge","http://opendatacommunities.org/doc/london-borough-council/redbridge","6BADULTSOCIA","Adult Social Care","6CADLEARNDIS","Adults Under 65 with Learning Disabilities","REV","Revenue","R4240","Argyle Project","05-THIRD","Third Party Payments","05H","Private contractors","6902","Respite Care","90356412","201306",21/09/2012 00:00:00,525,"17020","Charities and Voluntary Organisations","REDACTED DATA","REDBRIDGE COMMUNITY HOUSING LIMITED (RCHL)","",,""
"London Borough of Redbridge","http://opendatacommunities.org/doc/london-borough-council/redbridge","6BADULTSOCIA","Adult Social Care","6CADLEARNDIS","Adults Under 65 with Learning Disabilities","REV","Revenue","R4240","Argyle Project","05-THIRD","Third Party Payments","05H","Private contractors","6902","Respite Care","90350168","201306",31/08/2012 00:00:00,525,"17020","Charities and Voluntary Organisations","REDACTED DATA","REDBRIDGE COMMUNITY HOUSING LIMITED (RCHL)","",,""
"London Borough of Redbridge","http://opendatacommunities.org/doc/london-borough-council/redbridge","6BADULTSOCIA","Adult Social Care","6CADLEARNDIS","Adults Under 65 with Learning Disabilities","REV","Revenue","R4240","Argyle Project","05-THIRD","Third Party Payments","05H","Private contractors","6902","Respite Care","90356415","201306",21/09/2012 00:00:00,525,"17020","Charities and Voluntary Organisations","REDACTED DATA","REDBRIDGE COMMUNITY HOUSING LIMITED (RCHL)","",,""
"London Borough of Redbridge","http://opendatacommunities.org/doc/london-borough-council/redbridge","6BADULTSOCIA","Adult Social Care","6COTHADSERV","Other Adult Services","REV","Revenue","R4389","PCT Older Person Home Care","05-THIRD","Third Party Payments","05A","Independent units within the council","6502","Agency Homecare (Payments To Independent Units)","90354687","201306",24/09/2012 00:00:00,525,"53350","Nursing Homes","REDACTED DATA","ELEANOR NURSING & SOCIALCARE LTD","4393038","http://opencorporates.com/companies/gb/4393038",""
"London Borough of Redbridge","http://opendatacommunities.org/doc/london-borough-council/redbridge","6BADULTSOCIA","Adult Social Care","6COTHADSERV","Other Adult Services","REV","Revenue","R4389","PCT Older Person Home Care","05-THIRD","Third Party Payments","05A","Independent units within the council","6502","Agency Homecare (Payments To Independent Units)","90354625","201306",18/09/2012 00:00:00,525,"53350","Nursing Homes","REDACTED DATA","ELEANOR NURSING & SOCIALCARE LTD","4393038","http://opencorporates.com/companies/gb/4393038",""
"London Borough of Redbridge","http://opendatacommunities.org/doc/london-borough-council/redbridge","6BADULTSOCIA","Adult Social Care","6COTHADSERV","Other Adult Services","REV","Revenue","R4389","PCT Older Person Home Care","05-THIRD","Third Party Payments","05A","Independent units within the council","6502","Agency Homecare (Payments To Independent Units)","90351147","201306",28/08/2012 00:00:00,525,"53350","Nursing Homes","REDACTED DATA","ELEANOR NURSING & SOCIALCARE LTD","4393038","http://opencorporates.com/companies/gb/4393038",""
"London Borough of Redbridge","http://opendatacommunities.org/doc/london-borough-council/redbridge","4BPUBLICTRAN","Public Transport","4CPARKING","Parking Services","REV","Revenue","R7012","Ley St MSCP","01-EMPLOYEES","Employees","01A","Direct employee expenses","4","Agency Staff - Pay","60184285","201306",06/09/2012 00:00:00,437.76,"31230","Employment & Recruitment Agencies","REDACTED DATA","PREMIERE EMPLOYMENT LTD","",,""
"London Borough of Redbridge","http://opendatacommunities.org/doc/london-borough-council/redbridge","3BLEACENTFND","LEA Centrally Held School Funds","3CSUPPORTSEN","Supporting Special Education Needs","REV","Revenue","R3434","Pupil Referral Unit (KS3)","04-SUPPLIES","Supplies And Services","04B","Catering","5601","Catering Provisions (Food & Drink)","60178244","201306",15/06/2012 00:00:00,525.35,"16040","Caterers","REDACTED DATA","TANGERINE CATERING MANAGEMENT CO LTD","",,""
"London Borough of Redbridge","http://opendatacommunities.org/doc/london-borough-council/redbridge","6BADULTSOCIA","Adult Social Care","6COLDINCMENT","Older People (65 or over) incl. Older Mentally Ill","REV","Revenue","R4211","Older People Direct Payments","09-INCOME","Income","09C","Customer & Client Receipts","8545","Direct Payments Income","3249836","201306",24/09/2012 00:00:00,-124.12,"56800","Payroll Services","REDACTED DATA","HUMAN MANAGEMENT ASSISTANCE-CLIENT ACCOUNT","4752026","http://opencorporates.com/companies/gb/4752026","815230071"
"London Borough of Redbridge","http://opendatacommunities.org/doc/london-borough-council/redbridge","6BADULTSOCIA","Adult Social Care","6COLDINCMENT","Older People (65 or over) incl. Older Mentally Ill","REV","Revenue","R4211","Older People Direct Payments","06-TRANSFER","Transfer Payments","06B","Social Services Clients","7053","Direct Payments","3249836","201306",24/09/2012 00:00:00,649.6,"56800","Payroll Services","REDACTED DATA","HUMAN MANAGEMENT ASSISTANCE-CLIENT ACCOUNT","4752026","http://opencorporates.com/companies/gb/4752026","815230071"
"London Borough of Redbridge","http://opendatacommunities.org/doc/london-borough-council/redbridge","6BADULTSOCIA","Adult Social Care","6COTHADSERV","Other Adult Services","REV","Revenue","R4389","PCT Older Person Home Care","05-THIRD","Third Party Payments","05A","Independent units within the council","6502","Agency Homecare (Payments To Independent Units)","90352483","201306",30/08/2012 00:00:00,525.81,"43419","Home Care Services","REDACTED DATA","ENARA LTD (ENARA COMMUNITY CARE)","65455420","http://opencorporates.com/companies/gb/65455420",""
"London Borough of Redbridge","http://opendatacommunities.org/doc/london-borough-council/redbridge","6BADULTSOCIA","Adult Social Care","6CADLEARNDIS","Adults Under 65 with Learning Disabilities","REV","Revenue","R4394","LD - Homecare","05-THIRD","Third Party Payments","05A","Independent units within the council","6502","Agency Homecare (Payments To Independent Units)","90354219","201306",17/09/2012 00:00:00,526.26,"17580","Childcare Services","REDACTED DATA","DIGNITY CARE PLUS LTD (SURECARE ILFORD)","7342446","http://opencorporates.com/companies/gb/7342446",""
"London Borough of Redbridge","http://opendatacommunities.org/doc/london-borough-council/redbridge","6BADULTSOCIA","Adult Social Care","6COTHADSERV","Other Adult Services","REV","Revenue","R4389","PCT Older Person Home Care","05-THIRD","Third Party Payments","05A","Independent units within the council","6502","Agency Homecare (Payments To Independent Units)","90352851","201306",30/08/2012 00:00:00,527.95,"43419","Home Care Services","REDACTED DATA","ENARA LTD (ENARA COMMUNITY CARE)","65455420","http://opencorporates.com/companies/gb/65455420",""
"London Borough of Redbridge","http://opendatacommunities.org/doc/london-borough-council/redbridge","6BSOCIALSERV","Social Services","6CFAMSUPPSER","Family Support Services","REV","Revenue","R2161","Albert Road - Outreach South - Albert Road","02-PREMISES","Premises","02F","Fixtures and fittings","4420","Security","70045375","201306",01/02/2012 00:00:00,0,"69240","Security Services","REDACTED DATA","ELITE TEAM SECURITY LTD","6598621","http://opencorporates.com/companies/gb/6598621","939919068"
"London Borough of Redbridge","http://opendatacommunities.org/doc/london-borough-council/redbridge","3BINDSCHFUND","Individual School Funds","3CDELSECOND","Delegated Individual Secondary School Budgets","REV","Revenue","S2013","TRINITY : Repairs and Maintenance Upper Site","02-PREMISES","Premises","02A","Repairs, alteration and maintenance of buildings","3056","Schools ONLY - Minor Maintenance","70045643","201306",30/08/2012 00:00:00,440,"40470","Glaziers","REDACTED DATA","ADVANCED WOODFORD GLAZING COMPANY","",,""
"London Borough of Redbridge","http://opendatacommunities.org/doc/london-borough-council/redbridge","3BLEACENTFND","LEA Centrally Held School Funds","3CNONSCH","Non Schools","REV","Revenue","R3854","SDG Finance Training 1","04-SUPPLIES","Supplies And Services","04H","Grants and subscriptions","5950","Grants","60185432","201306",20/09/2012 00:00:00,440,"17020","Charities and Voluntary Organisations","REDACTED DATA","FRENFORD CLUBS LIMITED (ARDLEIGH GREEN)","3226473","http://opencorporates.com/companies/gb/3226473",""
"London Borough of Redbridge","http://opendatacommunities.org/doc/london-borough-council/redbridge","6BSOCIALSERV","Social Services","6CFAMSUPPSER","Family Support Services","REV","Revenue","R2161","Albert Road - Outreach South - Albert Road","02-PREMISES","Premises","02F","Fixtures and fittings","4420","Security","70045375","201306",01/02/2012 00:00:00,440,"69240","Security Services","REDACTED DATA","ELITE TEAM SECURITY LTD","6598621","http://opencorporates.com/companies/gb/6598621","939919068"
"London Borough of Redbridge","http://opendatacommunities.org/doc/london-borough-council/redbridge","9BNONBVO","Outside the BVACOP Objective Structure","9CNONBVO","Outside the BVACOP Objective Structure","REV","Revenue","R5223","Income Recovery Team (HRA)","01-EMPLOYEES","Employees","01A","Direct employee expenses","4","Agency Staff - Pay","70045461","201306",05/09/2012 00:00:00,440.01,"0","Not Classified","REDACTED DATA","THE OYSTER PARTNERSHIP LTD","5020374","http://opencorporates.com/companies/gb/5020374","832961025"
"London Borough of Redbridge","http://opendatacommunities.org/doc/london-borough-council/redbridge","6BADULTSOCIA","Adult Social Care","6CADLEARNDIS","Adults Under 65 with Learning Disabilities","REV","Revenue","R4394","LD - Homecare","05-THIRD","Third Party Payments","05A","Independent units within the council","6502","Agency Homecare (Payments To Independent Units)","90355389","201306",24/09/2012 00:00:00,528.12,"43419","Home Care Services","REDACTED DATA","FASTFLOW DE VERE CARE","",,""
"London Borough of Redbridge","http://opendatacommunities.org/doc/london-borough-council/redbridge","6BADULTSOCIA","Adult Social Care","6COTHADSERV","Other Adult Services","REV","Revenue","R4389","PCT Older Person Home Care","05-THIRD","Third Party Payments","05A","Independent units within the council","6502","Agency Homecare (Payments To Independent Units)","90352978","201306",10/09/2012 00:00:00,528.15,"43419","Home Care Services","REDACTED DATA","ENARA LTD (ENARA COMMUNITY CARE)","65455420","http://opencorporates.com/companies/gb/65455420",""
"London Borough of Redbridge","http://opendatacommunities.org/doc/london-borough-council/redbridge","6BADULTSOCIA","Adult Social Care","6COTHADSERV","Other Adult Services","REV","Revenue","R4389","PCT Older Person Home Care","05-THIRD","Third Party Payments","05A","Independent units within the council","6502","Agency Homecare (Payments To Independent Units)","90355221","201306",11/09/2012 00:00:00,529.46,"43419","Home Care Services","REDACTED DATA","FASTFLOW DE VERE CARE","",,""
"London Borough of Redbridge","http://opendatacommunities.org/doc/london-borough-council/redbridge","3BLEACENTFND","LEA Centrally Held School Funds","3CFACILIMPRO","Facilitating School Improvement","REV","Revenue","R3240","Advisers/Inspectors","04-SUPPLIES","Supplies And Services","04A","Equipment, furniture and materials","5502","Equipment Purchase","60184426","201306",12/04/2012 00:00:00,441.67,"17020","Charities and Voluntary Organisations","REDACTED DATA","VISION REDBRIDGE CULTURE AND LEISURE","6032714","http://opencorporates.com/companies/gb/6032714","906429031"
"London Borough of Redbridge","http://opendatacommunities.org/doc/london-borough-council/redbridge","6BADULTSOCIA","Adult Social Care","6CCHILLOOKED","Children Looked After","REV","Revenue","R2119","CLAFH - Supportive Accommodation","06-TRANSFER","Transfer Payments","06B","Social Services Clients","7054","Funding Entitlements","3248038","201306",31/07/2012 00:00:00,442.26,"43419","Home Care Services","REDACTED DATA","LCS PARTNERSHIPS LTD (LONDON CARE SOLUTIONS)","6820538","http://opencorporates.com/companies/gb/6820538","975528279"
"London Borough of Redbridge","http://opendatacommunities.org/doc/london-borough-council/redbridge","6BADULTSOCIA","Adult Social Care","6COTHADSERV","Other Adult Services","REV","Revenue","R4389","PCT Older Person Home Care","05-THIRD","Third Party Payments","05A","Independent units within the council","6502","Agency Homecare (Payments To Independent Units)","90352730","201306",30/08/2012 00:00:00,531.98,"43419","Home Care Services","REDACTED DATA","ENARA LTD (ENARA COMMUNITY CARE)","65455420","http://opencorporates.com/companies/gb/65455420",""
"London Borough of Redbridge","http://opendatacommunities.org/doc/london-borough-council/redbridge","6BADULTSOCIA","Adult Social Care","6CADLEARNDIS","Adults Under 65 with Learning Disabilities","REV","Revenue","R4394","LD - Homecare","05-THIRD","Third Party Payments","05A","Independent units within the council","6502","Agency Homecare (Payments To Independent Units)","90354178","201306",19/09/2012 00:00:00,532.38,"31230","Employment & Recruitment Agencies","REDACTED DATA","SHARED CARE SERVICES LTD","4704680","http://opencorporates.com/companies/gb/4704680",""
"London Borough of Redbridge","http://opendatacommunities.org/doc/london-borough-council/redbridge","6BADULTSOCIA","Adult Social Care","6CADLEARNDIS","Adults Under 65 with Learning Disabilities","REV","Revenue","R4394","LD - Homecare","05-THIRD","Third Party Payments","05A","Independent units within the council","6502","Agency Homecare (Payments To Independent Units)","90354179","201306",19/09/2012 00:00:00,532.38,"31230","Employment & Recruitment Agencies","REDACTED DATA","SHARED CARE SERVICES LTD","4704680","http://opencorporates.com/companies/gb/4704680",""
"London Borough of Redbridge","http://opendatacommunities.org/doc/london-borough-council/redbridge","6BADULTSOCIA","Adult Social Care","6CADPHYSDIS","Adults Under 65 with Phys Disab or Sensory Impair","REV","Revenue","R4214","PD Direct Payments","06-TRANSFER","Transfer Payments","06B","Social Services Clients","7053","Direct Payments","3249902","201306",24/09/2012 00:00:00,533.6,"90005","Home Care Services DP","REDACTED DATA","REDACTED DATA","",,""
"London Borough of Redbridge","http://opendatacommunities.org/doc/london-borough-council/redbridge","6BADULTSOCIA","Adult Social Care","6COLDINCMENT","Older People (65 or over) incl. Older Mentally Ill","REV","Revenue","R4211","Older People Direct Payments","06-TRANSFER","Transfer Payments","06B","Social Services Clients","7053","Direct Payments","3249808","201306",24/09/2012 00:00:00,533.6,"90005","Home Care Services DP","REDACTED DATA","REDACTED DATA","",,""
"London Borough of Redbridge","http://opendatacommunities.org/doc/london-borough-council/redbridge","6BADULTSOCIA","Adult Social Care","6CADLEARNDIS","Adults Under 65 with Learning Disabilities","REV","Revenue","R4394","LD - Homecare","05-THIRD","Third Party Payments","05A","Independent units within the council","6502","Agency Homecare (Payments To Independent Units)","90352316","201306",07/09/2012 00:00:00,533.99,"43419","Home Care Services","REDACTED DATA","FASTFLOW DE VERE CARE","",,""
"London Borough of Redbridge","http://opendatacommunities.org/doc/london-borough-council/redbridge","3BNONSCHFUND","Non-School Funding","3CNONSCH","Non Schools","REV","Revenue","R3941","Newbury CC","02-PREMISES","Premises","02H","Cleaning and domestic supplies","4620","Cleaning Contract Payments","60183923","201306",29/06/2012 00:00:00,445.3,"15269","Cleaning Services - Commercial","REDACTED DATA","KETRAY CONTRACT CLEANING LTD","3431457","http://opencorporates.com/companies/gb/3431457","681517328"
"London Borough of Redbridge","http://opendatacommunities.org/doc/london-borough-council/redbridge","3BNONSCHFUND","Non-School Funding","3CNONSCH","Non Schools","REV","Revenue","R3941","Newbury CC","02-PREMISES","Premises","02H","Cleaning and domestic supplies","4620","Cleaning Contract Payments","60183925","201306",31/08/2012 00:00:00,445.3,"15269","Cleaning Services - Commercial","REDACTED DATA","KETRAY CONTRACT CLEANING LTD","3431457","http://opencorporates.com/companies/gb/3431457","681517328"
"London Borough of Redbridge","http://opendatacommunities.org/doc/london-borough-council/redbridge","3BNONSCHFUND","Non-School Funding","3CNONSCH","Non Schools","REV","Revenue","R3941","Newbury CC","02-PREMISES","Premises","02H","Cleaning and domestic supplies","4620","Cleaning Contract Payments","60185548","201306",28/09/2012 00:00:00,445.3,"15269","Cleaning Services - Commercial","REDACTED DATA","KETRAY CONTRACT CLEANING LTD","3431457","http://opencorporates.com/companies/gb/3431457","681517328"
"London Borough of Redbridge","http://opendatacommunities.org/doc/london-borough-council/redbridge","6BADULTSOCIA","Adult Social Care","6COLDINCMENT","Older People (65 or over) incl. Older Mentally Ill","REV","Revenue","R4391","OP Home Care","05-THIRD","Third Party Payments","05A","Independent units within the council","6502","Agency Homecare (Payments To Independent Units)","90352453","201306",30/08/2012 00:00:00,534.8,"43419","Home Care Services","REDACTED DATA","ENARA LTD (ENARA COMMUNITY CARE)","65455420","http://opencorporates.com/companies/gb/65455420",""
"London Borough of Redbridge","http://opendatacommunities.org/doc/london-borough-council/redbridge","6BADULTSOCIA","Adult Social Care","6COLDINCMENT","Older People (65 or over) incl. Older Mentally Ill","REV","Revenue","R4391","OP Home Care","05-THIRD","Third Party Payments","05A","Independent units within the council","6502","Agency Homecare (Payments To Independent Units)","90352578","201306",30/08/2012 00:00:00,534.8,"43419","Home Care Services","REDACTED DATA","ENARA LTD (ENARA COMMUNITY CARE)","65455420","http://opencorporates.com/companies/gb/65455420",""
"London Borough of Redbridge","http://opendatacommunities.org/doc/london-borough-council/redbridge","1BCENTRALPUB","Central Services to the Public","1CLOCALTAXCO","Local Tax Collection","REV","Revenue","R5760","Council Tax Collection","04-SUPPLIES","Supplies And Services","04K","Miscellaneous expenses","6204","Bankruptcy","60184730","201306",10/09/2012 00:00:00,489,"72460","Solicitors","REDACTED DATA","WILKIN CHAPMAN SOLICITORS","",,"127942455"
"London Borough of Redbridge","http://opendatacommunities.org/doc/london-borough-council/redbridge","6BADULTSOCIA","Adult Social Care","6COLDINCMENT","Older People (65 or over) incl. Older Mentally Ill","REV","Revenue","R4378","OP Residential","05-THIRD","Third Party Payments","05H","Private contractors","6902","Respite Care","90350375","201306",28/08/2012 00:00:00,535.3,"64710","Residential Care Homes","REDACTED DATA","ROSEWOOD LODGE","",,""
"London Borough of Redbridge","http://opendatacommunities.org/doc/london-borough-council/redbridge","4BPARKING","Parking Services","4CTRAFMGT&RS","Traffic Management & Road Safety","REV","Revenue","R7083","Diamond Jubilee","04-SUPPLIES","Supplies And Services","04K","Miscellaneous expenses","6263","Supportive Activities","60183976","201306",30/08/2012 00:00:00,446.6,"16040","Caterers","REDACTED DATA","CONTI CATERING","",,"245016784"
"London Borough of Redbridge","http://opendatacommunities.org/doc/london-borough-council/redbridge","3BINDSCHFUND","Individual School Funds","3CDELPRIMARY","Delegated Individual Primary School Budgets","REV","Revenue","S1050","CHRISTCHURCH : Supply Teachers","01-EMPLOYEES","Employees","01A","Direct employee expenses","409","Agency Staff Pay","60185069","201306",27/07/2012 00:00:00,448,"0","Not Classified","REDACTED DATA","DESTINATION EDUCATION LTD","",,"930151073"
"London Borough of Redbridge","http://opendatacommunities.org/doc/london-borough-council/redbridge","3BLEACENTFND","LEA Centrally Held School Funds","3CASSURACCES","Assuring Access to Schools","REV","Revenue","R3265","Drama Centre Del","04-SUPPLIES","Supplies And Services","04A","Equipment, furniture and materials","5501","Equipment Provision","60182701","201306",19/06/2012 00:00:00,448,"15760","Cash Register Accessories and Services","REDACTED DATA","MICRO-TILL LTD","6454630","http://opencorporates.com/companies/gb/6454630","924405343"
"London Borough of Redbridge","http://opendatacommunities.org/doc/london-borough-council/redbridge","5BGFHOUSING","General Fund Housing","5CHOUSADVICE","Housing Advice","REV","Revenue","R5530","HAC Temporary Accomodation","05-THIRD","Third Party Payments","05H","Private contractors","6912","Bed & Breakfast Charges","70045679","201306",02/09/2012 00:00:00,448,"0","Not Classified","REDACTED DATA","CEDAR HOTEL LTD","5097083","http://opencorporates.com/companies/gb/5097083","542174755"
"London Borough of Redbridge","http://opendatacommunities.org/doc/london-borough-council/redbridge","5BGFHOUSING","General Fund Housing","5CHOUSADVICE","Housing Advice","REV","Revenue","R5530","HAC Temporary Accomodation","05-THIRD","Third Party Payments","05H","Private contractors","6912","Bed & Breakfast Charges","70045901","201306",09/09/2012 00:00:00,448,"0","Not Classified","REDACTED DATA","CEDAR HOTEL LTD","5097083","http://opencorporates.com/companies/gb/5097083","542174755"
"London Borough of Redbridge","http://opendatacommunities.org/doc/london-borough-council/redbridge","5BGFHOUSING","General Fund Housing","5CHOUSADVICE","Housing Advice","REV","Revenue","R5530","HAC Temporary Accomodation","05-THIRD","Third Party Payments","05H","Private contractors","6912","Bed & Breakfast Charges","70045937","201306",23/09/2012 00:00:00,448,"0","Not Classified","REDACTED DATA","CEDAR HOTEL LTD","5097083","http://opencorporates.com/companies/gb/5097083","542174755"
"London Borough of Redbridge","http://opendatacommunities.org/doc/london-borough-council/redbridge","5BGFHOUSING","General Fund Housing","5CHOUSADVICE","Housing Advice","REV","Revenue","R5530","HAC Temporary Accomodation","05-THIRD","Third Party Payments","05H","Private contractors","6912","Bed & Breakfast Charges","70045673","201306",16/09/2012 00:00:00,448,"0","Not Classified","REDACTED DATA","CEDAR HOTEL LTD","5097083","http://opencorporates.com/companies/gb/5097083","542174755"
"London Borough of Redbridge","http://opendatacommunities.org/doc/london-borough-council/redbridge","6BADULTSOCIA","Adult Social Care","6COLDINCMENT","Older People (65 or over) incl. Older Mentally Ill","REV","Revenue","R4391","OP Home Care","05-THIRD","Third Party Payments","05A","Independent units within the council","6502","Agency Homecare (Payments To Independent Units)","90354475","201306",17/09/2012 00:00:00,537.86,"53280","Nursing Agencies","REDACTED DATA","IMMACULATE HEALTHCARE SERVICES LIMITED","",,""
"London Borough of Redbridge","http://opendatacommunities.org/doc/london-borough-council/redbridge","6BADULTSOCIA","Adult Social Care","6COLDINCMENT","Older People (65 or over) incl. Older Mentally Ill","REV","Revenue","R4391","OP Home Care","05-THIRD","Third Party Payments","05A","Independent units within the council","6502","Agency Homecare (Payments To Independent Units)","90351029","201306",10/09/2012 00:00:00,537.86,"53280","Nursing Agencies","REDACTED DATA","IMMACULATE HEALTHCARE SERVICES LIMITED","",,""
"London Borough of Redbridge","http://opendatacommunities.org/doc/london-borough-council/redbridge","6BADULTSOCIA","Adult Social Care","6COLDINCMENT","Older People (65 or over) incl. Older Mentally Ill","REV","Revenue","R4391","OP Home Care","05-THIRD","Third Party Payments","05A","Independent units within the council","6502","Agency Homecare (Payments To Independent Units)","90350952","201306",31/08/2012 00:00:00,537.86,"53280","Nursing Agencies","REDACTED DATA","IMMACULATE HEALTHCARE SERVICES LIMITED","",,""
"London Borough of Redbridge","http://opendatacommunities.org/doc/london-borough-council/redbridge","4BMANGT&SUPP","Management & Support Services","4CHIGHRDROUT","Highways/Roads (Routine)","REV","Revenue","R7070","Reactive Maintenance","05-THIRD","Third Party Payments","05H","Private contractors","6915","Contractor Payments","3248613","201306",12/09/2012 00:00:00,449.22,"18632","Civil Engineers","REDACTED DATA","KENSON CONTRACTORS BENINGTON LTD","1314691","http://opencorporates.com/companies/gb/1314691","301629589"
"London Borough of Redbridge","http://opendatacommunities.org/doc/london-borough-council/redbridge","1BOTHEROPI&E","Other Operating Income & Expenditure","1CTRADSURDEF","Trading Account Surpluses & Deficits","REV","Revenue","R9576","Broadway Chambers Service Charge Account","04-SUPPLIES","Supplies And Services","04C","Clothes, uniform and laundry","5652","Towel Services","60184361","201306",31/03/2012 00:00:00,449.28,"66520","Sanitary Services","REDACTED DATA","OCS GROUP UK LTD T/A CANNON","3056469","http://opencorporates.com/companies/gb/3056469","238034379"
"London Borough of Redbridge","http://opendatacommunities.org/doc/london-borough-council/redbridge","3BINDSCHFUND","Individual School Funds","3CDELPRIMARY","Delegated Individual Primary School Budgets","REV","Revenue","S2340","GROVE : BUILDING MAINTENANCE","02-PREMISES","Premises","02F","Fixtures and fittings","4420","Security","60185208","201306",31/08/2012 00:00:00,0,"69240","Security Services","REDACTED DATA","CHARTER SECURITY PLC","1530957","http://opencorporates.com/companies/gb/1530957","342117968"
"London Borough of Redbridge","http://opendatacommunities.org/doc/london-borough-council/redbridge","3BINDSCHFUND","Individual School Funds","3CDELPRIMARY","Delegated Individual Primary School Budgets","REV","Revenue","S2340","GROVE : BUILDING MAINTENANCE","02-PREMISES","Premises","02F","Fixtures and fittings","4420","Security","60185208","201306",31/08/2012 00:00:00,449.71,"69240","Security Services","REDACTED DATA","CHARTER SECURITY PLC","1530957","http://opencorporates.com/companies/gb/1530957","342117968"
"London Borough of Redbridge","http://opendatacommunities.org/doc/london-borough-council/redbridge","3BINDSCHFUND","Individual School Funds","3CDELPRIMARY","Delegated Individual Primary School Budgets","REV","Revenue","S2315","GROVE : COMPUTERS","04-SUPPLIES","Supplies And Services","04A","Equipment, furniture and materials","5502","Equipment Purchase","60185207","201306",13/09/2012 00:00:00,449.98,"20703","Computer Systems and Software","REDACTED DATA","MISCO COMPUTER SUPPLIES LTD","",,""
"London Borough of Redbridge","http://opendatacommunities.org/doc/london-borough-council/redbridge","1BOTHEROPI&E","Other Operating Income & Expenditure","1CTRADSURDEF","Trading Account Surpluses & Deficits","REV","Revenue","R9147","Invoices Holding Account Leisure","02-PREMISES","Premises","02H","Cleaning and domestic supplies","4620","Cleaning Contract Payments","60184655","201306",07/09/2012 00:00:00,450,"15269","Cleaning Services - Commercial","REDACTED DATA","LEWIS & GRAVES PARTNERSHIP LLP","OC363239","http://opencorporates.com/companies/gb/OC363239","420106910"
"London Borough of Redbridge","http://opendatacommunities.org/doc/london-borough-council/redbridge","1BOTHEROPI&E","Other Operating Income & Expenditure","1CTRADSURDEF","Trading Account Surpluses & Deficits","REV","Revenue","R9154","Audit","03-TRANSPORT","Transport","03C","Contract hire and operating leases","5204","Taxis - General","60185746","201306",21/09/2012 00:00:00,450,"76350","Taxis & Private Hire","REDACTED DATA","TRANSLOGISTIC LIMITED T/A ASSOCIATED TAXIS","3936360","http://opencorporates.com/companies/gb/3936360","750760338"
"London Borough of Redbridge","http://opendatacommunities.org/doc/london-borough-council/redbridge","1BOTHEROPI&E","Other Operating Income & Expenditure","1CTRADSURDEF","Trading Account Surpluses & Deficits","REV","Revenue","R9154","Audit","03-TRANSPORT","Transport","03C","Contract hire and operating leases","5204","Taxis - General","60184989","201306",14/09/2012 00:00:00,450,"76350","Taxis & Private Hire","REDACTED DATA","TRANSLOGISTIC LIMITED T/A ASSOCIATED TAXIS","3936360","http://opencorporates.com/companies/gb/3936360","750760338"
"London Borough of Redbridge","http://opendatacommunities.org/doc/london-borough-council/redbridge","1BOTHEROPI&E","Other Operating Income & Expenditure","1CTRADSURDEF","Trading Account Surpluses & Deficits","REV","Revenue","R9354","Legal Disbursements","04-SUPPLIES","Supplies And Services","04H","Grants and subscriptions","5954","Professional Fees","60184263","201306",20/08/2012 00:00:00,450,"6700","Barristers","REDACTED DATA","JON HOLBROOK","2301464720","http://opencorporates.com/companies/gb/2301464720","564390821"
"London Borough of Redbridge","http://opendatacommunities.org/doc/london-borough-council/redbridge","3BLEACENTFND","LEA Centrally Held School Funds","3CSCHSTRATMG","Schools Strategic Management","REV","Revenue","R2185","WD and BS - Increased Social Worker Establishment","01-EMPLOYEES","Employees","01B","Indirect employee expenses","2403","External Training","60185651","201306",28/09/2012 00:00:00,450,"79980","Training Services","REDACTED DATA","SAM TARLING CONSULTANCY  LTD","8099157","http://opencorporates.com/companies/gb/8099157","136697084"
"London Borough of Redbridge","http://opendatacommunities.org/doc/london-borough-council/redbridge","6BADULTSOCIA","Adult Social Care","6CSERVSTRAT","Service Strategy","REV","Revenue","R4008","Director of Adult Social Services","04-SUPPLIES","Supplies And Services","04G","Expenses","5901","Conference Expenses","60184951","201306",10/10/2011 00:00:00,450,"12118","Business and Trade Organisations","REDACTED DATA","LOCAL GOVERNMENT ASSOCIATION","",,""
"London Borough of Redbridge","http://opendatacommunities.org/doc/london-borough-council/redbridge","6BADULTSOCIA","Adult Social Care","6CSERVSTRAT","Service Strategy","REV","Revenue","R4008","Director of Adult Social Services","04-SUPPLIES","Supplies And Services","04G","Expenses","5901","Conference Expenses","60184950","201306",10/10/2011 00:00:00,450,"12118","Business and Trade Organisations","REDACTED DATA","LOCAL GOVERNMENT ASSOCIATION","",,""
"London Borough of Redbridge","http://opendatacommunities.org/doc/london-borough-council/redbridge","9BNONBVO","Outside the BVACOP Objective Structure","9CNONBVO","Outside the BVACOP Objective Structure","CAP","Capital","C2203","Accident Remediation Local Safety TFL","99-NONBV","Capital, Balance Sheet and Control","50E","Capital - Contract Payments","9150","Main Contract","60183953","201306",24/08/2012 00:00:00,450,"79650","Traffic Management Systems","REDACTED DATA","TMO SERVICES","",,"702511094"
"London Borough of Redbridge","http://opendatacommunities.org/doc/london-borough-council/redbridge","3BNONSCHFUND","Non-School Funding","3CNONSCH","Non Schools","REV","Revenue","R3953","2 Year Old Funding","05-THIRD","Third Party Payments","05H","Private contractors","6908","Private Nurseries & Childminders","60184386","201306",05/09/2012 00:00:00,540,"59760","Playgroups, Nurseries and Creches","REDACTED DATA","MILLGROVE PRE-SCHOOL NURSERY","",,""
"London Borough of Redbridge","http://opendatacommunities.org/doc/london-borough-council/redbridge","3BNONSCHFUND","Non-School Funding","3CNONSCH","Non Schools","REV","Revenue","R3953","2 Year Old Funding","05-THIRD","Third Party Payments","05H","Private contractors","6908","Private Nurseries & Childminders","60184389","201306",06/09/2012 00:00:00,540,"59760","Playgroups, Nurseries and Creches","REDACTED DATA","DRIVE PRE-SCHOOL","",,""
"London Borough of Redbridge","http://opendatacommunities.org/doc/london-borough-council/redbridge","6BSOCIALSERV","Social Services","6CCHILLOOKED","Children Looked After","REV","Revenue","R2114","SEN and CD - 0-9 Integrated Team Social Care","06-TRANSFER","Transfer Payments","06B","Social Services Clients","7050","Agency Homecare","3249403","201306",20/08/2012 00:00:00,540,"43419","Home Care Services","REDACTED DATA","FASTFLOW DE VERE CARE","",,""
"London Borough of Redbridge","http://opendatacommunities.org/doc/london-borough-council/redbridge","6BSOCIALSERV","Social Services","6CCHILLOOKED","Children Looked After","REV","Revenue","R2117","SEN and CD Care and Support Packages Social Care","05-THIRD","Third Party Payments","05H","Private contractors","6902","Respite Care","70045331","201306",05/09/2012 00:00:00,540,"67860","Schools - Independent & Preparatory","REDACTED DATA","LEARN TO LEAP NURSERY LTD - LEARN TO LEAP DAY NURSERY","7530856","http://opencorporates.com/companies/gb/7530856",""
"London Borough of Redbridge","http://opendatacommunities.org/doc/london-borough-council/redbridge","4BMANGT&SUPP","Management & Support Services","4CHIGHRDROUT","Highways/Roads (Routine)","REV","Revenue","R7070","Reactive Maintenance","05-THIRD","Third Party Payments","05H","Private contractors","6915","Contractor Payments","3247388","201306",06/09/2012 00:00:00,450.63,"18632","Civil Engineers","REDACTED DATA","KENSON CONTRACTORS BENINGTON LTD","1314691","http://opencorporates.com/companies/gb/1314691","301629589"
"London Borough of Redbridge","http://opendatacommunities.org/doc/london-borough-council/redbridge","6BADULTSOCIA","Adult Social Care","6COLDINCMENT","Older People (65 or over) incl. Older Mentally Ill","REV","Revenue","R4211","Older People Direct Payments","09-INCOME","Income","09C","Customer & Client Receipts","8545","Direct Payments Income","3250058","201306",24/09/2012 00:00:00,-270.96,"56800","Payroll Services","REDACTED DATA","HUMAN MANAGEMENT ASSISTANCE-CLIENT ACCOUNT","4752026","http://opencorporates.com/companies/gb/4752026","815230071"
"London Borough of Redbridge","http://opendatacommunities.org/doc/london-borough-council/redbridge","6BADULTSOCIA","Adult Social Care","6COLDINCMENT","Older People (65 or over) incl. Older Mentally Ill","REV","Revenue","R4211","Older People Direct Payments","06-TRANSFER","Transfer Payments","06B","Social Services Clients","7053","Direct Payments","3250058","201306",24/09/2012 00:00:00,812,"56800","Payroll Services","REDACTED DATA","HUMAN MANAGEMENT ASSISTANCE-CLIENT ACCOUNT","4752026","http://opencorporates.com/companies/gb/4752026","815230071"
"London Borough of Redbridge","http://opendatacommunities.org/doc/london-borough-council/redbridge","6BADULTSOCIA","Adult Social Care","6COTHADSERV","Other Adult Services","REV","Revenue","R4389","PCT Older Person Home Care","05-THIRD","Third Party Payments","05A","Independent units within the council","6502","Agency Homecare (Payments To Independent Units)","90354418","201306",14/09/2012 00:00:00,541.12,"53280","Nursing Agencies","REDACTED DATA","IMMACULATE HEALTHCARE SERVICES LIMITED","",,""
"London Borough of Redbridge","http://opendatacommunities.org/doc/london-borough-council/redbridge","6BADULTSOCIA","Adult Social Care","6COLDINCMENT","Older People (65 or over) incl. Older Mentally Ill","REV","Revenue","R4391","OP Home Care","05-THIRD","Third Party Payments","05A","Independent units within the council","6502","Agency Homecare (Payments To Independent Units)","90354429","201306",14/09/2012 00:00:00,541.16,"53280","Nursing Agencies","REDACTED DATA","IMMACULATE HEALTHCARE SERVICES LIMITED","",,""
"London Borough of Redbridge","http://opendatacommunities.org/doc/london-borough-council/redbridge","6BADULTSOCIA","Adult Social Care","6COTHADSERV","Other Adult Services","REV","Revenue","R4389","PCT Older Person Home Care","05-THIRD","Third Party Payments","05A","Independent units within the council","6502","Agency Homecare (Payments To Independent Units)","90352404","201306",10/09/2012 00:00:00,541.16,"43419","Home Care Services","REDACTED DATA","FASTFLOW DE VERE CARE","",,""
"London Borough of Redbridge","http://opendatacommunities.org/doc/london-borough-council/redbridge","4BMANGT&SUPP","Management & Support Services","4CHIGHRDROUT","Highways/Roads (Routine)","REV","Revenue","R7070","Reactive Maintenance","05-THIRD","Third Party Payments","05H","Private contractors","6915","Contractor Payments","3247491","201306",06/09/2012 00:00:00,451.18,"18632","Civil Engineers","REDACTED DATA","KENSON CONTRACTORS BENINGTON LTD","1314691","http://opencorporates.com/companies/gb/1314691","301629589"
"London Borough of Redbridge","http://opendatacommunities.org/doc/london-borough-council/redbridge","6BADULTSOCIA","Adult Social Care","6COLDINCMENT","Older People (65 or over) incl. Older Mentally Ill","REV","Revenue","R4391","OP Home Care","05-THIRD","Third Party Payments","05A","Independent units within the council","6502","Agency Homecare (Payments To Independent Units)","90352701","201306",30/08/2012 00:00:00,542.42,"43419","Home Care Services","REDACTED DATA","ENARA LTD (ENARA COMMUNITY CARE)","65455420","http://opencorporates.com/companies/gb/65455420",""
"London Borough of Redbridge","http://opendatacommunities.org/doc/london-borough-council/redbridge","6BADULTSOCIA","Adult Social Care","6CCHILLOOKED","Children Looked After","REV","Revenue","R2119","CLAFH - Supportive Accommodation","05-THIRD","Third Party Payments","05H","Private contractors","6910","Care Packages","3247270","201306",16/08/2012 00:00:00,452.57,"43419","Home Care Services","REDACTED DATA","LCS PARTNERSHIPS LTD (LONDON CARE SOLUTIONS)","6820538","http://opencorporates.com/companies/gb/6820538","975528279"
"London Borough of Redbridge","http://opendatacommunities.org/doc/london-borough-council/redbridge","6BADULTSOCIA","Adult Social Care","6COLDINCMENT","Older People (65 or over) incl. Older Mentally Ill","REV","Revenue","R4211","Older People Direct Payments","09-INCOME","Income","09C","Customer & Client Receipts","8545","Direct Payments Income","3249956","201306",24/09/2012 00:00:00,-71.48,"56800","Payroll Services","REDACTED DATA","HUMAN MANAGEMENT ASSISTANCE-CLIENT ACCOUNT","4752026","http://opencorporates.com/companies/gb/4752026","815230071"
"London Borough of Redbridge","http://opendatacommunities.org/doc/london-borough-council/redbridge","6BADULTSOCIA","Adult Social Care","6COLDINCMENT","Older People (65 or over) incl. Older Mentally Ill","REV","Revenue","R4211","Older People Direct Payments","06-TRANSFER","Transfer Payments","06B","Social Services Clients","7053","Direct Payments","3249956","201306",24/09/2012 00:00:00,614.84,"56800","Payroll Services","REDACTED DATA","HUMAN MANAGEMENT ASSISTANCE-CLIENT ACCOUNT","4752026","http://opencorporates.com/companies/gb/4752026","815230071"
"London Borough of Redbridge","http://opendatacommunities.org/doc/london-borough-council/redbridge","6BADULTSOCIA","Adult Social Care","6CADLEARNDIS","Adults Under 65 with Learning Disabilities","REV","Revenue","R4215","LD Direct Payments","09-INCOME","Income","09C","Customer & Client Receipts","8545","Direct Payments Income","3249823","201306",24/09/2012 00:00:00,-106.04,"90005","Home Care Services DP","REDACTED DATA","REDACTED DATA","",,""
"London Borough of Redbridge","http://opendatacommunities.org/doc/london-borough-council/redbridge","6BADULTSOCIA","Adult Social Care","6CADLEARNDIS","Adults Under 65 with Learning Disabilities","REV","Revenue","R4215","LD Direct Payments","06-TRANSFER","Transfer Payments","06B","Social Services Clients","7053","Direct Payments","3249823","201306",24/09/2012 00:00:00,649.6,"90005","Home Care Services DP","REDACTED DATA","REDACTED DATA","",,""
"London Borough of Redbridge","http://opendatacommunities.org/doc/london-borough-council/redbridge","6BADULTSOCIA","Adult Social Care","6CADLEARNDIS","Adults Under 65 with Learning Disabilities","REV","Revenue","R4218","LD Individual Budgets","06-TRANSFER","Transfer Payments","06B","Social Services Clients","7053","Direct Payments","3249832","201306",24/09/2012 00:00:00,544,"43419","Home Care Services","REDACTED DATA","NATALIE NASTRUCCI","",,""
"London Borough of Redbridge","http://opendatacommunities.org/doc/london-borough-council/redbridge","6BSOCIALSERV","Social Services","6CCHILLOOKED","Children Looked After","REV","Revenue","R2117","SEN and CD Care and Support Packages Social Care","06-TRANSFER","Transfer Payments","06B","Social Services Clients","7050","Agency Homecare","3248049","201306",20/08/2012 00:00:00,544.5,"43419","Home Care Services","REDACTED DATA","FASTFLOW DE VERE CARE","",,""
"London Borough of Redbridge","http://opendatacommunities.org/doc/london-borough-council/redbridge","6BADULTSOCIA","Adult Social Care","6CADLEARNDIS","Adults Under 65 with Learning Disabilities","REV","Revenue","R4383","LD - External Day Care","05-THIRD","Third Party Payments","05H","Private contractors","6904","Day Centres","90356101","201306",12/09/2012 00:00:00,544.72,"17020","Charities and Voluntary Organisations","REDACTED DATA","MENCAP","550457","http://opencorporates.com/companies/gb/550457","233010136"
"London Borough of Redbridge","http://opendatacommunities.org/doc/london-borough-council/redbridge","6BADULTSOCIA","Adult Social Care","6COLDINCMENT","Older People (65 or over) incl. Older Mentally Ill","REV","Revenue","R4211","Older People Direct Payments","06-TRANSFER","Transfer Payments","06B","Social Services Clients","7053","Direct Payments","3250110","201306",24/09/2012 00:00:00,545.24,"56800","Payroll Services","REDACTED DATA","HUMAN MANAGEMENT ASSISTANCE-CLIENT ACCOUNT","4752026","http://opencorporates.com/companies/gb/4752026","815230071"
"London Borough of Redbridge","http://opendatacommunities.org/doc/london-borough-council/redbridge","3BINDSCHFUND","Individual School Funds","3CDELSECOND","Delegated Individual Secondary School Budgets","REV","Revenue","S2096","TRINITY : General Adminstrative Supplies","04-SUPPLIES","Supplies And Services","04F","Communications and computing","5858","Phones","70045646","201306",03/08/2012 00:00:00,455.63,"0","Not Classified","REDACTED DATA","Southern Communications Ltd","",,"0"
"London Borough of Redbridge","http://opendatacommunities.org/doc/london-borough-council/redbridge","1BOTHEROPI&E","Other Operating Income & Expenditure","1CTRADSURDEF","Trading Account Surpluses & Deficits","REV","Revenue","R9578","Misc Properties","04-SUPPLIES","Supplies And Services","04K","Miscellaneous expenses","6258","Security Patrol Services","60184521","201306",31/08/2012 00:00:00,456,"69240","Security Services","REDACTED DATA","A & M SECURITY CO","",,"311691676"
"London Borough of Redbridge","http://opendatacommunities.org/doc/london-borough-council/redbridge","6BADULTSOCIA","Adult Social Care","6COLDINCMENT","Older People (65 or over) incl. Older Mentally Ill","REV","Revenue","R4197","Oakfield Lodge Dc","04-SUPPLIES","Supplies And Services","04B","Catering","5601","Catering Provisions (Food & Drink)","60184938","201306",13/07/2012 00:00:00,547.49,"12260","Butchers","REDACTED DATA","WILLIAM WHITE MEATS LIMITED","3027063","http://opencorporates.com/companies/gb/3027063","345632848"
"London Borough of Redbridge","http://opendatacommunities.org/doc/london-borough-council/redbridge","3BNONSCHFUND","Non-School Funding","3CNONSCH","Non Schools","REV","Revenue","R3962","Early Years - 3 and 4 Year Olds","05-THIRD","Third Party Payments","05A","Independent units within the council","6517","Non-Maintained Schools","3250897","201306",03/10/2012 00:00:00,548,"59760","Playgroups, Nurseries and Creches","REDACTED DATA","WATERLILY NURSERY LTD","5825326","http://opencorporates.com/companies/gb/5825326",""
"London Borough of Redbridge","http://opendatacommunities.org/doc/london-borough-council/redbridge","6BADULTSOCIA","Adult Social Care","6CADMENHLTH","Adults Under 65 with Mental Health Needs","REV","Revenue","R4379","Assertive Outreach Team","02-PREMISES","Premises","02B","Energy costs","4000","Electricity","80000085","201306",20/03/2012 00:00:00,456.76,"30586","Electricity Companies","REDACTED DATA","SCOTTISH & SOUTHERN ENERGY (SOUTHERN ELECTRIC & SWALEC)","2716495","http://opencorporates.com/companies/gb/2716495","553769603"
"London Borough of Redbridge","http://opendatacommunities.org/doc/london-borough-council/redbridge","6BADULTSOCIA","Adult Social Care","6CADMENHLTH","Adults Under 65 with Mental Health Needs","REV","Revenue","R4213","MH Direct Payments","09-INCOME","Income","09C","Customer & Client Receipts","8545","Direct Payments Income","3249945","201306",24/09/2012 00:00:00,-31.84,"56800","Payroll Services","REDACTED DATA","HUMAN MANAGEMENT ASSISTANCE-CLIENT ACCOUNT","4752026","http://opencorporates.com/companies/gb/4752026","815230071"
"London Borough of Redbridge","http://opendatacommunities.org/doc/london-borough-council/redbridge","6BADULTSOCIA","Adult Social Care","6CADMENHLTH","Adults Under 65 with Mental Health Needs","REV","Revenue","R4213","MH Direct Payments","06-TRANSFER","Transfer Payments","06B","Social Services Clients","7053","Direct Payments","3249945","201306",24/09/2012 00:00:00,580,"56800","Payroll Services","REDACTED DATA","HUMAN MANAGEMENT ASSISTANCE-CLIENT ACCOUNT","4752026","http://opencorporates.com/companies/gb/4752026","815230071"
"London Borough of Redbridge","http://opendatacommunities.org/doc/london-borough-council/redbridge","9BNONBVO","Outside the BVACOP Objective Structure","9CNONBVO","Outside the BVACOP Objective Structure","BAL","Balance Sheet","B0006","Mech Engineerng Store","99-NONBV","Capital, Balance Sheet and Control","50K","Current Assets","9407","Variation A/C - Payments","634014","201306",17/08/2012 00:00:00,209.22,"20375","Commercial Vehicle Mnfrs","REDACTED DATA","DENNIS EAGLE LIMITED","3794455","http://opencorporates.com/companies/gb/3794455","729846779"
"London Borough of Redbridge","http://opendatacommunities.org/doc/london-borough-council/redbridge","9BNONBVO","Outside the BVACOP Objective Structure","9CNONBVO","Outside the BVACOP Objective Structure","BAL","Balance Sheet","B0006","Mech Engineerng Store","99-NONBV","Capital, Balance Sheet and Control","50K","Current Assets","9407","Variation A/C - Payments","634014","201306",17/08/2012 00:00:00,247.6,"20375","Commercial Vehicle Mnfrs","REDACTED DATA","DENNIS EAGLE LIMITED","3794455","http://opencorporates.com/companies/gb/3794455","729846779"
"London Borough of Redbridge","http://opendatacommunities.org/doc/london-borough-council/redbridge","9BNONBVO","Outside the BVACOP Objective Structure","9CNONBVO","Outside the BVACOP Objective Structure","REV","Revenue","R7702","Vehicle Workshop","04-SUPPLIES","Supplies And Services","04A","Equipment, furniture and materials","5510","Materials","634134","201306",13/09/2012 00:00:00,5.97,"20375","Commercial Vehicle Mnfrs","REDACTED DATA","JOHNSTON SWEEPERS LTD","",,""
"London Borough of Redbridge","http://opendatacommunities.org/doc/london-borough-council/redbridge","9BNONBVO","Outside the BVACOP Objective Structure","9CNONBVO","Outside the BVACOP Objective Structure","REV","Revenue","R7702","Vehicle Workshop","04-SUPPLIES","Supplies And Services","04A","Equipment, furniture and materials","5510","Materials","634134","201306",13/09/2012 00:00:00,12.54,"20375","Commercial Vehicle Mnfrs","REDACTED DATA","JOHNSTON SWEEPERS LTD","",,""
"London Borough of Redbridge","http://opendatacommunities.org/doc/london-borough-council/redbridge","9BNONBVO","Outside the BVACOP Objective Structure","9CNONBVO","Outside the BVACOP Objective Structure","REV","Revenue","R7702","Vehicle Workshop","04-SUPPLIES","Supplies And Services","04A","Equipment, furniture and materials","5510","Materials","634134","201306",13/09/2012 00:00:00,12.83,"20375","Commercial Vehicle Mnfrs","REDACTED DATA","JOHNSTON SWEEPERS LTD","",,""
"London Borough of Redbridge","http://opendatacommunities.org/doc/london-borough-council/redbridge","9BNONBVO","Outside the BVACOP Objective Structure","9CNONBVO","Outside the BVACOP Objective Structure","REV","Revenue","R7702","Vehicle Workshop","04-SUPPLIES","Supplies And Services","04A","Equipment, furniture and materials","5510","Materials","634134","201306",13/09/2012 00:00:00,13.26,"20375","Commercial Vehicle Mnfrs","REDACTED DATA","JOHNSTON SWEEPERS LTD","",,""
"London Borough of Redbridge","http://opendatacommunities.org/doc/london-borough-council/redbridge","9BNONBVO","Outside the BVACOP Objective Structure","9CNONBVO","Outside the BVACOP Objective Structure","REV","Revenue","R7702","Vehicle Workshop","04-SUPPLIES","Supplies And Services","04A","Equipment, furniture and materials","5510","Materials","634134","201306",13/09/2012 00:00:00,13.84,"20375","Commercial Vehicle Mnfrs","REDACTED DATA","JOHNSTON SWEEPERS LTD","",,""
"London Borough of Redbridge","http://opendatacommunities.org/doc/london-borough-council/redbridge","9BNONBVO","Outside the BVACOP Objective Structure","9CNONBVO","Outside the BVACOP Objective Structure","REV","Revenue","R7702","Vehicle Workshop","04-SUPPLIES","Supplies And Services","04A","Equipment, furniture and materials","5510","Materials","634134","201306",13/09/2012 00:00:00,14.06,"20375","Commercial Vehicle Mnfrs","REDACTED DATA","JOHNSTON SWEEPERS LTD","",,""
"London Borough of Redbridge","http://opendatacommunities.org/doc/london-borough-council/redbridge","9BNONBVO","Outside the BVACOP Objective Structure","9CNONBVO","Outside the BVACOP Objective Structure","REV","Revenue","R7702","Vehicle Workshop","04-SUPPLIES","Supplies And Services","04A","Equipment, furniture and materials","5510","Materials","634134","201306",13/09/2012 00:00:00,20.7,"20375","Commercial Vehicle Mnfrs","REDACTED DATA","JOHNSTON SWEEPERS LTD","",,""
"London Borough of Redbridge","http://opendatacommunities.org/doc/london-borough-council/redbridge","9BNONBVO","Outside the BVACOP Objective Structure","9CNONBVO","Outside the BVACOP Objective Structure","REV","Revenue","R7702","Vehicle Workshop","04-SUPPLIES","Supplies And Services","04A","Equipment, furniture and materials","5510","Materials","634134","201306",13/09/2012 00:00:00,20.94,"20375","Commercial Vehicle Mnfrs","REDACTED DATA","JOHNSTON SWEEPERS LTD","",,""
"London Borough of Redbridge","http://opendatacommunities.org/doc/london-borough-council/redbridge","9BNONBVO","Outside the BVACOP Objective Structure","9CNONBVO","Outside the BVACOP Objective Structure","REV","Revenue","R7702","Vehicle Workshop","04-SUPPLIES","Supplies And Services","04A","Equipment, furniture and materials","5510","Materials","634134","201306",13/09/2012 00:00:00,20.99,"20375","Commercial Vehicle Mnfrs","REDACTED DATA","JOHNSTON SWEEPERS LTD","",,""
"London Borough of Redbridge","http://opendatacommunities.org/doc/london-borough-council/redbridge","9BNONBVO","Outside the BVACOP Objective Structure","9CNONBVO","Outside the BVACOP Objective Structure","REV","Revenue","R7702","Vehicle Workshop","04-SUPPLIES","Supplies And Services","04A","Equipment, furniture and materials","5510","Materials","634134","201306",13/09/2012 00:00:00,24.83,"20375","Commercial Vehicle Mnfrs","REDACTED DATA","JOHNSTON SWEEPERS LTD","",,""
"London Borough of Redbridge","http://opendatacommunities.org/doc/london-borough-council/redbridge","9BNONBVO","Outside the BVACOP Objective Structure","9CNONBVO","Outside the BVACOP Objective Structure","REV","Revenue","R7702","Vehicle Workshop","04-SUPPLIES","Supplies And Services","04A","Equipment, furniture and materials","5510","Materials","634134","201306",13/09/2012 00:00:00,28.91,"20375","Commercial Vehicle Mnfrs","REDACTED DATA","JOHNSTON SWEEPERS LTD","",,""
"London Borough of Redbridge","http://opendatacommunities.org/doc/london-borough-council/redbridge","9BNONBVO","Outside the BVACOP Objective Structure","9CNONBVO","Outside the BVACOP Objective Structure","REV","Revenue","R7702","Vehicle Workshop","04-SUPPLIES","Supplies And Services","04A","Equipment, furniture and materials","5510","Materials","634134","201306",13/09/2012 00:00:00,36.66,"20375","Commercial Vehicle Mnfrs","REDACTED DATA","JOHNSTON SWEEPERS LTD","",,""
"London Borough of Redbridge","http://opendatacommunities.org/doc/london-borough-council/redbridge","9BNONBVO","Outside the BVACOP Objective Structure","9CNONBVO","Outside the BVACOP Objective Structure","REV","Revenue","R7702","Vehicle Workshop","04-SUPPLIES","Supplies And Services","04A","Equipment, furniture and materials","5510","Materials","634134","201306",13/09/2012 00:00:00,43.06,"20375","Commercial Vehicle Mnfrs","REDACTED DATA","JOHNSTON SWEEPERS LTD","",,""
"London Borough of Redbridge","http://opendatacommunities.org/doc/london-borough-council/redbridge","9BNONBVO","Outside the BVACOP Objective Structure","9CNONBVO","Outside the BVACOP Objective Structure","REV","Revenue","R7702","Vehicle Workshop","04-SUPPLIES","Supplies And Services","04A","Equipment, furniture and materials","5510","Materials","634134","201306",13/09/2012 00:00:00,47.11,"20375","Commercial Vehicle Mnfrs","REDACTED DATA","JOHNSTON SWEEPERS LTD","",,""
"London Borough of Redbridge","http://opendatacommunities.org/doc/london-borough-council/redbridge","9BNONBVO","Outside the BVACOP Objective Structure","9CNONBVO","Outside the BVACOP Objective Structure","REV","Revenue","R7702","Vehicle Workshop","04-SUPPLIES","Supplies And Services","04A","Equipment, furniture and materials","5510","Materials","634134","201306",13/09/2012 00:00:00,54.14,"20375","Commercial Vehicle Mnfrs","REDACTED DATA","JOHNSTON SWEEPERS LTD","",,""
"London Borough of Redbridge","http://opendatacommunities.org/doc/london-borough-council/redbridge","9BNONBVO","Outside the BVACOP Objective Structure","9CNONBVO","Outside the BVACOP Objective Structure","REV","Revenue","R7702","Vehicle Workshop","04-SUPPLIES","Supplies And Services","04A","Equipment, furniture and materials","5510","Materials","634134","201306",13/09/2012 00:00:00,89.08,"20375","Commercial Vehicle Mnfrs","REDACTED DATA","JOHNSTON SWEEPERS LTD","",,""
"London Borough of Redbridge","http://opendatacommunities.org/doc/london-borough-council/redbridge","4BMANGT&SUPP","Management & Support Services","4CHIGHRDROUT","Highways/Roads (Routine)","REV","Revenue","R7068","Signs - Schedule 2","05-THIRD","Third Party Payments","05H","Private contractors","6915","Contractor Payments","3247812","201306",06/09/2012 00:00:00,459.07,"21555","Construction Contractors - General","REDACTED DATA","MAY GURNEY LIMITED","873179","http://opencorporates.com/companies/gb/873179","105540018"
"London Borough of Redbridge","http://opendatacommunities.org/doc/london-borough-council/redbridge","4BMANGT&SUPP","Management & Support Services","4CHIGHRDROUT","Highways/Roads (Routine)","REV","Revenue","R7068","Signs - Schedule 2","05-THIRD","Third Party Payments","05H","Private contractors","6915","Contractor Payments","3247734","201306",06/09/2012 00:00:00,459.07,"21555","Construction Contractors - General","REDACTED DATA","MAY GURNEY LIMITED","873179","http://opencorporates.com/companies/gb/873179","105540018"
"London Borough of Redbridge","http://opendatacommunities.org/doc/london-borough-council/redbridge","4BMANGT&SUPP","Management & Support Services","4CHIGHRDROUT","Highways/Roads (Routine)","REV","Revenue","R7068","Signs - Schedule 2","05-THIRD","Third Party Payments","05H","Private contractors","6915","Contractor Payments","3247737","201306",06/09/2012 00:00:00,459.07,"21555","Construction Contractors - General","REDACTED DATA","MAY GURNEY LIMITED","873179","http://opencorporates.com/companies/gb/873179","105540018"
"London Borough of Redbridge","http://opendatacommunities.org/doc/london-borough-council/redbridge","4BMANGT&SUPP","Management & Support Services","4CHIGHRDROUT","Highways/Roads (Routine)","REV","Revenue","R7068","Signs - Schedule 2","05-THIRD","Third Party Payments","05H","Private contractors","6915","Contractor Payments","3247738","201306",06/09/2012 00:00:00,459.07,"21555","Construction Contractors - General","REDACTED DATA","MAY GURNEY LIMITED","873179","http://opencorporates.com/companies/gb/873179","105540018"
"London Borough of Redbridge","http://opendatacommunities.org/doc/london-borough-council/redbridge","4BMANGT&SUPP","Management & Support Services","4CHIGHRDROUT","Highways/Roads (Routine)","REV","Revenue","R7068","Signs - Schedule 2","05-THIRD","Third Party Payments","05H","Private contractors","6915","Contractor Payments","3247813","201306",06/09/2012 00:00:00,459.07,"21555","Construction Contractors - General","REDACTED DATA","MAY GURNEY LIMITED","873179","http://opencorporates.com/companies/gb/873179","105540018"
"London Borough of Redbridge","http://opendatacommunities.org/doc/london-borough-council/redbridge","4BMANGT&SUPP","Management & Support Services","4CHIGHRDROUT","Highways/Roads (Routine)","REV","Revenue","R7068","Signs - Schedule 2","05-THIRD","Third Party Payments","05H","Private contractors","6915","Contractor Payments","3247735","201306",06/09/2012 00:00:00,459.07,"21555","Construction Contractors - General","REDACTED DATA","MAY GURNEY LIMITED","873179","http://opencorporates.com/companies/gb/873179","105540018"
"London Borough of Redbridge","http://opendatacommunities.org/doc/london-borough-council/redbridge","6BADULTSOCIA","Adult Social Care","6CADLEARNDIS","Adults Under 65 with Learning Disabilities","REV","Revenue","R4383","LD - External Day Care","05-THIRD","Third Party Payments","05H","Private contractors","6904","Day Centres","90350254","201306",14/08/2012 00:00:00,459.24,"17020","Charities and Voluntary Organisations","REDACTED DATA","NORWOOD RAVENWOOD SERVICES LTD","",,""
"London Borough of Redbridge","http://opendatacommunities.org/doc/london-borough-council/redbridge","6BADULTSOCIA","Adult Social Care","6CADLEARNDIS","Adults Under 65 with Learning Disabilities","REV","Revenue","R4383","LD - External Day Care","05-THIRD","Third Party Payments","05H","Private contractors","6904","Day Centres","90356141","201306",12/09/2012 00:00:00,459.24,"17020","Charities and Voluntary Organisations","REDACTED DATA","NORWOOD RAVENWOOD SERVICES LTD","",,""
"London Borough of Redbridge","http://opendatacommunities.org/doc/london-borough-council/redbridge","4BMANGT&SUPP","Management & Support Services","4CHIGHRDROUT","Highways/Roads (Routine)","REV","Revenue","R7070","Reactive Maintenance","05-THIRD","Third Party Payments","05H","Private contractors","6915","Contractor Payments","3250484","201306",24/09/2012 00:00:00,459.5,"18632","Civil Engineers","REDACTED DATA","KENSON CONTRACTORS BENINGTON LTD","1314691","http://opencorporates.com/companies/gb/1314691","301629589"
"London Borough of Redbridge","http://opendatacommunities.org/doc/london-borough-council/redbridge","3BINDSCHFUND","Individual School Funds","3CDELSECOND","Delegated Individual Secondary School Budgets","REV","Revenue","S2075","TRINITY : ICT learning resources","04-SUPPLIES","Supplies And Services","04F","Communications and computing","5852","Computer Equipment - Repairs & Maintenance","70045615","201306",10/07/2012 00:00:00,460,"20703","Computer Systems and Software","REDACTED DATA","MISCO COMPUTER SUPPLIES LTD","",,""
"London Borough of Redbridge","http://opendatacommunities.org/doc/london-borough-council/redbridge","4BMANGT&SUPP","Management & Support Services","4CHIGHRDROUT","Highways/Roads (Routine)","REV","Revenue","R7003","Signs non illuminated","05-THIRD","Third Party Payments","05H","Private contractors","6915","Contractor Payments","3247761","201306",06/09/2012 00:00:00,460.2,"21555","Construction Contractors - General","REDACTED DATA","MAY GURNEY LIMITED","873179","http://opencorporates.com/companies/gb/873179","105540018"
"London Borough of Redbridge","http://opendatacommunities.org/doc/london-borough-council/redbridge","4BMANGT&SUPP","Management & Support Services","4CHIGHRDROUT","Highways/Roads (Routine)","REV","Revenue","R7070","Reactive Maintenance","05-THIRD","Third Party Payments","05H","Private contractors","6915","Contractor Payments","3248370","201306",12/09/2012 00:00:00,460.42,"18632","Civil Engineers","REDACTED DATA","KENSON CONTRACTORS BENINGTON LTD","1314691","http://opencorporates.com/companies/gb/1314691","301629589"
"London Borough of Redbridge","http://opendatacommunities.org/doc/london-borough-council/redbridge","3BINDSCHFUND","Individual School Funds","3CDELSECOND","Delegated Individual Secondary School Budgets","REV","Revenue","S2007","TRINITY : Continual Professional Devlelopment","04-SUPPLIES","Supplies And Services","04H","Grants and subscriptions","5954","Professional Fees","70045613","201306",26/07/2012 00:00:00,460.6,"0","Not Classified","REDACTED DATA","CHILDNET INTERNATIONAL","1080173","http://opencorporates.com/companies/gb/1080173","726212656"
"London Borough of Redbridge","http://opendatacommunities.org/doc/london-borough-council/redbridge","3BOPTIONHLDG","Optional Holding Accounts","3CADULT","Adult Education","REV","Revenue","R3797","RIAE   Family Literacy Language and Numeracy","04-SUPPLIES","Supplies And Services","04A","Equipment, furniture and materials","5502","Equipment Purchase","3249528","201306",14/09/2012 00:00:00,460.8,"17020","Charities and Voluntary Organisations","REDACTED DATA","PRE-SCHOOL LEARNING ALLIANCE( RED SUB COM)","4539003","http://opencorporates.com/companies/gb/4539003","830472251"
"London Borough of Redbridge","http://opendatacommunities.org/doc/london-borough-council/redbridge","1BOTHEROPI&E","Other Operating Income & Expenditure","1CTRADSURDEF","Trading Account Surpluses & Deficits","REV","Revenue","R9830","Internal Print","04-SUPPLIES","Supplies And Services","04A","Equipment, furniture and materials","5510","Materials","60184561","201306",05/09/2012 00:00:00,460.98,"55995","Paper Merchants","REDACTED DATA","ANTALIS  MCNAUGHTON LIMITED","1088345","http://opencorporates.com/companies/gb/1088345","244065283"
"London Borough of Redbridge","http://opendatacommunities.org/doc/london-borough-council/redbridge","6BADULTSOCIA","Adult Social Care","6CADLEARNDIS","Adults Under 65 with Learning Disabilities","REV","Revenue","R4297","Out There Project","01-EMPLOYEES","Employees","01A","Direct employee expenses","4","Agency Staff - Pay","60184349","201306",11/09/2012 00:00:00,461.5,"31230","Employment & Recruitment Agencies","REDACTED DATA","CRASTER RECRUITMENT LTD","7654534","http://opencorporates.com/companies/gb/7654534","119719983"
"London Borough of Redbridge","http://opendatacommunities.org/doc/london-borough-council/redbridge","6BSOCIALSERV","Social Services","6CFAMSUPPSER","Family Support Services","REV","Revenue","R2161","Albert Road - Outreach South - Albert Road","02-PREMISES","Premises","02F","Fixtures and fittings","4420","Security","70045374","201306",01/03/2012 00:00:00,0,"69240","Security Services","REDACTED DATA","ELITE TEAM SECURITY LTD","6598621","http://opencorporates.com/companies/gb/6598621","939919068"
"London Borough of Redbridge","http://opendatacommunities.org/doc/london-borough-council/redbridge","6BSOCIALSERV","Social Services","6CFAMSUPPSER","Family Support Services","REV","Revenue","R2161","Albert Road - Outreach South - Albert Road","02-PREMISES","Premises","02F","Fixtures and fittings","4420","Security","70045374","201306",01/03/2012 00:00:00,462,"69240","Security Services","REDACTED DATA","ELITE TEAM SECURITY LTD","6598621","http://opencorporates.com/companies/gb/6598621","939919068"
"London Borough of Redbridge","http://opendatacommunities.org/doc/london-borough-council/redbridge","9BNONBVO","Outside the BVACOP Objective Structure","9CNONBVO","Outside the BVACOP Objective Structure","REV","Revenue","R5219","Capital Programme Team","01-EMPLOYEES","Employees","01A","Direct employee expenses","4","Agency Staff - Pay","70045107","201306",29/08/2012 00:00:00,462,"0","Not Classified","REDACTED DATA","THE OYSTER PARTNERSHIP LTD","5020374","http://opencorporates.com/companies/gb/5020374","832961025"
"London Borough of Redbridge","http://opendatacommunities.org/doc/london-borough-council/redbridge","3BNONSCHFUND","Non-School Funding","3CNONSCH","Non Schools","REV","Revenue","R3948","Ray Lodge CC Nursery","01-EMPLOYEES","Employees","01A","Direct employee expenses","4","Agency Staff - Pay","60184435","201306",05/09/2012 00:00:00,462.31,"31230","Employment & Recruitment Agencies","REDACTED DATA","RANDSTAD EDUCATION LTD","3403530","http://opencorporates.com/companies/gb/3403530","492435726"
"London Borough of Redbridge","http://opendatacommunities.org/doc/london-borough-council/redbridge","9BNONBVO","Outside the BVACOP Objective Structure","9CNONBVO","Outside the BVACOP Objective Structure","REV","Revenue","R7702","Vehicle Workshop","04-SUPPLIES","Supplies And Services","04A","Equipment, furniture and materials","5510","Materials","633989","201306",17/08/2012 00:00:00,25.94,"2600","Agricultural Machinery - Sales and Service","REDACTED DATA","ERNEST DOE & SONS LIMITED","431173","http://opencorporates.com/companies/gb/431173","102354912"
"London Borough of Redbridge","http://opendatacommunities.org/doc/london-borough-council/redbridge","9BNONBVO","Outside the BVACOP Objective Structure","9CNONBVO","Outside the BVACOP Objective Structure","REV","Revenue","R7702","Vehicle Workshop","04-SUPPLIES","Supplies And Services","04A","Equipment, furniture and materials","5510","Materials","633989","201306",17/08/2012 00:00:00,436.81,"2600","Agricultural Machinery - Sales and Service","REDACTED DATA","ERNEST DOE & SONS LIMITED","431173","http://opencorporates.com/companies/gb/431173","102354912"
"London Borough of Redbridge","http://opendatacommunities.org/doc/london-borough-council/redbridge","6BADULTSOCIA","Adult Social Care","6CADLEARNDIS","Adults Under 65 with Learning Disabilities","REV","Revenue","R4394","LD - Homecare","05-THIRD","Third Party Payments","05A","Independent units within the council","6502","Agency Homecare (Payments To Independent Units)","90354161","201306",19/09/2012 00:00:00,555.39,"31230","Employment & Recruitment Agencies","REDACTED DATA","SHARED CARE SERVICES LTD","4704680","http://opencorporates.com/companies/gb/4704680",""
"London Borough of Redbridge","http://opendatacommunities.org/doc/london-borough-council/redbridge","6BADULTSOCIA","Adult Social Care","6CADLEARNDIS","Adults Under 65 with Learning Disabilities","REV","Revenue","R4218","LD Individual Budgets","06-TRANSFER","Transfer Payments","06B","Social Services Clients","7053","Direct Payments","3250144","201306",24/09/2012 00:00:00,556.08,"56800","Payroll Services","REDACTED DATA","HUMAN MANAGEMENT ASSISTANCE-CLIENT ACCOUNT","4752026","http://opencorporates.com/companies/gb/4752026","815230071"
"London Borough of Redbridge","http://opendatacommunities.org/doc/london-borough-council/redbridge","1BCENTRALPUB","Central Services to the Public","1CLOCALTAXCO","Local Tax Collection","REV","Revenue","R5760","Council Tax Collection","04-SUPPLIES","Supplies And Services","04K","Miscellaneous expenses","6204","Bankruptcy","60184048","201306",22/08/2012 00:00:00,489.5,"72460","Solicitors","REDACTED DATA","WILKIN CHAPMAN SOLICITORS","",,"127942455"
"London Borough of Redbridge","http://opendatacommunities.org/doc/london-borough-council/redbridge","3BOPTIONHLDG","Optional Holding Accounts","3CADULT","Adult Education","REV","Revenue","R3497","RIAE   Additional Learning Support","04-SUPPLIES","Supplies And Services","04A","Equipment, furniture and materials","5502","Equipment Purchase","3248797","201306",12/09/2012 00:00:00,464,"25820","Disability & Special Needs - Services","REDACTED DATA","THE DEAF AGENCY LTD","6953306","http://opencorporates.com/companies/gb/6953306","975307301"
"London Borough of Redbridge","http://opendatacommunities.org/doc/london-borough-council/redbridge","9BNONBVO","Outside the BVACOP Objective Structure","9CNONBVO","Outside the BVACOP Objective Structure","REV","Revenue","R5219","Capital Programme Team","01-EMPLOYEES","Employees","01A","Direct employee expenses","4","Agency Staff - Pay","70045922","201306",12/09/2012 00:00:00,464,"0","Not Classified","REDACTED DATA","THE OYSTER PARTNERSHIP LTD","5020374","http://opencorporates.com/companies/gb/5020374","832961025"
"London Borough of Redbridge","http://opendatacommunities.org/doc/london-borough-council/redbridge","6BADULTSOCIA","Adult Social Care","6CADLEARNDIS","Adults Under 65 with Learning Disabilities","REV","Revenue","R4215","LD Direct Payments","06-TRANSFER","Transfer Payments","06B","Social Services Clients","7053","Direct Payments","3250158","201306",24/09/2012 00:00:00,556.8,"56800","Payroll Services","REDACTED DATA","HUMAN MANAGEMENT ASSISTANCE-CLIENT ACCOUNT","4752026","http://opencorporates.com/companies/gb/4752026","815230071"
"London Borough of Redbridge","http://opendatacommunities.org/doc/london-borough-council/redbridge","6BADULTSOCIA","Adult Social Care","6CADMENHLTH","Adults Under 65 with Mental Health Needs","REV","Revenue","R4213","MH Direct Payments","06-TRANSFER","Transfer Payments","06B","Social Services Clients","7053","Direct Payments","3250078","201306",24/09/2012 00:00:00,556.8,"56800","Payroll Services","REDACTED DATA","HUMAN MANAGEMENT ASSISTANCE-CLIENT ACCOUNT","4752026","http://opencorporates.com/companies/gb/4752026","815230071"
"London Borough of Redbridge","http://opendatacommunities.org/doc/london-borough-council/redbridge","6BADULTSOCIA","Adult Social Care","6CADPHYSDIS","Adults Under 65 with Phys Disab or Sensory Impair","REV","Revenue","R4021","Carers PD Direct Payments","06-TRANSFER","Transfer Payments","06B","Social Services Clients","7053","Direct Payments","3250331","201306",24/09/2012 00:00:00,556.8,"56800","Payroll Services","REDACTED DATA","HUMAN MANAGEMENT ASSISTANCE-CLIENT ACCOUNT","4752026","http://opencorporates.com/companies/gb/4752026","815230071"
"London Borough of Redbridge","http://opendatacommunities.org/doc/london-borough-council/redbridge","6BADULTSOCIA","Adult Social Care","6CADLEARNDIS","Adults Under 65 with Learning Disabilities","REV","Revenue","R4215","LD Direct Payments","06-TRANSFER","Transfer Payments","06B","Social Services Clients","7053","Direct Payments","3249801","201306",24/09/2012 00:00:00,556.8,"90005","Home Care Services DP","REDACTED DATA","REDACTED DATA","",,""
"London Borough of Redbridge","http://opendatacommunities.org/doc/london-borough-council/redbridge","6BADULTSOCIA","Adult Social Care","6CADLEARNDIS","Adults Under 65 with Learning Disabilities","REV","Revenue","R4215","LD Direct Payments","06-TRANSFER","Transfer Payments","06B","Social Services Clients","7053","Direct Payments","3249920","201306",24/09/2012 00:00:00,556.8,"90005","Home Care Services DP","REDACTED DATA","REDACTED DATA","",,""
"London Borough of Redbridge","http://opendatacommunities.org/doc/london-borough-council/redbridge","6BADULTSOCIA","Adult Social Care","6COLDINCMENT","Older People (65 or over) incl. Older Mentally Ill","REV","Revenue","R4211","Older People Direct Payments","09-INCOME","Income","09C","Customer & Client Receipts","8545","Direct Payments Income","3250218","201306",24/09/2012 00:00:00,-138.84,"56800","Payroll Services","REDACTED DATA","HUMAN MANAGEMENT ASSISTANCE-CLIENT ACCOUNT","4752026","http://opencorporates.com/companies/gb/4752026","815230071"
"London Borough of Redbridge","http://opendatacommunities.org/doc/london-borough-council/redbridge","6BADULTSOCIA","Adult Social Care","6COLDINCMENT","Older People (65 or over) incl. Older Mentally Ill","REV","Revenue","R4211","Older People Direct Payments","06-TRANSFER","Transfer Payments","06B","Social Services Clients","7053","Direct Payments","3250218","201306",24/09/2012 00:00:00,696,"56800","Payroll Services","REDACTED DATA","HUMAN MANAGEMENT ASSISTANCE-CLIENT ACCOUNT","4752026","http://opencorporates.com/companies/gb/4752026","815230071"
"London Borough of Redbridge","http://opendatacommunities.org/doc/london-borough-council/redbridge","6BADULTSOCIA","Adult Social Care","6COLDINCMENT","Older People (65 or over) incl. Older Mentally Ill","REV","Revenue","R4211","Older People Direct Payments","09-INCOME","Income","09C","Customer & Client Receipts","8545","Direct Payments Income","3250240","201306",24/09/2012 00:00:00,-16.32,"90005","Home Care Services DP","REDACTED DATA","REDACTED DATA","",,""
"London Borough of Redbridge","http://opendatacommunities.org/doc/london-borough-council/redbridge","6BADULTSOCIA","Adult Social Care","6COLDINCMENT","Older People (65 or over) incl. Older Mentally Ill","REV","Revenue","R4211","Older People Direct Payments","06-TRANSFER","Transfer Payments","06B","Social Services Clients","7053","Direct Payments","3250240","201306",24/09/2012 00:00:00,28.56,"90005","Home Care Services DP","REDACTED DATA","REDACTED DATA","",,""
"London Borough of Redbridge","http://opendatacommunities.org/doc/london-borough-council/redbridge","6BADULTSOCIA","Adult Social Care","6COLDINCMENT","Older People (65 or over) incl. Older Mentally Ill","REV","Revenue","R4211","Older People Direct Payments","06-TRANSFER","Transfer Payments","06B","Social Services Clients","7053","Direct Payments","3250240","201306",24/09/2012 00:00:00,545.2,"90005","Home Care Services DP","REDACTED DATA","REDACTED DATA","",,""
"London Borough of Redbridge","http://opendatacommunities.org/doc/london-borough-council/redbridge","1BOTHEROPI&E","Other Operating Income & Expenditure","1CTRADSURDEF","Trading Account Surpluses & Deficits","REV","Revenue","R1430","Single Status","04-SUPPLIES","Supplies And Services","04E","Services","5754","Consultancy","60185624","201306",06/09/2012 00:00:00,465,"47830","Legal Services","REDACTED DATA","HARRISON CLARK LLP","OC315067","http://opencorporates.com/companies/gb/OC315067","274486623"
"London Borough of Redbridge","http://opendatacommunities.org/doc/london-borough-council/redbridge","6BSOCIALSERV","Social Services","6CFAMSUPPSER","Family Support Services","REV","Revenue","R2161","Albert Road - Outreach South - Albert Road","02-PREMISES","Premises","02B","Energy costs","4002","Gas","80000078","201306",10/05/2012 00:00:00,465.13,"39564","Gas Companies","REDACTED DATA","KENT COUNTY COUNCIL (GAS & ELECTRIC)","",,"204269191"
"London Borough of Redbridge","http://opendatacommunities.org/doc/london-borough-council/redbridge","6BADULTSOCIA","Adult Social Care","6COLDINCMENT","Older People (65 or over) incl. Older Mentally Ill","REV","Revenue","R4211","Older People Direct Payments","09-INCOME","Income","09C","Customer & Client Receipts","8545","Direct Payments Income","3249917","201306",24/09/2012 00:00:00,-9.36,"56800","Payroll Services","REDACTED DATA","HUMAN MANAGEMENT ASSISTANCE-CLIENT ACCOUNT","4752026","http://opencorporates.com/companies/gb/4752026","815230071"
"London Borough of Redbridge","http://opendatacommunities.org/doc/london-borough-council/redbridge","6BADULTSOCIA","Adult Social Care","6COLDINCMENT","Older People (65 or over) incl. Older Mentally Ill","REV","Revenue","R4211","Older People Direct Payments","06-TRANSFER","Transfer Payments","06B","Social Services Clients","7053","Direct Payments","3249917","201306",24/09/2012 00:00:00,568.44,"56800","Payroll Services","REDACTED DATA","HUMAN MANAGEMENT ASSISTANCE-CLIENT ACCOUNT","4752026","http://opencorporates.com/companies/gb/4752026","815230071"
"London Borough of Redbridge","http://opendatacommunities.org/doc/london-borough-council/redbridge","6BADULTSOCIA","Adult Social Care","6CADLEARNDIS","Adults Under 65 with Learning Disabilities","REV","Revenue","R4383","LD - External Day Care","05-THIRD","Third Party Payments","05H","Private contractors","6904","Day Centres","90356547","201306",26/09/2012 00:00:00,-139.9,"17020","Charities and Voluntary Organisations","REDACTED DATA","REDBRIDGE COMMUNITY HOUSING LIMITED (RCHL)","",,""
"London Borough of Redbridge","http://opendatacommunities.org/doc/london-borough-council/redbridge","6BADULTSOCIA","Adult Social Care","6CADLEARNDIS","Adults Under 65 with Learning Disabilities","REV","Revenue","R4383","LD - External Day Care","05-THIRD","Third Party Payments","05H","Private contractors","6904","Day Centres","90356547","201306",26/09/2012 00:00:00,699.5,"17020","Charities and Voluntary Organisations","REDACTED DATA","REDBRIDGE COMMUNITY HOUSING LIMITED (RCHL)","",,""
"London Borough of Redbridge","http://opendatacommunities.org/doc/london-borough-council/redbridge","6BSOCIALSERV","Social Services","6CCHILLOOKED","Children Looked After","REV","Revenue","R2127","CLAFH - Fostering and Adoption","04-SUPPLIES","Supplies And Services","04K","Miscellaneous expenses","6263","Supportive Activities","60184963","201306",06/09/2012 00:00:00,484.43,"79390","Toy Shops","REDACTED DATA","TOYS R US LIMITED","1809223","http://opencorporates.com/companies/gb/1809223","410802502"
"London Borough of Redbridge","http://opendatacommunities.org/doc/london-borough-council/redbridge","3BINDSCHFUND","Individual School Funds","3CDELPRIMARY","Delegated Individual Primary School Budgets","REV","Revenue","S1040","CHRISTCHURCH : Swimming Courses","04-SUPPLIES","Supplies And Services","04E","Services","5780","Swimming Costs","60185079","201306",23/08/2012 00:00:00,560,"17020","Charities and Voluntary Organisations","REDACTED DATA","VISION REDBRIDGE CULTURE AND LEISURE","6032714","http://opencorporates.com/companies/gb/6032714","906429031"
"London Borough of Redbridge","http://opendatacommunities.org/doc/london-borough-council/redbridge","6BADULTSOCIA","Adult Social Care","6COTHADSERV","Other Adult Services","REV","Revenue","R4389","PCT Older Person Home Care","05-THIRD","Third Party Payments","05A","Independent units within the council","6502","Agency Homecare (Payments To Independent Units)","90355153","201306",19/09/2012 00:00:00,560.08,"43419","Home Care Services","REDACTED DATA","CAREWATCH CARE SERVICES LTD","2949558","http://opencorporates.com/companies/gb/2949558","927457005"
"London Borough of Redbridge","http://opendatacommunities.org/doc/london-borough-council/redbridge","3BLEACENTFND","LEA Centrally Held School Funds","3CSCHSTRATMG","Schools Strategic Management","REV","Revenue","R3828","Perm  Contingency","04-SUPPLIES","Supplies And Services","04K","Miscellaneous expenses","6223","Excluded Pupils","70045746","201306",09/03/2012 00:00:00,560.2,"48583","Local Government","REDACTED DATA","ESSEX COUNTY COUNCIL","",,"104252813"
"London Borough of Redbridge","http://opendatacommunities.org/doc/london-borough-council/redbridge","6BADULTSOCIA","Adult Social Care","6COLDINCMENT","Older People (65 or over) incl. Older Mentally Ill","REV","Revenue","R4391","OP Home Care","05-THIRD","Third Party Payments","05A","Independent units within the council","6502","Agency Homecare (Payments To Independent Units)","90352948","201306",10/09/2012 00:00:00,560.24,"43419","Home Care Services","REDACTED DATA","ENARA LTD (ENARA COMMUNITY CARE)","65455420","http://opencorporates.com/companies/gb/65455420",""
"London Borough of Redbridge","http://opendatacommunities.org/doc/london-borough-council/redbridge","9BNONBVO","Outside the BVACOP Objective Structure","9CNONBVO","Outside the BVACOP Objective Structure","REV","Revenue","R7701","Veh Admin O'Head A/C","04-SUPPLIES","Supplies And Services","04D","Printing, stationery and general office expenses","5710","Stationery","633880","201306",13/08/2012 00:00:00,560.3,"62450","Publishers","REDACTED DATA","G I BARNETT & SON LTD","",,"246830944"
"London Borough of Redbridge","http://opendatacommunities.org/doc/london-borough-council/redbridge","6BADULTSOCIA","Adult Social Care","6CADLEARNDIS","Adults Under 65 with Learning Disabilities","REV","Revenue","R4394","LD - Homecare","05-THIRD","Third Party Payments","05A","Independent units within the council","6502","Agency Homecare (Payments To Independent Units)","90354177","201306",19/09/2012 00:00:00,560.4,"31230","Employment & Recruitment Agencies","REDACTED DATA","SHARED CARE SERVICES LTD","4704680","http://opencorporates.com/companies/gb/4704680",""
"London Borough of Redbridge","http://opendatacommunities.org/doc/london-borough-council/redbridge","6BSOCIALSERV","Social Services","6CCHILCOMSNG","Children's Services - Commissioning & Social Work","REV","Revenue","R2121","CLAFH - Business and Finance Social Care","04-SUPPLIES","Supplies And Services","04A","Equipment, furniture and materials","5502","Equipment Purchase","60184113","201306",16/07/2012 00:00:00,467.67,"20703","Computer Systems and Software","REDACTED DATA","SPECIALIST COMPUTER CENTRES PLC","1428210","http://opencorporates.com/companies/gb/1428210","313651680"
